{"text_format":"1","workbook":"xlsx","n_sheets":20,"sheets":["Prüfergebnis","Fallübersicht","Mängelreport","Datenimport","InfoW","InfoR","MB temp","ZU temp","FF temp","KA temp","PP temp","PS temp","PU temp","MB","ZU","FF","KA","PP","PS","PU"],"not_rendered":{"charts":0,"images":2,"macros":1,"external_links":0,"defined_names":9,"comments":7,"pivot_tables":0},"unopened":[],"bounds":{"document_bytes":16777216,"sheet_cells":100000,"rows_first":2000,"rows_last":500,"rows_between":2000,"halvings":0,"cell_chars":16384,"cell_head_chars":4096},"cells_cut":0,"cells_raw":0,"read":"whole","date_system":"1900"}

{"sheet":"Prüfergebnis","index":0,"n_rows":41,"n_cols":15,"rows_kept":41,"cut":false,"hidden":true,"merged":[[0,1,0,2],[1,1,1,2]]}
[null," ANQ-Reha-Test-2021_v8.1",null,null,null,"Ergebnis der Prüfung des Datenimports vom"]
[null," Datenjahr 2021",null,null,null,"2021-01-01T12:00:00","(berechnet in 0,0 Sekunden)"]
[]
[null,"Zusammenfassung MB / ZU / FF / KA / PU / PP / PS ingesamt",null,null,null,null,null,null,null,null,"Rehabereiche"]
[]
[null," Anzahl eindeutige FID (Fallnummern)",null,null,null,{"$f":"InfoW!X28","v":0},null,null,null,null,"unklar / fehlend",{"$f":"InfoW!X39","v":0},null,null,"weitere Ergebnisse der Prüfung"]
[null,"Fälle mit eindeutiger FID und allen erforderlichen Teildatensätzen *",null,null,null,null,{"$f":"InfoW!Y29","v":0},null,null,null,"Geriatrische Reha",{"$f":"InfoW!X40","v":0},"FF"]
[null,"davon Fälle ohne Dokumentationsmängel",null,null,null,null,null,{"$f":"InfoW!Z30","v":0},null,null,"Internistische Reha",{"$f":"InfoW!X41","v":0},"FF",null,"Tabellenblatt Fallübersicht"]
[null,"davon Drop-Out-Fälle **",null,null,null,null,null,{"$f":"InfoW!Z31","v":0},null,null,"Kardiale Reha",{"$f":"InfoW!X42","v":0},"KA",null,"     ► Übersicht, welche Teildatensätze pro FID geliefert wurden und wo Mängel vorliegen (z. B. in der ZU-Datei)"]
[null,"davon Fälle mit Dokumentationsmängeln",null,null,null,null,null,{"$f":"InfoW!Z32","v":0},null,null,"Muskuloskelettale Reha",{"$f":"InfoW!X43","v":0},"FF"]
[null,"Fälle mit fehlenden Teildatensätzen (ohne Duplikate) ***",null,null,null,null,{"$f":"InfoW!Y33","v":0},null,null,null,"Neurologische Reha",{"$f":"InfoW!X44","v":0},"FF",null,"Tabellenblatt Mängelreport"]
[null,"davon Fälle ohne Dokumentationsmängel",null,null,null,null,null,{"$f":"InfoW!Z34","v":0},null,null,"Onkologische Reha",{"$f":"InfoW!X45","v":0},"FF",null,"     ► (druckfertige) Zusammenstellung der Mängel pro Messfall"]
[null,"davon Fälle mit Dokumentationsmängeln",null,null,null,null,null,{"$f":"InfoW!Z35","v":0},null,null,"Paraplegiologische Reha",{"$f":"InfoW!X46","v":0},"PP"]
[null,"Fälle mit Duplikaten in mindestens einem Teildatensatz",null,null,null,null,{"$f":"InfoW!Y36","v":0},null,null,null,"Psychosomatische Reha",{"$f":"InfoW!X47","v":0},"PS",null,"Tabellenblätter MB, ZU, FF, KA, PP, PS, PU"]
[null,"Fälle mit Duplikaten in mindestens einem Teildatensatz",null,null,null,null,null,{"$f":"InfoW!Z37","v":0},null,null,"Pulmonale Reha",{"$f":"InfoW!X48","v":0},"PU",null,"     ► Detailinformationen zum Auffinden von Dokumentationsfehlern pro Messfall (Angabe welcher Mangel in den Teildatensätzen MB, ZU, FF, KA, PP, PS bzw. PU vorliegt)"]
[]
[]
[null,"Zusammenfassung Teildatensätze"]
[null,null,null,"gelieferte Fälle (Datenzeilen)",null,"Datenzeilen \nmit einfach \nverwendeter FID (Fallnummer)","Datenzeilen \nmit mehrfach verwendeter FID (ergibt Duplikate)","Datenzeilen \nmit fehlender \nFID-Angabe",null,"Datenzeilen \nmit Mängeln in \nder Dokumentation \n(ohne Duplikate und Drop-Outs)",null,"fehlende Teildatensätze"]
[]
[null,"MB",null,{"$f":"InfoW!X50","v":0},null,{"$f":"InfoW!Y50","v":0},{"$f":"InfoW!Z50","v":0},{"$f":"InfoW!AA50","v":0},null,{"$f":"InfoW!AB50","v":0},null,{"$f":"InfoW!AC50","v":0}]
[null,"ZU",null,{"$f":"InfoW!X51","v":0},null,{"$f":"InfoW!Y51","v":0},{"$f":"InfoW!Z51","v":0},{"$f":"InfoW!AA51","v":0},null,{"$f":"InfoW!AB51","v":0},null,{"$f":"InfoW!AC51","v":0}]
[null,"FF Eintritt (E)",null,{"$f":"InfoW!X52","v":0},null,{"$f":"InfoW!Y52","v":0},{"$f":"InfoW!Z52","v":0},{"$f":"InfoW!AA52","v":0},null,{"$f":"InfoW!AB52","v":0},null,{"$f":"InfoW!AC52","v":0}]
[null,"FF Austritt (A)",null,{"$f":"InfoW!X53","v":0},null,{"$f":"InfoW!Y53","v":0},{"$f":"InfoW!Z53","v":0},{"$f":"InfoW!AA53","v":0},null,{"$f":"InfoW!AB53","v":0},null,{"$f":"InfoW!AC53","v":0}]
[null,"FF E/A nicht angegeben",null,{"$f":"InfoW!X54","v":0},null,{"$f":"InfoW!Y54","v":0},{"$f":"InfoW!Z54","v":0},{"$f":"InfoW!AA54","v":0}]
[null,"KA Eintritt (E)",null,{"$f":"InfoW!X55","v":0},null,{"$f":"InfoW!Y55","v":0},{"$f":"InfoW!Z55","v":0},{"$f":"InfoW!AA55","v":0},null,{"$f":"InfoW!AB55","v":0},null,{"$f":"InfoW!AC55","v":0}]
[null,"KA Austritt (A)",null,{"$f":"InfoW!X56","v":0},null,{"$f":"InfoW!Y56","v":0},{"$f":"InfoW!Z56","v":0},{"$f":"InfoW!AA56","v":0},null,{"$f":"InfoW!AB56","v":0},null,{"$f":"InfoW!AC56","v":0}]
[null,"KA E/A nicht angegeben",null,{"$f":"InfoW!X57","v":0},null,{"$f":"InfoW!Y57","v":0},{"$f":"InfoW!Z57","v":0},{"$f":"InfoW!AA57","v":0}]
[null,"PP Eintritt (E)",null,{"$f":"InfoW!X61","v":0},null,{"$f":"InfoW!Y61","v":0},{"$f":"InfoW!Z61","v":0},{"$f":"InfoW!AA61","v":0},null,{"$f":"InfoW!AB61","v":0},null,{"$f":"InfoW!AC61","v":0}]
[null,"PP Austritt (A)",null,{"$f":"InfoW!X62","v":0},null,{"$f":"InfoW!Y62","v":0},{"$f":"InfoW!Z62","v":0},{"$f":"InfoW!AA62","v":0},null,{"$f":"InfoW!AB62","v":0},null,{"$f":"InfoW!AC62","v":0}]
[null,"PP E/A nicht angegeben",null,{"$f":"InfoW!X63","v":0},null,{"$f":"InfoW!Y63","v":0},{"$f":"InfoW!Z63","v":0},{"$f":"InfoW!AA63","v":0}]
[null,"PS Eintritt (E)",null,{"$f":"InfoW!X64","v":0},null,{"$f":"InfoW!Y64","v":0},{"$f":"InfoW!Z64","v":0},{"$f":"InfoW!AA64","v":0},null,{"$f":"InfoW!AB64","v":0},null,{"$f":"InfoW!AC64","v":0}]
[null,"PS Austritt (A)",null,{"$f":"InfoW!X65","v":0},null,{"$f":"InfoW!Y65","v":0},{"$f":"InfoW!Z65","v":0},{"$f":"InfoW!AA65","v":0},null,{"$f":"InfoW!AB65","v":0},null,{"$f":"InfoW!AC65","v":0}]
[null,"PS E/A nicht angegeben",null,{"$f":"InfoW!X66","v":0},null,{"$f":"InfoW!Y66","v":0},{"$f":"InfoW!Z66","v":0},{"$f":"InfoW!AA66","v":0}]
[null,"PU Eintritt (E)",null,{"$f":"InfoW!X58","v":0},null,{"$f":"InfoW!Y58","v":0},{"$f":"InfoW!Z58","v":0},{"$f":"InfoW!AA58","v":0},null,{"$f":"InfoW!AB58","v":0},null,{"$f":"InfoW!AC58","v":0}]
[null,"PU Austritt (A)",null,{"$f":"InfoW!X59","v":0},null,{"$f":"InfoW!Y59","v":0},{"$f":"InfoW!Z59","v":0},{"$f":"InfoW!AA59","v":0},null,{"$f":"InfoW!AB59","v":0},null,{"$f":"InfoW!AC59","v":0}]
[null,"PU E/A nicht angegeben",null,{"$f":"InfoW!X60","v":0},null,{"$f":"InfoW!Y60","v":0},{"$f":"InfoW!Z60","v":0},{"$f":"InfoW!AA60","v":0}]
[]
[]
[]
[null,"importierte und getestete Teildatensätze:"]

{"sheet":"Fallübersicht","index":1,"n_rows":5,"n_cols":43,"rows_kept":5,"cut":false,"hidden":true,"merged":[[0,38,2,38],[0,39,2,39],[0,40,2,40],[0,32,2,32],[0,33,2,33],[0,34,2,34],[0,35,2,35],[0,36,2,36],[0,37,2,37]]}
[null,"ANQ-Reha-Test-2021_v8.1",null,null,null,null,null,null,null,null,null,null,null,null,null,null,null,null,null,null,null,null,null,null,null,null,null,null,null,null,null,null,"HZ/ZE","FIM","EBI","Gehtest","Ergo","MacNew","Feel","CRQ","Testkombi"]
[null,null,null,null,null,null,null,null,null,null,null,null,null,null,null,null,null,null,null,null,null,null,null,null,null,null,null,null,null,null,2021]
[null,"FID","Reha-\nBereich","MB",null,"ZU",null,"FF (E) ",null,"FF (A)",null,"KA (E) ",null,"KA (A)",null,"PP (E) ",null,"PP (A)",null,"PS (E) ",null,"PS (A)",null,"PU (E) ",null,"PU (A)",null,null,"Reha-\nEintritt","Reha-\nAustritt","Liefer-\nzeitraum","Diagnose",null,null,null,null,null,null,null,null,null,null,"Bereich"]
[]
[null,null,{"$f":"IF(AQ5=\"_\",\"\",IFERROR(VLOOKUP(AQ5,InfoR!$H$224:$I$324,2,FALSE),\"unklar\"))","v":""},{"$f":"COUNTIF(INDIRECT(\"'MB temp'!H$6:H$\"&'MB temp'!H$1+5+1),B5)","v":0},{"$f":"IF(D5>1,\"DUPLIKAT\",IF(D5=0,\"fehlend\",IF(VLOOKUP(B5,INDIRECT(\"'MB temp'!$H$6:$DO$\"&'MB temp'!$H$1+5),109,FALSE)=\"\",\"\",VLOOKUP(B5,INDIRECT(\"'MB temp'!$H$6:$DO$\"&'MB temp'!$H$1+5),109,FALSE))))","v":"fehlend"},{"$f":"COUNTIF(INDIRECT(\"'ZU temp'!H$6:H$\"&'ZU temp'!H$1+5+1),B5)","v":0},{"$f":"IF(F5>1,\"DUPLIKAT\",IF(VLOOKUP(B5,INDIRECT(\"'InfoW'!$A$3:$U$\"&InfoW!$A$2+2),21,FALSE)=\"Drop-Out\",\"Drop-Out\",IF(F5=0,\"fehlend\",VLOOKUP(B5,INDIRECT(\"'ZU temp'!$H$6:$AT$\"&'ZU temp'!$H$1+5),39,FALSE))))","v":"fehlend"},{"$f":"COUNTIF('FF temp'!A:A,B5&\"1\")","v":0},{"$f":"IF(H5>1,\"DUPLIKAT\",IF(VLOOKUP(B5,INDIRECT(\"'InfoW'!$A$3:$U$\"&InfoW!$A$2+2),21,FALSE)=\"Drop-Out\",\"Drop-Out\",IF(H5=0,IF(L5+N5+P5+R5+T5+V5+X5+Z5=0,\"fehlend\",\"\"),VLOOKUP(B5&\"1\",INDIRECT(\"'FF temp'!$A$6:$EB$\"&'FF temp'!$H$1+5),132,FALSE))))","v":"fehlend"},{"$f":"COUNTIF('FF temp'!A:A,B5&\"2\")","v":0},{"$f":"IF(J5>1,\"DUPLIKAT\",IF(VLOOKUP(B5,INDIRECT(\"'InfoW'!$A$3:$U$\"&InfoW!$A$2+2),21,FALSE)=\"Drop-Out\",\"Drop-Out\",IF(J5=0,IF(L5+N5+P5+R5+T5+V5+X5+Z5=0,\"fehlend\",\"\"),VLOOKUP(B5&\"2\",INDIRECT(\"'FF temp'!$A$6:$EB$\"&'FF temp'!$H$1+5),132,FALSE))))","v":"fehlend"},{"$f":"COUNTIF('KA temp'!A:A,B5&\"1\")","v":0},{"$f":"IF(L5>1,\"DUPLIKAT\",IF(VLOOKUP(B5,INDIRECT(\"'InfoW'!$A$3:$U$\"&InfoW!$A$2+2),21,FALSE)=\"Drop-Out\",\"Drop-Out\",IF(L5=0,IF(H5+J5+P5+R5+T5+V5+X5+Z5=0,\"fehlend\",\"\"),VLOOKUP(B5&\"1\",INDIRECT(\"'KA temp'!$A$6:$ER$\"&'KA temp'!$H$1+5),147,FALSE))))","v":"fehlend"},{"$f":"COUNTIF('KA temp'!A:A,B5&\"2\")","v":0},{"$f":"IF(N5>1,\"DUPLIKAT\",IF(VLOOKUP(B5,INDIRECT(\"'InfoW'!$A$3:$U$\"&InfoW!$A$2+2),21,FALSE)=\"Drop-Out\",\"Drop-Out\",IF(N5=0,IF(H5+J5+P5+R5+T5+V5+X5+Z5=0,\"fehlend\",\"\"),VLOOKUP(B5&\"2\",INDIRECT(\"'KA temp'!$A$6:$ER$\"&'KA temp'!$H$1+5),147,FALSE))))","v":"fehlend"},{"$f":"COUNTIF('PU temp'!A:A,B5&\"1\")","v":0},{"$f":"IF(P5>1,\"DUPLIKAT\",IF(VLOOKUP(B5,INDIRECT(\"'InfoW'!$A$3:$U$\"&InfoW!$A$2+2),21,FALSE)=\"Drop-Out\",\"Drop-Out\",IF(P5=0,IF(H5+J5+L5+N5+T5+V5+X5+Z5=0,\"fehlend\",\"\"),VLOOKUP(B5&\"1\",INDIRECT(\"'PU temp'!$A$6:$DP$\"&'PU temp'!$H$1+5),117,FALSE))))","v":"fehlend"},{"$f":"COUNTIF('PU temp'!A:A,B5&\"2\")","v":0},{"$f":"IF(R5>1,\"DUPLIKAT\",IF(VLOOKUP(B5,INDIRECT(\"'InfoW'!$A$3:$U$\"&InfoW!$A$2+2),21,FALSE)=\"Drop-Out\",\"Drop-Out\",IF(R5=0,IF(H5+J5+L5+N5+T5+V5+X5+Z5=0,\"fehlend\",\"\"),VLOOKUP(B5&\"2\",INDIRECT(\"'PU temp'!$A$6:$DP$\"&'PU temp'!$H$1+5),117,FALSE))))","v":"fehlend"},{"$f":"COUNTIF('PP temp'!A:A,B5&\"1\")","v":0},{"$f":"IF(T5>1,\"DUPLIKAT\",IF(VLOOKUP(B5,INDIRECT(\"'InfoW'!$A$3:$U$\"&InfoW!$A$2+2),21,FALSE)=\"Drop-Out\",\"Drop-Out\",IF(T5=0,IF(H5+J5+L5+N5+P5+R5+X5+Z5=0,\"fehlend\",\"\"),VLOOKUP(B5&\"1\",INDIRECT(\"'PP temp'!$A$6:$CO$\"&'PP temp'!$H$1+5),91,FALSE))))","v":"fehlend"},{"$f":"COUNTIF('PP temp'!A:A,B5&\"2\")","v":0},{"$f":"IF(V5>1,\"DUPLIKAT\",IF(VLOOKUP(B5,INDIRECT(\"'InfoW'!$A$3:$U$\"&InfoW!$A$2+2),21,FALSE)=\"Drop-Out\",\"Drop-Out\",IF(V5=0,IF(H5+J5+L5+N5+P5+R5+X5+Z5=0,\"fehlend\",\"\"),VLOOKUP(B5&\"2\",INDIRECT(\"'PP temp'!$A$6:$CO$\"&'PP temp'!$H$1+5),91,FALSE))))","v":"fehlend"},{"$f":"COUNTIF('PS temp'!A:A,B5&\"1\")","v":0},{"$f":"IF(X5>1,\"DUPLIKAT\",IF(VLOOKUP(B5,INDIRECT(\"'InfoW'!$A$3:$U$\"&InfoW!$A$2+2),21,FALSE)=\"Drop-Out\",\"Drop-Out\",IF(X5=0,IF(H5+J5+L5+N5+P5+R5+T5+V5=0,\"fehlend\",\"\"),VLOOKUP(B5&\"1\",INDIRECT(\"'PS temp'!$A$6:$DR$\"&'PS temp'!$H$1+5),122,FALSE))))","v":"fehlend"},{"$f":"COUNTIF('PS temp'!A:A,B5&\"2\")","v":0},{"$f":"IF(Z5>1,\"DUPLIKAT\",IF(VLOOKUP(B5,INDIRECT(\"'InfoW'!$A$3:$U$\"&InfoW!$A$2+2),21,FALSE)=\"Drop-Out\",\"Drop-Out\",IF(Z5=0,IF(H5+J5+L5+N5+P5+R5+T5+V5=0,\"fehlend\",\"\"),VLOOKUP(B5&\"2\",INDIRECT(\"'PS temp'!$A$6:$DR$\"&'PS temp'!$H$1+5),122,FALSE))))","v":"fehlend"},{"$f":"COUNTIF(E5:AA5,\"fehlend\")+COUNTIF(E5:AA5,\"mangelhaft\")+COUNTIF(E5:AA5,\"Duplikat\")+COUNTIF(C5,\"unklar\")+IF(AE5<>AE$2,1,0)","v":13},{"$f":"IF(D5=1,VLOOKUP(B5,INDIRECT(\"'MB temp'!$H$6:$DO$\"&'MB temp'!$H$1+5),110,FALSE),\"\")","v":""},{"$f":"IF(D5=1,VLOOKUP(B5,INDIRECT(\"'MB temp'!$H$6:$EDO\"&'MB temp'!$H$1+5),111,FALSE),\"\")","v":""},{"$f":"IF(AD5<>\"\",YEAR(AD5),\"\")","v":""},{"$f":"IF(D5=1,VLOOKUP(B5,INDIRECT(\"'MB temp'!$H$6:$DO$\"&'MB temp'!$H$1+5),112,FALSE),\"\")","v":""},null,null,null,null,null,null,null,null,null,null,{"$f":"\"_\"&IF(H5=1,VLOOKUP(B5&\"1\",INDIRECT(\"'FF temp'!$A$5:$L$\"&'FF temp'!$H$1+5),10,FALSE),\"\")&IF(J5=1,VLOOKUP(B5&\"2\",INDIRECT(\"'FF temp'!$A$5:$L$\"&'FF temp'!$H$1+5),10,FALSE),\"\")&IF(L5=1,VLOOKUP(B5&\"1\",INDIRECT(\"'KA temp'!$A$5:$M$\"&'KA temp'!$H$1+5),10,FALSE),\"\")&IF(N5=1,VLOOKUP(B5&\"2\",INDIRECT(\"'KA temp'!$A$5:$M$\"&'KA temp'!$H$1+5),10,FALSE),\"\")&IF(P5=1,VLOOKUP(B5&\"1\",INDIRECT(\"'PU temp'!$A$5:$M$\"&'PU temp'!$H$1+5),10,FALSE),\"\")&IF(R5=1,VLOOKUP(B5&\"2\",INDIRECT(\"'PU temp'!$A$5:$M$\"&'PU temp'!$H$1+5),10,FALSE),\"\")&IF(T5=1,VLOOKUP(B5&\"1\",INDIRECT(\"'PP temp'!$A$5:$M$\"&'PP temp'!$H$1+5),10,FALSE),\"\")&IF(V5=1,VLOOKUP(B5&\"2\",INDIRECT(\"'PP temp'!$A$5:$M$\"&'PP temp'!$H$1+5),10,FALSE),\"\")&IF(X5=1,VLOOKUP(B5&\"1\",INDIRECT(\"'PS temp'!$A$5:$M$\"&'PS temp'!$H$1+5),10,FALSE),\"\")&IF(Z5=1,VLOOKUP(B5&\"2\",INDIRECT(\"'PS temp'!$A$5:$M$\"&'PS temp'!$H$1+5),10,FALSE),\"\")","v":"_"}]

{"sheet":"Mängelreport","index":2,"n_rows":3,"n_cols":3,"rows_kept":3,"cut":false,"hidden":true,"merged":[]}
["ANQ-Reha-Test-2021_v8.1"]
["FID  ","Datenquelle   ","Mängel in der Dokumentation \n(Details siehe Tabellenblätter MB / ZU / FF / KA / PP / PS / PU)"]
[null,null,"Es liegen keine Mängel vor."]

{"sheet":"Datenimport","index":3,"n_rows":55,"n_cols":43,"rows_kept":55,"cut":false,"hidden":false,"merged":[[4,4,5,4]]}
[null,null,null,null,"ANQ-Reha-Test-2021_v8.1"]
[]
[]
[]
[]
[]
[null,1,null,null,{"$f":"IF(ISBLANK(InfoW!X7),\"\",InfoW!X7)","v":""},null,{"$f":"IF(ISBLANK(InfoW!Y7),\"\",InfoW!Y7)","v":""},null,{"$f":"IF(ISBLANK(InfoW!Z7),\"\",InfoW!Z7)","v":""},null,{"$f":"IF(ISBLANK(InfoW!AA7),\"\",InfoW!AA7)","v":""},null,{"$f":"IF(ISBLANK(InfoW!AB7),\"\",InfoW!AB7)","v":""},null,{"$f":"IF(ISBLANK(InfoW!AC7),\"\",InfoW!AC7)","v":""},null,{"$f":"IF(ISBLANK(InfoW!AD7),\"\",InfoW!AD7)","v":""},null,{"$f":"IF(ISBLANK(InfoW!AE7),\"\",InfoW!AE7)","v":""},null,{"$f":"IF(ISBLANK(InfoW!AF7),\"\",InfoW!AF7)","v":""},null,{"$f":"IF(ISBLANK(InfoW!AG7),\"\",InfoW!AG7)","v":""},null,{"$f":"IF(ISBLANK(InfoW!AH7),\"\",InfoW!AH7)","v":""},null,{"$f":"IF(ISBLANK(InfoW!AI7),\"\",InfoW!AI7)","v":""},null,{"$f":"IF(ISBLANK(InfoW!AJ7),\"\",InfoW!AJ7)","v":""},null,{"$f":"IF(ISBLANK(InfoW!AK7),\"\",InfoW!AK7)","v":""},null,{"$f":"IF(ISBLANK(InfoW!AL7),\"\",InfoW!AL7)","v":""},null,{"$f":"IF(ISBLANK(InfoW!AM7),\"\",InfoW!AM7)","v":""},null,{"$f":"IF(ISBLANK(InfoW!AN7),\"\",InfoW!AN7)","v":""},null,{"$f":"IF(ISBLANK(InfoW!AO7),\"\",InfoW!AO7)","v":""},null,{"$f":"IF(ISBLANK(InfoW!AP7),\"\",InfoW!AP7)","v":""},null,{"$f":"IF(ISBLANK(InfoW!AQ7),\"\",InfoW!AQ7)","v":""}]
[]
[null,2,null,null,{"$f":"IF(ISBLANK(InfoW!X9),\"\",InfoW!X9)","v":""},null,{"$f":"IF(ISBLANK(InfoW!Y9),\"\",InfoW!Y9)","v":""},null,{"$f":"IF(ISBLANK(InfoW!Z9),\"\",InfoW!Z9)","v":""},null,{"$f":"IF(ISBLANK(InfoW!AA9),\"\",InfoW!AA9)","v":""},null,{"$f":"IF(ISBLANK(InfoW!AB9),\"\",InfoW!AB9)","v":""},null,{"$f":"IF(ISBLANK(InfoW!AC9),\"\",InfoW!AC9)","v":""},null,{"$f":"IF(ISBLANK(InfoW!AD9),\"\",InfoW!AD9)","v":""},null,{"$f":"IF(ISBLANK(InfoW!AE9),\"\",InfoW!AE9)","v":""},null,{"$f":"IF(ISBLANK(InfoW!AF9),\"\",InfoW!AF9)","v":""},null,{"$f":"IF(ISBLANK(InfoW!AG9),\"\",InfoW!AG9)","v":""},null,{"$f":"IF(ISBLANK(InfoW!AH9),\"\",InfoW!AH9)","v":""},null,{"$f":"IF(ISBLANK(InfoW!AI9),\"\",InfoW!AI9)","v":""},null,{"$f":"IF(ISBLANK(InfoW!AJ9),\"\",InfoW!AJ9)","v":""},null,{"$f":"IF(ISBLANK(InfoW!AK9),\"\",InfoW!AK9)","v":""},null,{"$f":"IF(ISBLANK(InfoW!AL9),\"\",InfoW!AL9)","v":""},null,{"$f":"IF(ISBLANK(InfoW!AM9),\"\",InfoW!AM9)","v":""},null,{"$f":"IF(ISBLANK(InfoW!AN9),\"\",InfoW!AN9)","v":""},null,{"$f":"IF(ISBLANK(InfoW!AO9),\"\",InfoW!AO9)","v":""},null,{"$f":"IF(ISBLANK(InfoW!AP9),\"\",InfoW!AP9)","v":""},null,{"$f":"IF(ISBLANK(InfoW!AQ9),\"\",InfoW!AQ9)","v":""}]
[]
[null,3,null,null,{"$f":"IF(ISBLANK(InfoW!X11),\"\",InfoW!X11)","v":""},null,{"$f":"IF(ISBLANK(InfoW!Y11),\"\",InfoW!Y11)","v":""},null,{"$f":"IF(ISBLANK(InfoW!Z11),\"\",InfoW!Z11)","v":""},null,{"$f":"IF(ISBLANK(InfoW!AA11),\"\",InfoW!AA11)","v":""},null,{"$f":"IF(ISBLANK(InfoW!AB11),\"\",InfoW!AB11)","v":""},null,{"$f":"IF(ISBLANK(InfoW!AC11),\"\",InfoW!AC11)","v":""},null,{"$f":"IF(ISBLANK(InfoW!AD11),\"\",InfoW!AD11)","v":""},null,{"$f":"IF(ISBLANK(InfoW!AE11),\"\",InfoW!AE11)","v":""},null,{"$f":"IF(ISBLANK(InfoW!AF11),\"\",InfoW!AF11)","v":""},null,{"$f":"IF(ISBLANK(InfoW!AG11),\"\",InfoW!AG11)","v":""},null,{"$f":"IF(ISBLANK(InfoW!AH11),\"\",InfoW!AH11)","v":""},null,{"$f":"IF(ISBLANK(InfoW!AI11),\"\",InfoW!AI11)","v":""},null,{"$f":"IF(ISBLANK(InfoW!AJ11),\"\",InfoW!AJ11)","v":""},null,{"$f":"IF(ISBLANK(InfoW!AK11),\"\",InfoW!AK11)","v":""},null,{"$f":"IF(ISBLANK(InfoW!AL11),\"\",InfoW!AL11)","v":""},null,{"$f":"IF(ISBLANK(InfoW!AM11),\"\",InfoW!AM11)","v":""},null,{"$f":"IF(ISBLANK(InfoW!AN11),\"\",InfoW!AN11)","v":""},null,{"$f":"IF(ISBLANK(InfoW!AO11),\"\",InfoW!AO11)","v":""},null,{"$f":"IF(ISBLANK(InfoW!AP11),\"\",InfoW!AP11)","v":""},null,{"$f":"IF(ISBLANK(InfoW!AQ11),\"\",InfoW!AQ11)","v":""}]
[]
[null,4,null,null,{"$f":"IF(ISBLANK(InfoW!X13),\"\",InfoW!X13)","v":""},null,{"$f":"IF(ISBLANK(InfoW!Y13),\"\",InfoW!Y13)","v":""},null,{"$f":"IF(ISBLANK(InfoW!Z13),\"\",InfoW!Z13)","v":""},null,{"$f":"IF(ISBLANK(InfoW!AA13),\"\",InfoW!AA13)","v":""},null,{"$f":"IF(ISBLANK(InfoW!AB13),\"\",InfoW!AB13)","v":""},null,{"$f":"IF(ISBLANK(InfoW!AC13),\"\",InfoW!AC13)","v":""},null,{"$f":"IF(ISBLANK(InfoW!AD13),\"\",InfoW!AD13)","v":""},null,{"$f":"IF(ISBLANK(InfoW!AE13),\"\",InfoW!AE13)","v":""},null,{"$f":"IF(ISBLANK(InfoW!AF13),\"\",InfoW!AF13)","v":""},null,{"$f":"IF(ISBLANK(InfoW!AG13),\"\",InfoW!AG13)","v":""},null,{"$f":"IF(ISBLANK(InfoW!AH13),\"\",InfoW!AH13)","v":""},null,{"$f":"IF(ISBLANK(InfoW!AI13),\"\",InfoW!AI13)","v":""},null,{"$f":"IF(ISBLANK(InfoW!AJ13),\"\",InfoW!AJ13)","v":""},null,{"$f":"IF(ISBLANK(InfoW!AK13),\"\",InfoW!AK13)","v":""},null,{"$f":"IF(ISBLANK(InfoW!AL13),\"\",InfoW!AL13)","v":""},null,{"$f":"IF(ISBLANK(InfoW!AM13),\"\",InfoW!AM13)","v":""},null,{"$f":"IF(ISBLANK(InfoW!AN13),\"\",InfoW!AN13)","v":""},null,{"$f":"IF(ISBLANK(InfoW!AO13),\"\",InfoW!AO13)","v":""},null,{"$f":"IF(ISBLANK(InfoW!AP13),\"\",InfoW!AP13)","v":""},null,{"$f":"IF(ISBLANK(InfoW!AQ13),\"\",InfoW!AQ13)","v":""}]
[]
[null,5,null,null,{"$f":"IF(ISBLANK(InfoW!X17),\"\",InfoW!X17)","v":""},null,{"$f":"IF(ISBLANK(InfoW!Y17),\"\",InfoW!Y17)","v":""},null,{"$f":"IF(ISBLANK(InfoW!Z17),\"\",InfoW!Z17)","v":""},null,{"$f":"IF(ISBLANK(InfoW!AA17),\"\",InfoW!AA17)","v":""},null,{"$f":"IF(ISBLANK(InfoW!AB17),\"\",InfoW!AB17)","v":""},null,{"$f":"IF(ISBLANK(InfoW!AC17),\"\",InfoW!AC17)","v":""},null,{"$f":"IF(ISBLANK(InfoW!AD17),\"\",InfoW!AD17)","v":""},null,{"$f":"IF(ISBLANK(InfoW!AE17),\"\",InfoW!AE17)","v":""},null,{"$f":"IF(ISBLANK(InfoW!AF17),\"\",InfoW!AF17)","v":""},null,{"$f":"IF(ISBLANK(InfoW!AG17),\"\",InfoW!AG17)","v":""},null,{"$f":"IF(ISBLANK(InfoW!AH17),\"\",InfoW!AH17)","v":""},null,{"$f":"IF(ISBLANK(InfoW!AI17),\"\",InfoW!AI17)","v":""},null,{"$f":"IF(ISBLANK(InfoW!AJ17),\"\",InfoW!AJ17)","v":""},null,{"$f":"IF(ISBLANK(InfoW!AK17),\"\",InfoW!AK17)","v":""},null,{"$f":"IF(ISBLANK(InfoW!AL17),\"\",InfoW!AL17)","v":""},null,{"$f":"IF(ISBLANK(InfoW!AM17),\"\",InfoW!AM17)","v":""},null,{"$f":"IF(ISBLANK(InfoW!AN17),\"\",InfoW!AN17)","v":""},null,{"$f":"IF(ISBLANK(InfoW!AO17),\"\",InfoW!AO17)","v":""},null,{"$f":"IF(ISBLANK(InfoW!AP17),\"\",InfoW!AP17)","v":""},null,{"$f":"IF(ISBLANK(InfoW!AQ17),\"\",InfoW!AQ17)","v":""}]
[]
[null,6,null,null,{"$f":"IF(ISBLANK(InfoW!X19),\"\",InfoW!X19)","v":""},null,{"$f":"IF(ISBLANK(InfoW!Y19),\"\",InfoW!Y19)","v":""},null,{"$f":"IF(ISBLANK(InfoW!Z19),\"\",InfoW!Z19)","v":""},null,{"$f":"IF(ISBLANK(InfoW!AA19),\"\",InfoW!AA19)","v":""},null,{"$f":"IF(ISBLANK(InfoW!AB19),\"\",InfoW!AB19)","v":""},null,{"$f":"IF(ISBLANK(InfoW!AC19),\"\",InfoW!AC19)","v":""},null,{"$f":"IF(ISBLANK(InfoW!AD19),\"\",InfoW!AD19)","v":""},null,{"$f":"IF(ISBLANK(InfoW!AE19),\"\",InfoW!AE19)","v":""},null,{"$f":"IF(ISBLANK(InfoW!AF19),\"\",InfoW!AF19)","v":""},null,{"$f":"IF(ISBLANK(InfoW!AG19),\"\",InfoW!AG19)","v":""},null,{"$f":"IF(ISBLANK(InfoW!AH19),\"\",InfoW!AH19)","v":""},null,{"$f":"IF(ISBLANK(InfoW!AI19),\"\",InfoW!AI19)","v":""},null,{"$f":"IF(ISBLANK(InfoW!AJ19),\"\",InfoW!AJ19)","v":""},null,{"$f":"IF(ISBLANK(InfoW!AK19),\"\",InfoW!AK19)","v":""},null,{"$f":"IF(ISBLANK(InfoW!AL19),\"\",InfoW!AL19)","v":""},null,{"$f":"IF(ISBLANK(InfoW!AM19),\"\",InfoW!AM19)","v":""},null,{"$f":"IF(ISBLANK(InfoW!AN19),\"\",InfoW!AN19)","v":""},null,{"$f":"IF(ISBLANK(InfoW!AO19),\"\",InfoW!AO19)","v":""},null,{"$f":"IF(ISBLANK(InfoW!AP19),\"\",InfoW!AP19)","v":""},null,{"$f":"IF(ISBLANK(InfoW!AQ19),\"\",InfoW!AQ19)","v":""}]
[]
[null,7,null,null,{"$f":"IF(ISBLANK(InfoW!X15),\"\",InfoW!X15)","v":""},null,{"$f":"IF(ISBLANK(InfoW!Y15),\"\",InfoW!Y15)","v":""},null,{"$f":"IF(ISBLANK(InfoW!Z15),\"\",InfoW!Z15)","v":""},null,{"$f":"IF(ISBLANK(InfoW!AA15),\"\",InfoW!AA15)","v":""},null,{"$f":"IF(ISBLANK(InfoW!AB15),\"\",InfoW!AB15)","v":""},null,{"$f":"IF(ISBLANK(InfoW!AC15),\"\",InfoW!AC15)","v":""},null,{"$f":"IF(ISBLANK(InfoW!AD15),\"\",InfoW!AD15)","v":""},null,{"$f":"IF(ISBLANK(InfoW!AE15),\"\",InfoW!AE15)","v":""},null,{"$f":"IF(ISBLANK(InfoW!AF15),\"\",InfoW!AF15)","v":""},null,{"$f":"IF(ISBLANK(InfoW!AG15),\"\",InfoW!AG15)","v":""},null,{"$f":"IF(ISBLANK(InfoW!AH15),\"\",InfoW!AH15)","v":""},null,{"$f":"IF(ISBLANK(InfoW!AI15),\"\",InfoW!AI15)","v":""},null,{"$f":"IF(ISBLANK(InfoW!AJ15),\"\",InfoW!AJ15)","v":""},null,{"$f":"IF(ISBLANK(InfoW!AK15),\"\",InfoW!AK15)","v":""},null,{"$f":"IF(ISBLANK(InfoW!AL15),\"\",InfoW!AL15)","v":""},null,{"$f":"IF(ISBLANK(InfoW!AM15),\"\",InfoW!AM15)","v":""},null,{"$f":"IF(ISBLANK(InfoW!AN15),\"\",InfoW!AN15)","v":""},null,{"$f":"IF(ISBLANK(InfoW!AO15),\"\",InfoW!AO15)","v":""},null,{"$f":"IF(ISBLANK(InfoW!AP15),\"\",InfoW!AP15)","v":""},null,{"$f":"IF(ISBLANK(InfoW!AQ15),\"\",InfoW!AQ15)","v":""}]
[]
[]
[null,null,null,null,{"$f":"IF(ISBLANK(InfoW!W22),\"\",InfoW!W22)","v":""},{"$f":"IF(ISBLANK(InfoW!X22),\"\",InfoW!X22)","v":""}]
[null,null,null,null,{"$f":"IF(ISBLANK(InfoW!W23),\"\",InfoW!W23)","v":""},{"$f":"IF(ISBLANK(InfoW!X23),\"\",InfoW!X23)","v":""}]
[]
[null,null,null,null,{"$f":"IF(ISBLANK(InfoW!W26),\"\",InfoW!W26)","v":""}]
[]
[]
[null,null,null,null,null,null,null,null,"Gehttest und Ergo parallele ungültige/unplausible Kombination > Pulmo/Kardio getrennt prüfen",null,null,null,null,null,null,null,null,null,"SVERWEIS"]
[null,null,"Rücksprache: GT6M/Ergo parallel als Mangel anzeigen (nicht auswertungsrelevant)?",null,null,null,null,null,"FIM Fortbewegung unplausibel auch wenn weder FIM- noch EBI-Daten vorliegen"]
[null,null,"\"mangelhaft\": nur auswertungsrelevant, ohne Rekordart (?), BUR, Kombi GT6M/Ergo",null,null,null,null,null,"PRÜFEN ob bei Testdaten Klinik 71 alle Dropouts aus KA auch in ZU ausgewiesen werden",null,null,null,null,null,null,null,null,null,"MB"]
[null,null,null,null,null,null,null,null,null,null,null,null,null,null,null,null,null,null,"C-E","Info'!"]
[null,null,"PRÜFEN: wird HZ/ZE fehlend ausgewiesen (über \"unvollständig\"?)",null,null,null,"ZEITPLAN",null,null,null,"Spalte",60,{"$f":"MID(ADDRESS(1,L32),2,2)","v":"BH"}]
[null,null,null,null,null,null,null,null,null,null,"Spaltennr.","ae",{"$f":"COLUMN(INDIRECT(L33&\"1\"))","v":31},null,null,null,null,null,"FF"]
[null,null,null,null,null,null,"2020-11-06",null,"Datenimport OK",null,null,null,null,null,null,null,null,null,"C-E","FID-Liste'!"]
[null,null,null,null,null,null,"2020-11-13",null,"Fallübersicht OK",null,null,null,null,null,null,null,null,null,"BX (HZ/ZE-Pruefung)","Info'! > gueltige Kombinationen"]
[null,null,null,null,null,null,"2020-11-25",null,"Prüfergebnis OK",null,null,null,null,null,null,null,null,null,"CM (FIM-Pruefung)","sucht FID wg. Verkettung mit Messzeitpunkt"]
[null,null,null,null,null,null,"2020-12-04",null,"Formeln für Instrumenteprüfung",null,null,null,null,null,null,null,null,null,"CR-CS","Info'! > Zuordnung Reha-Art/Reha-Bereich am Ende des Tabellenblattes"]
[null,null,null,null,null,null,"> 07.12.2020",null,"Formeln PS (HADS und PHQ)"]
[null,null,null,null,null,null,"2020-12-09",null,"Struktur für Prüfung erstellen, "]
[null,null,null,null,null,null,null,null,"[Kardio/Teleform 13-]"]
[null,null,null,null,null,null,"2020-12-10",null,"Mängelreport"]
[null,null,null,null,null,null,null,null,"[Rücksprache/Videokonferenz 13-15]",null,null,null,null,null,null,null,null,null,"KA"]
[null,null,null,null,null,null,null,null,null,null,null,null,null,null,null,null,null,null,"C-D, F","Info'!"]
[null,null,null,null,null,null,"offen",null,"Testen",null,null,null,null,null,null,null,null,null,null,"Info'! > Zuordnung Reha-Art/Reha-Bereich am Ende des Tabellenblattes"]
[null,null,null,null,null,null,"offen",null,"Übersetzung Version FR"]
[null,null,null,null,null,null,null,null,null,null,null,null,null,null,null,null,null,null,"ZU"]
[null,null,null,null,null,null,"offen",null,"Manual Überarbeitung Text",null,null,null,null,null,null,null,null,null,"A-C","Info'!"]
[null,null,null,null,null,null,"offen",null,"Manual Screenshots"]
[null,null,null,null,null,null,null,null,null,null,null,null,null,null,null,null,null,null,"Steuerung"]
[null,null,null,null,null,null,"   ' FORTSCHRITT 10%",null,"neue Abstufung Fortschritt",null,null,null,null,null,null,null,null,null,"A-C","Info'!"]
[null,null,null,null,null,null,null,null,null,null,null,null,null,null,null,null,null,null,"K-L","FF"]
[null,null,null,null,null,null,null,null,null,null,null,null,null,null,null,null,null,null,"M-Q","MB"]
[null,null,null,null,null,null,null,null,null,null,null,null,null,null,null,null,null,null,"R","ZU"]
[null,null,null,null,null,null,null,null,null,null,null,null,null,null,null,null,null,null,"S","Info'!"]
[null,null,null,null,null,null,null,null,null,null,null,null,null,null,null,null,null,null,"T-Y","FF"]

{"sheet":"InfoW","index":4,"n_rows":66,"n_cols":29,"rows_kept":66,"cut":false,"hidden":true,"merged":[]}
["sortierte Liste ohne Duplikate, kombiniert aus MB, FF, ZU - erstellt beim Import",{"$f":"'MB temp'!H1+5","v":5},{"$f":"'FF temp'!H1+5","v":5},null,{"$f":"'KA temp'!H1+5","v":5},null,{"$f":"'PU temp'!H1+5","v":5},null,{"$f":"'PP temp'!H1+5","v":5},null,{"$f":"'PS temp'!H1+5","v":5},null,{"$f":"'ZU temp'!H1+5","v":5},null,"andere Kategorienbildung als in Tabellenblättern",null,null,null,null,null,null,"Kliniknr. aus MB"]
[0,"Anzahl MB","Anzahl FF/RE","Anzahl FF/RA","Anzahl KA/RE","Anzahl KA/RA","Anzahl PU/RE","Anzahl PU/RA","Anzahl PP/RE","Anzahl PP/RA","Anzahl PS/RE","Anzahl PS/RA","Anzahl ZU","MB","FF","KA","PU","PP","PS","ZU","Dropout FF oder KA",null,"Test begonnen?"]
[null,{"$f":"COUNTIF(INDIRECT(\"'MB temp'!BG$6:BG$\"&$B$1),A3)","v":0},{"$f":"COUNTIF(INDIRECT(\"'FF temp'!A$6:A$\"&$C$1),A3&\"1\")","v":0},{"$f":"COUNTIF(INDIRECT(\"'FF temp'!A$6:A$\"&$C$1),A3&\"2\")","v":0},{"$f":"COUNTIF(INDIRECT(\"'KA temp'!A$6:A$\"&$E$1),A3&\"1\")","v":0},{"$f":"COUNTIF(INDIRECT(\"'KA temp'!A$6:A$\"&$E$1),A3&\"2\")","v":0},{"$f":"COUNTIF(INDIRECT(\"'PU temp'!A$6:A$\"&$G$1),A3&\"1\")","v":0},{"$f":"COUNTIF(INDIRECT(\"'PU temp'!A$6:A$\"&$G$1),A3&\"2\")","v":0},{"$f":"COUNTIF(INDIRECT(\"'PP temp'!A$6:A$\"&$I$1),A3&\"1\")","v":0},{"$f":"COUNTIF(INDIRECT(\"'PP temp'!A$6:A$\"&$I$1),A3&\"2\")","v":0},{"$f":"COUNTIF(INDIRECT(\"'PS temp'!A$6:A$\"&$K$1),A3&\"1\")","v":0},{"$f":"COUNTIF(INDIRECT(\"'PS temp'!A$6:A$\"&$K$1),A3&\"2\")","v":0},{"$f":"COUNTIF(INDIRECT(\"'ZU temp'!H$6:H$\"&$M$1),A3)","v":0},{"$f":"IF(B3=1,\"MB\",IF(B3=0,\"\",\"DUP\"))","v":""},{"$f":"IF(AND(C3=1,D3=1),\"FF\",IF(OR(C3>1,D3>1),\"DUP\",IF(C3+D3=0,\"\",IF(C3=1,\"E\",\"A\"))))","v":""},{"$f":"IF(AND(E3=1,F3=1),\"KA\",IF(OR(E3>1,F3>1),\"DUP\",IF(E3+F3=0,\"\",IF(E3=1,\"E\",\"A\"))))","v":""},{"$f":"IF(AND(G3=1,H3=1),\"PU\",IF(OR(G3>1,H3>1),\"DUP\",IF(G3+H3=0,\"\",IF(G3=1,\"E\",\"A\"))))","v":""},{"$f":"IF(AND(I3=1,J3=1),\"PP\",IF(OR(I3>1,J3>1),\"DUP\",IF(I3+J3=0,\"\",IF(I3=1,\"E\",\"A\"))))","v":""},{"$f":"IF(AND(K3=1,L3=1),\"PS\",IF(OR(K3>1,L3>1),\"DUP\",IF(K3+L3=0,\"\",IF(KI3=1,\"E\",\"A\"))))","v":""},{"$f":"IF(M3=1,\"ZU\",IF(M3=0,\"\",\"DUP\"))","v":""},{"$f":"IF(SUMIF(INDIRECT(\"'FF temp'!$H$5:$H$\"&$C$1),A3,INDIRECT(\"'FF temp'!$L$5:$L$\"&$C$1))+SUMIF(INDIRECT(\"'KA temp'!$H$5:$H$\"&$E$1),A3,INDIRECT(\"'KA temp'!$L$5:$L$\"&$E$1))+SUMIF(INDIRECT(\"'PU temp'!$H$5:$H$\"&$G$1),A3,INDIRECT(\"'PU temp'!$L$5:$L$\"&$G$1))+SUMIF(INDIRECT(\"'PP temp'!$H$5:$H$\"&$I$1),A3,INDIRECT(\"'PP temp'!$L$5:$L$\"&$I$1))+SUMIF(INDIRECT(\"'PS temp'!$H$5:$H$\"&$K$1),A3,INDIRECT(\"'PS temp'!$L$5:$L$\"&$K$1))>0,\"Drop-Out\",\"\")","v":""}]
[]
[null,null,null,null,null,null,null,null,null,null,null,null,null,null,null,null,null,null,null,null,null,null,"bereits importiert"]
[null,null,null,null,null,null,null,null,null,null,null,null,null,null,null,null,null,null,null,null,null,null,"bereits importiert: "]
[null,null,null,null,null,null,null,null,null,null,null,null,null,null,null,null,null,null,null,null,null,null,"MB"]
[]
[null,null,null,null,null,null,null,null,null,null,null,null,null,null,null,null,null,null,null,null,null,null,"ZU"]
[]
[null,null,null,null,null,null,null,null,null,null,null,null,null,null,null,null,null,null,null,null,null,null,"FF"]
[]
[null,null,null,null,null,null,null,null,null,null,null,null,null,null,null,null,null,null,null,null,null,null,"KA"]
[]
[null,null,null,null,null,null,null,null,null,null,null,null,null,null,null,null,null,null,null,null,null,null,"PU"]
[]
[null,null,null,null,null,null,null,null,null,null,null,null,null,null,null,null,null,null,null,null,null,null,"PP"]
[]
[null,null,null,null,null,null,null,null,null,null,null,null,null,null,null,null,null,null,null,null,null,null,"PS"]
[]
[null,null,null,null,null,null,null,null,null,null,null,null,null,null,null,null,null,null,null,null,null,null,"Speicherort/Kliniknummer"]
[]
[]
[]
[null,null,null,null,null,null,null,null,null,null,null,null,null,null,null,null,null,null,null,null,null,null,"Fortschritt"]
[]
[]
[null,null,null,null,null,null,null,null,null,null,null,null,null,null,null,null,null,null,null,null,null,null,"Anzahl eindeutige FID (Fallnummern)",0]
[null,null,null,null,null,null,null,null,null,null,null,null,null,null,null,null,null,null,null,null,null,null,"Fälle mit eindeutiger FID und allen erforderlichen Teildatensätzen *",null,0]
[null,null,null,null,null,null,null,null,null,null,null,null,null,null,null,null,null,null,null,null,null,null,"davon Fälle ohne Dokumentationsmängel",null,null,0]
[null,null,null,null,null,null,null,null,null,null,null,null,null,null,null,null,null,null,null,null,null,null,"davon Drop-Out-Fälle **",null,null,0]
[null,null,null,null,null,null,null,null,null,null,null,null,null,null,null,null,null,null,null,null,null,null,"davon Fälle mit Dokumentationsmängeln",null,null,0]
[null,null,null,null,null,null,null,null,null,null,null,null,null,null,null,null,null,null,null,null,null,null,"Fälle mit fehlenden Teildatensätzen (ohne Duplikate) ***",null,0]
[null,null,null,null,null,null,null,null,null,null,null,null,null,null,null,null,null,null,null,null,null,null,"davon Fälle ohne Dokumentationsmängel",null,null,0]
[null,null,null,null,null,null,null,null,null,null,null,null,null,null,null,null,null,null,null,null,null,null,"davon Fälle mit Dokumentationsmängeln",null,null,0]
[null,null,null,null,null,null,null,null,null,null,null,null,null,null,null,null,null,null,null,null,null,null,"Fälle mit Duplikaten in mindestens einem Teildatensatz",null,0]
[null,null,null,null,null,null,null,null,null,null,null,null,null,null,null,null,null,null,null,null,null,null,"Fälle mit Duplikaten in mindestens einem Teildatensatz",null,null,0]
[null,null,null,null,null,null,null,null,null,null,null,null,null,null,null,null,null,null,null,null,null,null,null,24,25,26,27,28,29]
[null,null,null,null,null,null,null,null,null,null,null,null,null,null,null,null,null,null,null,null,null,null,"unklar / fehlend",0]
[null,null,null,null,null,null,null,null,null,null,null,null,null,null,null,null,null,null,null,null,null,null,"Geriatrische Reha",0]
[null,null,null,null,null,null,null,null,null,null,null,null,null,null,null,null,null,null,null,null,null,null,"Internistische Reha",0]
[null,null,null,null,null,null,null,null,null,null,null,null,null,null,null,null,null,null,null,null,null,null,"Kardiale Reha",0]
[null,null,null,null,null,null,null,null,null,null,null,null,null,null,null,null,null,null,null,null,null,null,"Muskuloskelettale Reha",0]
[null,null,null,null,null,null,null,null,null,null,null,null,null,null,null,null,null,null,null,null,null,null,"Neurologische Reha",0]
[null,null,null,null,null,null,null,null,null,null,null,null,null,null,null,null,null,null,null,null,null,null,"Onkologische Reha",0]
[null,null,null,null,null,null,null,null,null,null,null,null,null,null,null,null,null,null,null,null,null,null,"Paraplegiologische Reha",0]
[null,null,null,null,null,null,null,null,null,null,null,null,null,null,null,null,null,null,null,null,null,null,"Psychosomatische Reha",0]
[null,null,null,null,null,null,null,null,null,null,null,null,null,null,null,null,null,null,null,null,null,null,"Pulmonale Reha",0]
[null,null,null,null,null,null,null,null,null,null,null,null,null,null,null,null,null,null,null,null,null,null,null,"Total","FID OK","FID DUP","FID MIS","mangelhaft","fehlend"]
[null,null,null,null,null,null,null,null,null,null,null,null,null,null,null,null,null,null,null,null,null,null,"MB"]
[null,null,null,null,null,null,null,null,null,null,null,null,null,null,null,null,null,null,null,null,null,null,"ZU"]
[null,null,null,null,null,null,null,null,null,null,null,null,null,null,null,null,null,null,null,null,null,null,"FF (E)"]
[null,null,null,null,null,null,null,null,null,null,null,null,null,null,null,null,null,null,null,null,null,null,"FF (A)"]
[null,null,null,null,null,null,null,null,null,null,null,null,null,null,null,null,null,null,null,null,null,null,"FF (E/A)°"]
[null,null,null,null,null,null,null,null,null,null,null,null,null,null,null,null,null,null,null,null,null,null,"KA (E)"]
[null,null,null,null,null,null,null,null,null,null,null,null,null,null,null,null,null,null,null,null,null,null,"KA (A)"]
[null,null,null,null,null,null,null,null,null,null,null,null,null,null,null,null,null,null,null,null,null,null,"KA (E/A)°"]
[null,null,null,null,null,null,null,null,null,null,null,null,null,null,null,null,null,null,null,null,null,null,"PU (E)"]
[null,null,null,null,null,null,null,null,null,null,null,null,null,null,null,null,null,null,null,null,null,null,"PU (A)"]
[null,null,null,null,null,null,null,null,null,null,null,null,null,null,null,null,null,null,null,null,null,null,"PU (E/A)°"]
[null,null,null,null,null,null,null,null,null,null,null,null,null,null,null,null,null,null,null,null,null,null,"PP (E)"]
[null,null,null,null,null,null,null,null,null,null,null,null,null,null,null,null,null,null,null,null,null,null,"PP (A)"]
[null,null,null,null,null,null,null,null,null,null,null,null,null,null,null,null,null,null,null,null,null,null,"PP (E/A)°"]
[null,null,null,null,null,null,null,null,null,null,null,null,null,null,null,null,null,null,null,null,null,null,"PS (E)"]
[null,null,null,null,null,null,null,null,null,null,null,null,null,null,null,null,null,null,null,null,null,null,"PS (A)"]
[null,null,null,null,null,null,null,null,null,null,null,null,null,null,null,null,null,null,null,null,null,null,"PS (E/A)°"]

{"sheet":"InfoR","index":5,"n_rows":471,"n_cols":181,"rows_kept":471,"cut":false,"hidden":true,"merged":[]}
[null,null,null,null,null,null,null,null,null,null,null,null,null,null,"Länderkodes ISO 3166 ALPHA-3 ",null,null,null,null,null,null,null,null,null,null,null,null,null,null,null,null,null,null,null,null,null,null,null,null,null,null,null,null,null,null,null,null,null,null,null,null,null,null,null,null,null,null,null,null,null,null,null,null,null,null,null,null,null,null,null,null,null,null,null,null,null,null,2021]
[null,null,null,null,null,null,null,null,null,null,null,null,null,null,"XXA","Spezialkode für Staatenlose (\"NON\" wird einzeln abegefragt)"]
[null,null,null,null,null,null,null,null,null,null,null,null,null,null,"CH","Sonderfall CH zweistellig wird toleriert"]
[null,null,null,null,null,null,null,null,null,null,null,null,null,null,"YUG","Yugoslavia (Federal Republic of)"]
[null,null,"1_ Datum",null,"ZE_01 Zielanpassung des zu Reha-Beginn festgelegten Hauptziels","ZE_02_1 Zielerreichung ursprüngliches Ziel","ZE_02_2 statt dessen erreichtes Ziel ","ZE_02_3 Unterstützungsbedarf des statt dessen erreichten Ziels ","ZE_03_1 Angepasstes Ziel","ZE_03_2 Unterstützungsbedarf angepasstes Ziel","ZE_04_1 Zielerreichung angepasstes Ziel","ZE_04_2  statt dessen erreichtes Ziel","ZE_04_3 Unterstützungsbedarf des statt dessen erreichten Ziels",null,"XKX","Kosovo"]
[null,null,"ZE gültige Kombinationen",null,null,null,null,null,null,null,null,null,null,null,"SCG","Serbia and Montenegro"]
[null,197,{"$f":"\"1_||\"&E7&\"|\"&F7&\"|\"&G7&\"|\"&H7&\"|\"&I7&\"|\"&J7&\"|\"&K7&\"|\"&L7&\"|\"&M7","v":"1_||||||||||"},null,null,null,null,null,null,null,null,null,null,null,"SRB","Serbia"]
[null,1,"1_||0|1|||||||",true,0,1,null,null,null,null,null,null,null,null,"SER","Serbien und Montenegro"]
[null,2,"1_||0|2|1||||||",true,0,2,1,null,null,null,null,null,null,null,"MNE","Montenegro"]
[null,13,"1_||0|2|10|0|||||",true,0,2,10,0,null,null,null,null,null,null,"MKD","Macedonia, the former Yugoslav Republic of"]
[null,14,"1_||0|2|10|1|||||",true,0,2,10,1,null,null,null,null,null,null,"FYR","Macedonia, The Former Yugoslav Republic of"]
[null,3,"1_||0|2|2||||||",true,0,2,2,null,null,null,null,null,null,null,"TMP","Timor-Leste"]
[null,4,"1_||0|2|3|0|||||",true,0,2,3,0,null,null,null,null,null,null,"TZN","Tanzania"]
[null,5,"1_||0|2|3|1|||||",true,0,2,3,1,null,null,null,null,null,null,"TZA","Tanzania, United Republic of"]
[null,6,"1_||0|2|4|0|||||",true,0,2,4,0,null,null,null,null,null,null,"ABW","Aruba"]
[null,7,"1_||0|2|4|1|||||",true,0,2,4,1,null,null,null,null,null,null,"ACI","Ashmore and Cartier Islands"]
[null,8,"1_||0|2|5||||||",true,0,2,5,null,null,null,null,null,null,null,"AFG","Afghanistan"]
[null,9,"1_||0|2|6||||||",true,0,2,6,null,null,null,null,null,null,null,"AGO","Angola"]
[null,10,"1_||0|2|7||||||",true,0,2,7,null,null,null,null,null,null,null,"AIA","Anguilla"]
[null,11,"1_||0|2|8||||||",true,0,2,8,null,null,null,null,null,null,null,"ALA","Åland Islands"]
[null,12,"1_||0|2|9||||||",true,0,2,9,null,null,null,null,null,null,null,"ALB","Albania"]
[null,15,"1_||1||||1||1||",true,1,null,null,null,1,null,1,null,null,null,"AND","Andorra"]
[null,28,"1_||1||||1||2|1|",true,1,null,null,null,1,null,2,1,null,null,"ARE","United Arab Emirates"]
[null,171,"1_||1||||1||2|10|0",true,1,null,null,null,1,null,2,10,0,null,"ARG","Argentina"]
[null,184,"1_||1||||1||2|10|1",true,1,null,null,null,1,null,2,10,1,null,"ARM","Armenia"]
[null,41,"1_||1||||1||2|2|",true,1,null,null,null,1,null,2,2,null,null,"ASM","American Samoa"]
[null,54,"1_||1||||1||2|3|0",true,1,null,null,null,1,null,2,3,0,null,"ATA","Antarctica"]
[null,67,"1_||1||||1||2|3|1",true,1,null,null,null,1,null,2,3,1,null,"ATF","French Southern Territories"]
[null,80,"1_||1||||1||2|4|0",true,1,null,null,null,1,null,2,4,0,null,"ATG","Antigua and Barbuda"]
[null,93,"1_||1||||1||2|4|1",true,1,null,null,null,1,null,2,4,1,null,"AUS","Australia"]
[null,106,"1_||1||||1||2|5|",true,1,null,null,null,1,null,2,5,null,null,"AUT","Austria"]
[null,119,"1_||1||||1||2|6|",true,1,null,null,null,1,null,2,6,null,null,"AZE","Azerbaijan"]
[null,132,"1_||1||||1||2|7|",true,1,null,null,null,1,null,2,7,null,null,"BDI","Burundi"]
[null,145,"1_||1||||1||2|8|",true,1,null,null,null,1,null,2,8,null,null,"BEL","Belgium"]
[null,158,"1_||1||||1||2|9|",true,1,null,null,null,1,null,2,9,null,null,"BEN","Benin"]
[null,26,"1_||1||||10|0|1||",true,1,null,null,null,10,0,1,null,null,null,"BES","Bonaire, Sint Eustatius and Saba"]
[null,39,"1_||1||||10|0|2|1|",true,1,null,null,null,10,0,2,1,null,null,"BFA","Burkina Faso"]
[null,182,"1_||1||||10|0|2|10|0",true,1,null,null,null,10,0,2,10,0,null,"BGD","Bangladesh"]
[null,195,"1_||1||||10|0|2|10|1",true,1,null,null,null,10,0,2,10,1,null,"BGR","Bulgaria"]
[null,52,"1_||1||||10|0|2|2|",true,1,null,null,null,10,0,2,2,null,null,"BHR","Bahrain"]
[null,65,"1_||1||||10|0|2|3|0",true,1,null,null,null,10,0,2,3,0,null,"BHS","Bahamas"]
[null,78,"1_||1||||10|0|2|3|1",true,1,null,null,null,10,0,2,3,1,null,"BIH","Bosnia and Herzegovina"]
[null,91,"1_||1||||10|0|2|4|0",true,1,null,null,null,10,0,2,4,0,null,"BLM","Saint Barthélemy"]
[null,104,"1_||1||||10|0|2|4|1",true,1,null,null,null,10,0,2,4,1,null,"BLR","Belarus"]
[null,117,"1_||1||||10|0|2|5|",true,1,null,null,null,10,0,2,5,null,null,"BLZ","Belize"]
[null,130,"1_||1||||10|0|2|6|",true,1,null,null,null,10,0,2,6,null,null,"BMU","Bermuda"]
[null,143,"1_||1||||10|0|2|7|",true,1,null,null,null,10,0,2,7,null,null,"BOL","Bolivia, Plurinational State of"]
[null,156,"1_||1||||10|0|2|8|",true,1,null,null,null,10,0,2,8,null,null,"BRA","Brazil"]
[null,169,"1_||1||||10|0|2|9|",true,1,null,null,null,10,0,2,9,null,null,"BRB","Barbados"]
[null,27,"1_||1||||10|1|1||",true,1,null,null,null,10,1,1,null,null,null,"BRN","Brunei Darussalam"]
[null,40,"1_||1||||10|1|2|1|",true,1,null,null,null,10,1,2,1,null,null,"BTN","Bhutan"]
[null,183,"1_||1||||10|1|2|10|0",true,1,null,null,null,10,1,2,10,0,null,"BVT","Bouvet Island"]
[null,196,"1_||1||||10|1|2|10|1",true,1,null,null,null,10,1,2,10,1,null,"BWA","Botswana"]
[null,53,"1_||1||||10|1|2|2|",true,1,null,null,null,10,1,2,2,null,null,"CAF","Central African Republic"]
[null,66,"1_||1||||10|1|2|3|0",true,1,null,null,null,10,1,2,3,0,null,"CAN","Canada"]
[null,79,"1_||1||||10|1|2|3|1",true,1,null,null,null,10,1,2,3,1,null,"CCK","Cocos (Keeling) Islands"]
[null,92,"1_||1||||10|1|2|4|0",true,1,null,null,null,10,1,2,4,0,null,"CHE","Switzerland"]
[null,105,"1_||1||||10|1|2|4|1",true,1,null,null,null,10,1,2,4,1,null,"CHL","Chile"]
[null,118,"1_||1||||10|1|2|5|",true,1,null,null,null,10,1,2,5,null,null,"CHN","China"]
[null,131,"1_||1||||10|1|2|6|",true,1,null,null,null,10,1,2,6,null,null,"CIV","Côte d'Ivoire"]
[null,144,"1_||1||||10|1|2|7|",true,1,null,null,null,10,1,2,7,null,null,"CMR","Cameroon"]
[null,157,"1_||1||||10|1|2|8|",true,1,null,null,null,10,1,2,8,null,null,"COD","Congo, the Democratic Republic of the"]
[null,170,"1_||1||||10|1|2|9|",true,1,null,null,null,10,1,2,9,null,null,"COG","Congo"]
[null,16,"1_||1||||2||1||",true,1,null,null,null,2,null,1,null,null,null,"COK","Cook Islands"]
[null,29,"1_||1||||2||2|1|",true,1,null,null,null,2,null,2,1,null,null,"COL","Colombia"]
[null,172,"1_||1||||2||2|10|0",true,1,null,null,null,2,null,2,10,0,null,"COM","Comoros"]
[null,185,"1_||1||||2||2|10|1",true,1,null,null,null,2,null,2,10,1,null,"CPV","Cabo Verde"]
[null,42,"1_||1||||2||2|2|",true,1,null,null,null,2,null,2,2,null,null,"CRI","Costa Rica"]
[null,55,"1_||1||||2||2|3|0",true,1,null,null,null,2,null,2,3,0,null,"CSI","Coral Sea Islands"]
[null,68,"1_||1||||2||2|3|1",true,1,null,null,null,2,null,2,3,1,null,"CUB","Cuba"]
[null,81,"1_||1||||2||2|4|0",true,1,null,null,null,2,null,2,4,0,null,"CUW","Curaçao"]
[null,94,"1_||1||||2||2|4|1",true,1,null,null,null,2,null,2,4,1,null,"CXR","Christmas Island"]
[null,107,"1_||1||||2||2|5|",true,1,null,null,null,2,null,2,5,null,null,"CYM","Cayman Islands"]
[null,120,"1_||1||||2||2|6|",true,1,null,null,null,2,null,2,6,null,null,"CYP","Cyprus"]
[null,133,"1_||1||||2||2|7|",true,1,null,null,null,2,null,2,7,null,null,"CZE","Czechia"]
[null,146,"1_||1||||2||2|8|",true,1,null,null,null,2,null,2,8,null,null,"DEU","Germany"]
[null,159,"1_||1||||2||2|9|",true,1,null,null,null,2,null,2,9,null,null,"DJI","Djibouti"]
[null,17,"1_||1||||3|0|1||",true,1,null,null,null,3,0,1,null,null,null,"DMA","Dominica"]
[null,30,"1_||1||||3|0|2|1|",true,1,null,null,null,3,0,2,1,null,null,"DNK","Denmark"]
[null,173,"1_||1||||3|0|2|10|0",true,1,null,null,null,3,0,2,10,0,null,"DOM","Dominican Republic"]
[null,186,"1_||1||||3|0|2|10|1",true,1,null,null,null,3,0,2,10,1,null,"DZA","Algeria"]
[null,43,"1_||1||||3|0|2|2|",true,1,null,null,null,3,0,2,2,null,null,"ECU","Ecuador"]
[null,56,"1_||1||||3|0|2|3|0",true,1,null,null,null,3,0,2,3,0,null,"EGY","Egypt"]
[null,69,"1_||1||||3|0|2|3|1",true,1,null,null,null,3,0,2,3,1,null,"ERI","Eritrea"]
[null,82,"1_||1||||3|0|2|4|0",true,1,null,null,null,3,0,2,4,0,null,"ESH","Western Sahara"]
[null,95,"1_||1||||3|0|2|4|1",true,1,null,null,null,3,0,2,4,1,null,"ESP","Spain"]
[null,108,"1_||1||||3|0|2|5|",true,1,null,null,null,3,0,2,5,null,null,"EST","Estonia"]
[null,121,"1_||1||||3|0|2|6|",true,1,null,null,null,3,0,2,6,null,null,"ETH","Ethiopia"]
[null,134,"1_||1||||3|0|2|7|",true,1,null,null,null,3,0,2,7,null,null,"FIN","Finland"]
[null,147,"1_||1||||3|0|2|8|",true,1,null,null,null,3,0,2,8,null,null,"FJI","Fiji"]
[null,160,"1_||1||||3|0|2|9|",true,1,null,null,null,3,0,2,9,null,null,"FLK","Falkland Islands (Malvinas)"]
[null,18,"1_||1||||3|1|1||",true,1,null,null,null,3,1,1,null,null,null,"FRA","France"]
[null,31,"1_||1||||3|1|2|1|",true,1,null,null,null,3,1,2,1,null,null,"FRO","Faroe Islands"]
[null,174,"1_||1||||3|1|2|10|0",true,1,null,null,null,3,1,2,10,0,null,"FSM","Micronesia, Federated States of"]
[null,187,"1_||1||||3|1|2|10|1",true,1,null,null,null,3,1,2,10,1,null,"GAB","Gabon"]
[null,44,"1_||1||||3|1|2|2|",true,1,null,null,null,3,1,2,2,null,null,"GBR","United Kingdom"]
[null,57,"1_||1||||3|1|2|3|0",true,1,null,null,null,3,1,2,3,0,null,"GEO","Georgia"]
[null,70,"1_||1||||3|1|2|3|1",true,1,null,null,null,3,1,2,3,1,null,"GGY","Guernsey"]
[null,83,"1_||1||||3|1|2|4|0",true,1,null,null,null,3,1,2,4,0,null,"GHA","Ghana"]
[null,96,"1_||1||||3|1|2|4|1",true,1,null,null,null,3,1,2,4,1,null,"GIB","Gibraltar"]
[null,109,"1_||1||||3|1|2|5|",true,1,null,null,null,3,1,2,5,null,null,"GIN","Guinea"]
[null,122,"1_||1||||3|1|2|6|",true,1,null,null,null,3,1,2,6,null,null,"GLP","Guadeloupe"]
[null,135,"1_||1||||3|1|2|7|",true,1,null,null,null,3,1,2,7,null,null,"GMB","Gambia"]
[null,148,"1_||1||||3|1|2|8|",true,1,null,null,null,3,1,2,8,null,null,"GNB","Guinea-Bissau"]
[null,161,"1_||1||||3|1|2|9|",true,1,null,null,null,3,1,2,9,null,null,"GNQ","Equatorial Guinea"]
[null,19,"1_||1||||4|0|1||",true,1,null,null,null,4,0,1,null,null,null,"GRC","Greece"]
[null,32,"1_||1||||4|0|2|1|",true,1,null,null,null,4,0,2,1,null,null,"GRD","Grenada"]
[null,175,"1_||1||||4|0|2|10|0",true,1,null,null,null,4,0,2,10,0,null,"GRL","Greenland"]
[null,188,"1_||1||||4|0|2|10|1",true,1,null,null,null,4,0,2,10,1,null,"GTM","Guatemala"]
[null,45,"1_||1||||4|0|2|2|",true,1,null,null,null,4,0,2,2,null,null,"GUF","French Guiana"]
[null,58,"1_||1||||4|0|2|3|0",true,1,null,null,null,4,0,2,3,0,null,"GUM","Guam"]
[null,71,"1_||1||||4|0|2|3|1",true,1,null,null,null,4,0,2,3,1,null,"GUY","Guyana"]
[null,84,"1_||1||||4|0|2|4|0",true,1,null,null,null,4,0,2,4,0,null,"HKG","Hong Kong"]
[null,97,"1_||1||||4|0|2|4|1",true,1,null,null,null,4,0,2,4,1,null,"HMD","Heard Island and McDonald Islands"]
[null,110,"1_||1||||4|0|2|5|",true,1,null,null,null,4,0,2,5,null,null,"HND","Honduras"]
[null,123,"1_||1||||4|0|2|6|",true,1,null,null,null,4,0,2,6,null,null,"HQI","Howland Island"]
[null,136,"1_||1||||4|0|2|7|",true,1,null,null,null,4,0,2,7,null,null,"HRV","Croatia"]
[null,149,"1_||1||||4|0|2|8|",true,1,null,null,null,4,0,2,8,null,null,"HTI","Haiti"]
[null,162,"1_||1||||4|0|2|9|",true,1,null,null,null,4,0,2,9,null,null,"HUN","Hungary"]
[null,20,"1_||1||||4|1|1||",true,1,null,null,null,4,1,1,null,null,null,"IDN","Indonesia"]
[null,33,"1_||1||||4|1|2|1|",true,1,null,null,null,4,1,2,1,null,null,"IMN","Isle of Man"]
[null,176,"1_||1||||4|1|2|10|0",true,1,null,null,null,4,1,2,10,0,null,"IND","India"]
[null,189,"1_||1||||4|1|2|10|1",true,1,null,null,null,4,1,2,10,1,null,"IOT","British Indian Ocean Territory"]
[null,46,"1_||1||||4|1|2|2|",true,1,null,null,null,4,1,2,2,null,null,"IRL","Ireland"]
[null,59,"1_||1||||4|1|2|3|0",true,1,null,null,null,4,1,2,3,0,null,"IRN","Iran, Islamic Republic of"]
[null,72,"1_||1||||4|1|2|3|1",true,1,null,null,null,4,1,2,3,1,null,"IRQ","Iraq"]
[null,85,"1_||1||||4|1|2|4|0",true,1,null,null,null,4,1,2,4,0,null,"ISL","Iceland"]
[null,98,"1_||1||||4|1|2|4|1",true,1,null,null,null,4,1,2,4,1,null,"ISR","Israel"]
[null,111,"1_||1||||4|1|2|5|",true,1,null,null,null,4,1,2,5,null,null,"ITA","Italy"]
[null,124,"1_||1||||4|1|2|6|",true,1,null,null,null,4,1,2,6,null,null,"JAM","Jamaica"]
[null,137,"1_||1||||4|1|2|7|",true,1,null,null,null,4,1,2,7,null,null,"JEY","Jersey"]
[null,150,"1_||1||||4|1|2|8|",true,1,null,null,null,4,1,2,8,null,null,"JNM","Jan Mayen Island"]
[null,163,"1_||1||||4|1|2|9|",true,1,null,null,null,4,1,2,9,null,null,"JOR","Jordan"]
[null,21,"1_||1||||5||1||",true,1,null,null,null,5,null,1,null,null,null,"JPN","Japan"]
[null,34,"1_||1||||5||2|1|",true,1,null,null,null,5,null,2,1,null,null,"JQA","Johnston Atoll"]
[null,177,"1_||1||||5||2|10|0",true,1,null,null,null,5,null,2,10,0,null,"KAZ","Kazakhstan"]
[null,190,"1_||1||||5||2|10|1",true,1,null,null,null,5,null,2,10,1,null,"KEN","Kenya"]
[null,47,"1_||1||||5||2|2|",true,1,null,null,null,5,null,2,2,null,null,"KGZ","Kyrgyzstan"]
[null,60,"1_||1||||5||2|3|0",true,1,null,null,null,5,null,2,3,0,null,"KHM","Cambodia"]
[null,73,"1_||1||||5||2|3|1",true,1,null,null,null,5,null,2,3,1,null,"KIR","Kiribati"]
[null,86,"1_||1||||5||2|4|0",true,1,null,null,null,5,null,2,4,0,null,"KNA","Saint Kitts and Nevis"]
[null,99,"1_||1||||5||2|4|1",true,1,null,null,null,5,null,2,4,1,null,"KOR","Korea, Republic of"]
[null,112,"1_||1||||5||2|5|",true,1,null,null,null,5,null,2,5,null,null,"KWT","Kuwait"]
[null,125,"1_||1||||5||2|6|",true,1,null,null,null,5,null,2,6,null,null,"LAO","Lao People's Democratic Republic"]
[null,138,"1_||1||||5||2|7|",true,1,null,null,null,5,null,2,7,null,null,"LBN","Lebanon"]
[null,151,"1_||1||||5||2|8|",true,1,null,null,null,5,null,2,8,null,null,"LBR","Liberia"]
[null,164,"1_||1||||5||2|9|",true,1,null,null,null,5,null,2,9,null,null,"LBY","Libya"]
[null,22,"1_||1||||6||1||",true,1,null,null,null,6,null,1,null,null,null,"LCA","Saint Lucia"]
[null,35,"1_||1||||6||2|1|",true,1,null,null,null,6,null,2,1,null,null,"LIE","Liechtenstein"]
[null,178,"1_||1||||6||2|10|0",true,1,null,null,null,6,null,2,10,0,null,"LKA","Sri Lanka"]
[null,191,"1_||1||||6||2|10|1",true,1,null,null,null,6,null,2,10,1,null,"LSO","Lesotho"]
[null,48,"1_||1||||6||2|2|",true,1,null,null,null,6,null,2,2,null,null,"LTU","Lithuania"]
[null,61,"1_||1||||6||2|3|0",true,1,null,null,null,6,null,2,3,0,null,"LUX","Luxembourg"]
[null,74,"1_||1||||6||2|3|1",true,1,null,null,null,6,null,2,3,1,null,"LVA","Latvia"]
[null,87,"1_||1||||6||2|4|0",true,1,null,null,null,6,null,2,4,0,null,"MAC","Macao"]
[null,100,"1_||1||||6||2|4|1",true,1,null,null,null,6,null,2,4,1,null,"MAF","Saint Martin (French part)"]
[null,113,"1_||1||||6||2|5|",true,1,null,null,null,6,null,2,5,null,null,"MAR","Morocco"]
[null,126,"1_||1||||6||2|6|",true,1,null,null,null,6,null,2,6,null,null,"MCO","Monaco"]
[null,139,"1_||1||||6||2|7|",true,1,null,null,null,6,null,2,7,null,null,"MDA","Moldova, Republic of"]
[null,152,"1_||1||||6||2|8|",true,1,null,null,null,6,null,2,8,null,null,"MDG","Madagascar"]
[null,165,"1_||1||||6||2|9|",true,1,null,null,null,6,null,2,9,null,null,"MDV","Maldives"]
[null,23,"1_||1||||7||1||",true,1,null,null,null,7,null,1,null,null,null,"MEX","Mexico"]
[null,36,"1_||1||||7||2|1|",true,1,null,null,null,7,null,2,1,null,null,"MHL","Marshall Islands"]
[null,179,"1_||1||||7||2|10|0",true,1,null,null,null,7,null,2,10,0,null,"MLI","Mali"]
[null,192,"1_||1||||7||2|10|1",true,1,null,null,null,7,null,2,10,1,null,"MLT","Malta"]
[null,49,"1_||1||||7||2|2|",true,1,null,null,null,7,null,2,2,null,null,"MMR","Myanmar"]
[null,62,"1_||1||||7||2|3|0",true,1,null,null,null,7,null,2,3,0,null,"MNG","Mongolia"]
[null,75,"1_||1||||7||2|3|1",true,1,null,null,null,7,null,2,3,1,null,"MNP","Northern Mariana Islands"]
[null,88,"1_||1||||7||2|4|0",true,1,null,null,null,7,null,2,4,0,null,"MOZ","Mozambique"]
[null,101,"1_||1||||7||2|4|1",true,1,null,null,null,7,null,2,4,1,null,"MRT","Mauritania"]
[null,114,"1_||1||||7||2|5|",true,1,null,null,null,7,null,2,5,null,null,"MSR","Montserrat"]
[null,127,"1_||1||||7||2|6|",true,1,null,null,null,7,null,2,6,null,null,"MTQ","Martinique"]
[null,140,"1_||1||||7||2|7|",true,1,null,null,null,7,null,2,7,null,null,"MUS","Mauritius"]
[null,153,"1_||1||||7||2|8|",true,1,null,null,null,7,null,2,8,null,null,"MWI","Malawi"]
[null,166,"1_||1||||7||2|9|",true,1,null,null,null,7,null,2,9,null,null,"MYS","Malaysia"]
[null,24,"1_||1||||8||1||",true,1,null,null,null,8,null,1,null,null,null,"MYT","Mayotte"]
[null,37,"1_||1||||8||2|1|",true,1,null,null,null,8,null,2,1,null,null,"NAM","Namibia"]
[null,180,"1_||1||||8||2|10|0",true,1,null,null,null,8,null,2,10,0,null,"NCL","New Caledonia"]
[null,193,"1_||1||||8||2|10|1",true,1,null,null,null,8,null,2,10,1,null,"NER","Niger"]
[null,50,"1_||1||||8||2|2|",true,1,null,null,null,8,null,2,2,null,null,"NFK","Norfolk Island"]
[null,63,"1_||1||||8||2|3|0",true,1,null,null,null,8,null,2,3,0,null,"NGA","Nigeria"]
[null,76,"1_||1||||8||2|3|1",true,1,null,null,null,8,null,2,3,1,null,"NIC","Nicaragua"]
[null,89,"1_||1||||8||2|4|0",true,1,null,null,null,8,null,2,4,0,null,"NIU","Niue"]
[null,102,"1_||1||||8||2|4|1",true,1,null,null,null,8,null,2,4,1,null,"NLD","Netherlands"]
[null,115,"1_||1||||8||2|5|",true,1,null,null,null,8,null,2,5,null,null,"NOR","Norway"]
[null,128,"1_||1||||8||2|6|",true,1,null,null,null,8,null,2,6,null,null,"NPL","Nepal"]
[null,141,"1_||1||||8||2|7|",true,1,null,null,null,8,null,2,7,null,null,"NRU","Nauru"]
[null,154,"1_||1||||8||2|8|",true,1,null,null,null,8,null,2,8,null,null,"NZL","New Zealand"]
[null,167,"1_||1||||8||2|9|",true,1,null,null,null,8,null,2,9,null,null,"OMN","Oman"]
[null,25,"1_||1||||9||1||",true,1,null,null,null,9,null,1,null,null,null,"PAK","Pakistan"]
[null,38,"1_||1||||9||2|1|",true,1,null,null,null,9,null,2,1,null,null,"PAN","Panama"]
[null,181,"1_||1||||9||2|10|0",true,1,null,null,null,9,null,2,10,0,null,"PCN","Pitcairn"]
[null,194,"1_||1||||9||2|10|1",true,1,null,null,null,9,null,2,10,1,null,"PER","Peru"]
[null,51,"1_||1||||9||2|2|",true,1,null,null,null,9,null,2,2,null,null,"PFI","Paracel Islands"]
[null,64,"1_||1||||9||2|3|0",true,1,null,null,null,9,null,2,3,0,null,"PHL","Philippines"]
[null,77,"1_||1||||9||2|3|1",true,1,null,null,null,9,null,2,3,1,null,"PLW","Palau"]
[null,90,"1_||1||||9||2|4|0",true,1,null,null,null,9,null,2,4,0,null,"PNG","Papua New Guinea"]
[null,103,"1_||1||||9||2|4|1",true,1,null,null,null,9,null,2,4,1,null,"POL","Poland"]
[null,116,"1_||1||||9||2|5|",true,1,null,null,null,9,null,2,5,null,null,"PRI","Puerto Rico"]
[null,129,"1_||1||||9||2|6|",true,1,null,null,null,9,null,2,6,null,null,"PRK","Korea, Democratic People's Republic of"]
[null,142,"1_||1||||9||2|7|",true,1,null,null,null,9,null,2,7,null,null,"PRT","Portugal"]
[null,155,"1_||1||||9||2|8|",true,1,null,null,null,9,null,2,8,null,null,"PRY","Paraguay"]
[null,168,"1_||1||||9||2|9|",true,1,null,null,null,9,null,2,9,null,null,"PSE","Palestine, State of"]
[null,201,"1_1||||||||||",true,null,null,null,null,null,null,null,null,null,null,"PYF","French Polynesia"]
[null,202,"1_2||||||||||",true,null,null,null,null,null,null,null,null,null,null,"QAT","Qatar"]
[null,203,"1_3|0|||||||||",true,null,null,null,null,null,null,null,null,null,null,"REU","Réunion"]
[null,204,"1_3|1|||||||||",true,null,null,null,null,null,null,null,null,null,null,"ROU","Romania"]
[null,205,"1_4|0|||||||||",true,null,null,null,null,null,null,null,null,null,null,"RUS","Russian Federation"]
[null,206,"1_4|1|||||||||",true,null,null,null,null,null,null,null,null,null,null,"RWA","Rwanda"]
[null,207,"1_5||||||||||",true,null,null,null,null,null,null,null,null,null,null,"SAU","Saudi Arabia"]
[null,208,"1_6||||||||||",true,null,null,null,null,null,null,null,null,null,null,"SDN","Sudan"]
[null,209,"1_7||||||||||",true,null,null,null,null,null,null,null,null,null,null,"SEN","Senegal"]
[null,210,"1_8||||||||||",true,null,null,null,null,null,null,null,null,null,null,"SGP","Singapore"]
[null,211,"1_9||||||||||",true,null,null,null,null,null,null,null,null,null,null,"SGS","South Georgia and the South Sandwich Islands"]
[null,212,"1_10|0|||||||||",true,null,null,null,null,null,null,null,null,null,null,"SHN","Saint Helena, Ascension and Tristan da Cunha"]
[null,213,"1_10|1|||||||||",true,null,null,null,null,null,null,null,null,null,null,"SJM","Svalbard and Jan Mayen"]
[null,null,null,null,null,null,null,null,null,null,null,null,null,null,"SLB","Solomon Islands"]
[null,null,null,null,null,null,null,null,null,null,null,null,null,null,"SLE","Sierra Leone"]
[null,null,null,null,null,null,null,null,null,null,null,null,null,null,"SLV","El Salvador"]
[null,null,null,null,null,null,null,null,null,null,null,null,null,null,"SMR","San Marino"]
[null,null,null,null,null,null,null,null,null,null,null,null,null,null,"SOM","Somalia"]
[null,null,">>> Hintereinanderschreiben ohne Trennzeichen _",null,null,null,null,"NEU 2021",null,null,null,null,null,null,"SPM","Saint Pierre and Miquelon"]
[null,null,null,null,null,null,null,null,null,null,null,null,null,null,"SSD","South Sudan"]
[null,null,"|||","",null,null,null,"_","",null,null,null,null,null,"STP","Sao Tome and Principe"]
[null,null,"|||1","MSK","Geri",null,null,"_1","Geri",null,null,null,null,null,"SUR","Suriname"]
[null,null,"||1|","MSK","Geri",null,null,"_11","Geri",null,null,null,null,null,"SVK","Slovakia"]
[null,null,"||1|1","MSK","Geri",null,null,"_111","Geri",null,null,null,null,null,"SVN","Slovenia"]
[null,null,"|1||","MSK","Geri",null,null,"_1111","Geri",null,null,null,null,null,"SWE","Sweden"]
[null,null,"|1||1","MSK","Geri",null,null,"_11111","Geri",null,null,null,null,null,"SWZ","Eswatini"]
[null,null,"|1|1|","MSK","Geri",null,null,"_111111","Geri",null,null,null,null,null,"SXM","Sint Maarten (Dutch part)"]
[null,null,"|1|1|1","MSK","Geri",null,null,"_1111111","Geri",null,null,null,null,null,"SYC","Seychelles"]
[null,null,"1|||","MSK","Geri",null,null,"_11111111","Geri",null,null,null,null,null,"SYR","Syrian Arab Republic"]
[null,null,"1|||1","MSK","Geri",null,null,"_11111111","Geri",null,null,null,null,null,"TCA","Turks and Caicos Islands"]
[null,null,"1||1|","MSK","Geri",null,null,"_11111111","Geri",null,null,null,null,null,"TCD","Chad"]
[null,null,"1||1|1","MSK","Geri",null,null,"_2","Innere",null,null,null,null,null,"TGO","Togo"]
[null,null,"1|1||","MSK","Geri",null,null,"_22","Innere",null,null,null,null,null,"THA","Thailand"]
[null,null,"1|1||1","MSK","Geri",null,null,"_222","Innere",null,null,null,null,null,"TJK","Tajikistan"]
[null,null,"1|1|1|","MSK","Geri",null,null,"_2222","Innere",null,null,null,null,null,"TKL","Tokelau"]
[null,null,"1|1|1|1","MSK","Geri",null,null,"_22222","Innere",null,null,null,null,null,"TKM","Turkmenistan"]
[null,null,"|||2","Neuro","Innere",null,null,"_222222","Innere",null,null,null,null,null,"TLS","Timor-Leste"]
[null,null,"||2|","Neuro","Innere",null,null,"_2222222","Innere",null,null,null,null,null,"TON","Tonga"]
[null,null,"||2|2","Neuro","Innere",null,null,"_22222222","Innere",null,null,null,null,null,"TTO","Trinidad and Tobago"]
[null,null,"|2||","Neuro","Innere",null,null,"_22222222","Innere",null,null,null,null,null,"TUN","Tunisia"]
[null,null,"|2||2","Neuro","Innere",null,null,"_22222222","Innere",null,null,null,null,null,"TUR","Turkey"]
[null,null,"|2|2|","Neuro","Innere",null,null,"_3","Kardio",null,null,null,null,null,"TUV","Tuvalu"]
[null,null,"|2|2|2","Neuro","Innere",null,null,"_33","Kardio",null,null,null,null,null,"TWN","Taiwan, Province of China"]
[null,null,"2|||","Neuro","Innere",null,null,"_333","Kardio",null,null,null,null,null,"UGA","Uganda"]
[null,null,"2|||2","Neuro","Innere",null,null,"_3333","Kardio",null,null,null,null,null,"UKR","Ukraine"]
[null,null,"2||2|","Neuro","Innere",null,null,"_33333","Kardio",null,null,null,null,null,"UMI","United States Minor Outlying Islands"]
[null,null,"2||2|2","Neuro","Innere",null,null,"_333333","Kardio",null,null,null,null,null,"URY","Uruguay"]
[null,null,"2|2||","Neuro","Innere",null,null,"_3333333","Kardio",null,null,null,null,null,"USA","United States of America"]
[null,null,"2|2||2","Neuro","Innere",null,null,"_33333333","Kardio",null,null,null,null,null,"UZB","Uzbekistan"]
[null,null,"2|2|2|","Neuro","Innere",null,null,"_33333333","Kardio",null,null,null,null,null,"VAT","Holy See"]
[null,null,"2|2|2|2","Neuro","Innere",null,null,"_33333333","Kardio",null,null,null,null,null,"VCT","Saint Vincent and the Grenadines"]
[null,null,"|||3","Kardio","Kardio",null,null,"_4","MSK",null,null,null,null,null,"VEN","Venezuela, Bolivarian Republic of"]
[null,null,"||3|","Kardio","Kardio",null,null,"_44","MSK",null,null,null,null,null,"VGB","Virgin Islands, British"]
[null,null,"||3|3","Kardio","Kardio",null,null,"_444","MSK",null,null,null,null,null,"VIR","Virgin Islands, U.S."]
[null,null,"|3||","Kardio","Kardio",null,null,"_4444","MSK",null,null,null,null,null,"VNM","Viet Nam"]
[null,null,"|3||3","Kardio","Kardio",null,null,"_44444","MSK",null,null,null,null,null,"VUT","Vanuatu"]
[null,null,"|3|3|","Kardio","Kardio",null,null,"_444444","MSK",null,null,null,null,null,"WLF","Wallis and Futuna"]
[null,null,"|3|3|3","Kardio","Kardio",null,null,"_4444444","MSK",null,null,null,null,null,"WSM","Samoa"]
[null,null,"3|||","Kardio","Kardio",null,null,"_44444444","MSK",null,null,null,null,null,"YEM","Yemen"]
[null,null,"3|||3","Kardio","Kardio",null,null,"_44444444","MSK",null,null,null,null,null,"ZAF","South Africa"]
[null,null,"3||3|","Kardio","Kardio",null,null,"_44444444","MSK",null,null,null,null,null,"ZMB","Zambia"]
[null,null,"3||3|3","Kardio","Kardio",null,null,"_5","Neuro",null,null,null,null,null,"ZWE","Zimbabwe"]
[null,null,"3|3||","Kardio","Kardio",null,null,"_55","Neuro"]
[null,null,"3|3||3","Kardio","Kardio",null,null,"_555","Neuro"]
[null,null,"3|3|3|","Kardio","Kardio",null,null,"_5555","Neuro"]
[null,null,"3|3|3|3","Kardio","Kardio",null,null,"_55555","Neuro"]
[null,null,"|||4","Pulmo","MSK",null,null,"_555555","Neuro"]
[null,null,"||4|","Pulmo","MSK",null,null,"_5555555","Neuro"]
[null,null,"||4|4","Pulmo","MSK",null,null,"_55555555","Neuro"]
[null,null,"|4||","Pulmo","MSK",null,null,"_55555555","Neuro"]
[null,null,"|4||4","Pulmo","MSK",null,null,"_55555555","Neuro"]
[null,null,"|4|4|","Pulmo","MSK",null,null,"_6","Onko"]
[null,null,"|4|4|4","Pulmo","MSK",null,null,"_66","Onko"]
[null,null,"4|||","Pulmo","MSK",null,null,"_666","Onko"]
[null,null,"4|||4","Pulmo","MSK",null,null,"_6666","Onko"]
[null,null,"4||4|","Pulmo","MSK",null,null,"_66666","Onko"]
[null,null,"4||4|4","Pulmo","MSK",null,null,"_666666","Onko"]
[null,null,"4|4||","Pulmo","MSK",null,null,"_6666666","Onko"]
[null,null,"4|4||4","Pulmo","MSK",null,null,"_66666666","Onko"]
[null,null,"4|4|4|","Pulmo","MSK",null,null,"_66666666","Onko"]
[null,null,"4|4|4|4","Pulmo","MSK",null,null,"_66666666","Onko"]
[null,null,"|||5","Andere","Neuro",null,null,"_7","Pädia"]
[null,null,"||5|","Andere","Neuro",null,null,"_77","Pädia"]
[null,null,"||5|5","Andere","Neuro",null,null,"_777","Pädia"]
[null,null,"|5||","Andere","Neuro",null,null,"_7777","Pädia"]
[null,null,"|5||5","Andere","Neuro",null,null,"_77777","Pädia"]
[null,null,"|5|5|","Andere","Neuro",null,null,"_777777","Pädia"]
[null,null,"|5|5|5","Andere","Neuro",null,null,"_7777777","Pädia"]
[null,null,"5|||","Andere","Neuro",null,null,"_77777777","Pädia"]
[null,null,"5|||5","Andere","Neuro",null,null,"_77777777","Pädia"]
[null,null,"5||5|","Andere","Neuro",null,null,"_77777777","Pädia"]
[null,null,"5||5|5","Andere","Neuro",null,null,"_8","Para"]
[null,null,"5|5||","Andere","Neuro",null,null,"_88","Para"]
[null,null,"5|5||5","Andere","Neuro",null,null,"_888","Para"]
[null,null,"5|5|5|","Andere","Neuro",null,null,"_8888","Para"]
[null,null,"5|5|5|5","Andere","Neuro",null,null,"_88888","Para"]
[null,null,"|||6",null,"Onko",null,null,"_888888","Para"]
[null,null,"||6|",null,"Onko",null,null,"_8888888","Para"]
[null,null,"||6|6",null,"Onko",null,null,"_88888888","Para"]
[null,null,"|6||",null,"Onko",null,null,"_88888888","Para"]
[null,null,"|6||6",null,"Onko",null,null,"_88888888","Para"]
[null,null,"|6|6|",null,"Onko",null,null,"_9","Psychosoma"]
[null,null,"|6|6|6",null,"Onko",null,null,"_99","Psychosoma"]
[null,null,"6|||",null,"Onko",null,null,"_999","Psychosoma"]
[null,null,"6|||6",null,"Onko",null,null,"_9999","Psychosoma"]
[null,null,"6||6|",null,"Onko",null,null,"_99999","Psychosoma"]
[null,null,"6||6|6",null,"Onko",null,null,"_999999","Psychosoma"]
[null,null,"6|6||",null,"Onko",null,null,"_9999999","Psychosoma"]
[null,null,"6|6||6",null,"Onko",null,null,"_99999999","Psychosoma"]
[null,null,"6|6|6|",null,"Onko",null,null,"_99999999","Psychosoma"]
[null,null,"6|6|6|6",null,"Onko",null,null,"_99999999","Psychosoma"]
[null,null,"|||7",null,"Pädia",null,null,"_10","Pulmo"]
[null,null,"||7|",null,"Pädia",null,null,"_1010","Pulmo"]
[null,null,"||7|7",null,"Pädia",null,null,"_101010","Pulmo"]
[null,null,"|7||",null,"Pädia",null,null,"_10101010","Pulmo"]
[null,null,"|7||7",null,"Pädia",null,null,"_1010101010","Pulmo"]
[null,null,"|7|7|",null,"Pädia",null,null,"_101010101010","Pulmo"]
[null,null,"|7|7|7",null,"Pädia",null,null,"_10101010101010","Pulmo"]
[null,null,"7|||",null,"Pädia",null,null,"_1010101010101010","Pulmo"]
[null,null,"7|||7",null,"Pädia",null,null,"_1010101010101010","Pulmo"]
[null,null,"7||7|",null,"Pädia",null,null,"_1010101010101010","Pulmo"]
[null,null,"7||7|7",null,"Pädia"]
[null,null,"7|7||",null,"Pädia"]
[null,null,"7|7||7",null,"Pädia"]
[null,null,"7|7|7|",null,"Pädia"]
[null,null,"7|7|7|7",null,"Pädia"]
[null,null,"|||8",null,"Para"]
[null,null,"||8|",null,"Para"]
[null,null,"||8|8",null,"Para"]
[null,null,"|8||",null,"Para"]
[null,null,"|8||8",null,"Para"]
[null,null,"|8|8|",null,"Para"]
[null,null,"|8|8|8",null,"Para"]
[null,null,"8|||",null,"Para"]
[null,null,"8|||8",null,"Para"]
[null,null,"8||8|",null,"Para"]
[null,null,"8||8|8",null,"Para"]
[null,null,"8|8||",null,"Para"]
[null,null,"8|8||8",null,"Para"]
[null,null,"8|8|8|",null,"Para"]
[null,null,"8|8|8|8",null,"Para"]
[null,null,"|||9",null,"Psychosoma"]
[null,null,"||9|",null,"Psychosoma"]
[null,null,"||9|9",null,"Psychosoma"]
[null,null,"|9||",null,"Psychosoma"]
[null,null,"|9||9",null,"Psychosoma"]
[null,null,"|9|9|",null,"Psychosoma"]
[null,null,"|9|9|9",null,"Psychosoma"]
[null,null,"9|||",null,"Psychosoma"]
[null,null,"9|||9",null,"Psychosoma"]
[null,null,"9||9|",null,"Psychosoma"]
[null,null,"9||9|9",null,"Psychosoma"]
[null,null,"9|9||",null,"Psychosoma"]
[null,null,"9|9||9",null,"Psychosoma"]
[null,null,"9|9|9|",null,"Psychosoma"]
[null,null,"9|9|9|9",null,"Psychosoma"]
[null,null,"|||10",null,"Pulmo"]
[null,null,"||10|",null,"Pulmo"]
[null,null,"||10|10",null,"Pulmo"]
[null,null,"|10||",null,"Pulmo"]
[null,null,"|10||10",null,"Pulmo"]
[null,null,"|10|10|",null,"Pulmo"]
[null,null,"|10|10|10",null,"Pulmo"]
[null,null,"10|||",null,"Pulmo"]
[null,null,"10|||10",null,"Pulmo"]
[null,null,"10||10|",null,"Pulmo"]
[null,null,"10||10|10",null,"Pulmo"]
[null,null,"10|10||",null,"Pulmo"]
[null,null,"10|10||10",null,"Pulmo"]
[null,null,"10|10|10|",null,"Pulmo"]
[null,null,"10|10|10|10",null,"Pulmo"]
[]
[]
[]
[]
[]
[]
[]
[]
[]
[]
[]
[]
[]
[]
[]
[]
[]
[]
[]
[]
[]
[]
[]
[]
[]
[]
[]
[]
[]
["MB","MB","MB",null,null,null,null," FID  (Importdaten Position 51)"," Rekordart"," Betriebsnummer \n (BUR-Satellit Gesundheit)"," Standort"," Kanton"," Anonymer Verbindungskode (nicht übermitteln!)"," Kennzeichnung des Statistikfalls"," Neugeborenen-Datensatz"," Psychiatrie-Datensatz"," Patientengruppendatensatz"," Kantonaler Datensatz"," Geschlecht"," Geburtsdatum (nicht übermitteln!)"," Alter bei Eintritt"," Wohnort (Region)"," Nationalität"," Eintrittsdatum und -Stunde"," Aufenthaltsort vor Eintritt"," Eintrittsart"," Einweisende Instanz"," Behandlungsart"," Klasse"," Aufenthalt in einer Intensivstation (Stunden)"," Administrativer Urlaub und Ferien (Stunden)"," Hauptkostenstelle"," Hauptkostenträger für Grundversicherungsleistungen"," Austrittsdatum und -Stunde"," Entscheid für Austritt"," Aufenthalt nach Austritt"," Behandlung nach Austritt"," Hauptdiagnose (ICD-10)"," Zusatz zu Hauptdiagnose (ICD-10)"," 1. Nebendiagnose (ICD-10)"," 2. Nebendiagnose (ICD-10)"," 3. Nebendiagnose (ICD-10)"," 4. Nebendiagnose (ICD-10)"," 5. Nebendiagnose (ICD-10)"," 6. Nebendiagnose (ICD-10)"," 7. Nebendiagnose (ICD-10)"," 8. Nebendiagnose (ICD-10)"," Hauptbehandlung (CHOP)"," Beginn Hauptbehandlung (Datum und Stunde)"," 1. weitere Behandlung (CHOP)"," 2. weitere Behandlung (CHOP)"," 3. weitere Behandlung (CHOP)"," 4. weitere Behandlung (CHOP)"," 5. weitere Behandlung (CHOP)"," 6. weitere Behandlung (CHOP)"," 7. weitere Behandlung (CHOP)"," 8. weitere Behandlung (CHOP)"," 9. weitere Behandlung (CHOP)"," Fallidentifikationsnummer FID"," Patientenidentifikations-nummer PID",null,null," Rekordart"," Betriebsnummer \n (BUR-Satellit Gesundheit)"," Standort"," Kanton"," Anonymer Verbindungskode (nicht übermitteln!)"," Kennzeichnung des Statistikfalls"," Neugeborenen-Datensatz"," Psychiatrie-Datensatz"," Patientengruppendatensatz"," Kantonaler Datensatz"," Geschlecht"," Geburtsdatum (nicht übermitteln!)"," Alter bei Eintritt"," Wohnort (Region)"," Nationalität"," Eintrittsdatum und -Stunde"," Aufenthaltsort vor Eintritt"," Eintrittsart"," Einweisende Instanz"," Behandlungsart"," Klasse"," Aufenthalt in einer Intensivstation (Stunden)"," Administrativer Urlaub und Ferien (Stunden)"," Hauptkostenstelle"," Hauptkostenträger für Grundversicherungsleistungen"," Austrittsdatum und -Stunde"," Entscheid für Austritt"," Aufenthalt nach Austritt"," Behandlung nach Austritt"," Hauptdiagnose (ICD-10)"," Zusatz zu Hauptdiagnose (ICD-10)"," 1. Nebendiagnose (ICD-10)"," 2. Nebendiagnose (ICD-10)"," 3. Nebendiagnose (ICD-10)"," 4. Nebendiagnose (ICD-10)"," 5. Nebendiagnose (ICD-10)"," 6. Nebendiagnose (ICD-10)"," 7. Nebendiagnose (ICD-10)"," 8. Nebendiagnose (ICD-10)"," Hauptbehandlund (CHOP"," Beginn Hauptbehandlung (Datum und Stunde)"," 1. weitere Behandlund (CHOP)"," 2. weitere Behandlung (CHOP)"," 3. weitere Behandlung (CHOP)"," 4. weitere Behandlung (CHOP)"," 5. weitere Behandlung (CHOP)"," 6. weitere Behandlung (CHOP)"," 7. weitere Behandlung (CHOP)"," 8. weitere Behandlung (CHOP)"," 9. weitere Behandlung (CHOP)"," Fallidentifikationsnummer FID"," Patientenidentifikations-nummer PID","Drop-Out / Duplikat","Mangel MB","Rekordart","anonymer Verbindungskode (ohne Anzeige)","Geburtsdatum übermittelt (ohne Anzeige)","MIS BUR","INVALID BUR","MIS Demo","INVALID Demo","MIS Eintritt","INVALID Eintritt","UNBEKANNT Eintritt","MIS Austritt","INVALID Austritt","UNBEKANNT Austritt","MIS Diagnose","VALID Diagnose","MIS FID/PID (2)","Plausib: Austritt vor Eintritt, Lieferzeitraum\nvorher reserviert für IVALID FID/PID (2)","Kodierung \"unbekannt\"","zus. VALID_DAT einbeziehen","zus. VALID_DAT einbeziehen","Hauptdiagnose","fehlende Angaben",null,"ungültige Angaben",null,"CONCAT","Mängel insgesamt (evtl. Unterscheidung)"]
[null,null,null,null,null,null,null,null,"0.1.",null,null,null,"0.2.",null,"0.3.",null,null,null,"1.1.",null,null,null,null,"1.2.",null,null,null,"1.3.",null,null,null,"1.4.",null,"1.5.",null,null,null,"1.6.",null,null,null,null,null,null,null,null,null,"1.7.",null,null,null,null,null,null,null,null,null,null,"FID","PID",null,null,"0.1.",null,null,null,"0.2.",null,"0.3.",null,null,null,"1.1.",null,null,null,null,"1.2.",null,null,null,"1.3.",null,null,null,"1.4.",null,"1.5.",null,null,null,"1.6.",null,null,null,null,null,null,null,null,null,"1.7.",null,null,null,null,null,null,null,null,null,null,"FID","PID",null,null,"err0001","err0200","err1100",null,null,null,null,null,null,null,null,null,null,null,null,null,"er0006","er0005",null,null,null,null,"er0003",null,"er0004"]
[null,null,null,null,null,null,null,null,"V01","V02","V03","V04","V01","V02","V01","V02","V03","V04","V01","V02","V03","V04","V05","V01","V02","V03","V04","V01","V02","V03","V04","V01","V02","V01","V02","V03","V04","V01","V02","V03","V04","V05","V06","V07","V08","V09","V10","V01","V02","V03","V04","V05","V06","V07","V08","V09","V10","V11",null,null,null,null,"V01","V02","V03","V04","V01","V02","V01","V02","V03","V04","V01","V02","V03","V04","V05","V01","V02","V03","V04","V01","V02","V03","V04","V01","V02","V01","V02","V03","V04","V01","V02","V03","V04","V05","V06","V07","V08","V09","V10","V01","V02","V03","V04","V05","V06","V07","V08","V09","V10","V11"]
[null,null,null,null,null,null,null,{"$f":"IF(ISBLANK(BG407),\"\",BG407)","v":""},null,null,null,null,null,null,null,null,null,null,null,null,null,null,null,null,null,null,null,null,null,null,null,null,null,null,null,null,null,null,null,null,null,null,null,null,null,null,null,null,{"$f":"CY409","v":0},null,null,null,null,null,null,null,null,null,null,null,"_","_",{"$f":"IF(I407=\"\",0,IF(I407=\"MB\",1,-1))","v":0},{"$f":"IF(J407=\"\",0,IF(J407=BL$1,1,-1))","v":0},{"$f":"IF(K407=\"\",0,1)","v":0},{"$f":"IF(L407=\"\",0,IF(OR(L407=\"ZH\",L407=\"BE\",L407=\"LU\",L407=\"UR\",L407=\"SZ\",L407=\"OW\",L407=\"NW\",L407=\"GL\",L407=\"ZG\",L407=\"FR\",L407=\"SO\",L407=\"BS\",L407=\"BL\",L407=\"SH\",L407=\"AR\",L407=\"AI\",L407=\"SG\",L407=\"GR\",L407=\"AG\",L407=\"TG\",L407=\"TI\",L407=\"VD\",L407=\"VS\",L407=\"NE\",L407=\"GE\",L407=\"JU\"),1,-1))","v":0},{"$f":"IF(M407<>\"\",-1,0)","v":0},{"$f":"IF(N407=\"\",0,IF(OR(N407=\"A\",N407=\"B\",N407=\"C\"),1,-1))","v":0},{"$f":"IF(O407=\"\",0,IF(O407=0,1,IF(O407=1,2,-1)))","v":0},{"$f":"IF(P407=\"\",0,IF(P407=0,1,IF(P407=1,2,-1)))","v":0},{"$f":"IF(Q407=\"\",0,IF(Q407=0,1,IF(Q407=1,2,-1)))","v":0},{"$f":"IF(R407=\"\",0,IF(R407=0,1,IF(R407=1,2,-1)))","v":0},{"$f":"IF(S407=\"\",0,IF(OR(S407=1,S407=2),1,-1))","v":0},{"$f":"IF(T407<>\"\",-1,0)","v":0},{"$f":"IF(U407=\"\",0,IF(AND(ISNUMBER(U407),U407>9,U407<136),1,-1))","v":0},{"$f":"IF(V407=\"\",0,IF(OR(LEN(V407)=4,LEN(V407)=3),1,-1))","v":0},{"$f":"IF(W407=\"\",0,IF(COUNTIF(InfoR!O$3:P$265,W407)>0,1,IF(W407=\"NON\",2,-1)))","v":0},{"$f":"IF(X407=\"\",0,IF(AND(ISNUMBER(X407),LEN(X407)=10),IF(OR(VALUE(MID(X407,1,4))<2015,VALUE(MID(X407,1,4))>$BZ$1+5,VALUE(MID(X407,5,2))<1,VALUE(MID(X407,5,2))>12,VALUE(MID(X407,7,2))<1,VALUE(MID(X407,7,2))>31,VALUE(MID(X407,9,2))>23),-1,IF(VALUE(MID(X407,1,4))>$BZ$1,2,1)),-1))","v":0},{"$f":"IF(Y407=\"\",0,IF(OR(Y407=1,Y407=2,Y407=3,Y407=4,Y407=5,Y407=6,Y407=7,Y407=8,Y407=55,Y407=66,Y407=83,Y407=84),1,IF(Y407=9,2,-1)))","v":0},{"$f":"IF(Z407=\"\",0,IF(OR(Z407=1,Z407=2,Z407=3,Z407=4,Z407=5,Z407=8),1,IF(Z407=9,2,-1)))","v":0},{"$f":"IF(AA407=\"\",0,IF(OR(AA407=1,AA407=2,AA407=3,AA407=4,AA407=5,AA407=6,AA407=8,AA407=9),1,-1))","v":0},{"$f":"IF(AB407=\"\",0,IF(AB407=3,1,IF(OR(AB407=1,AB407=9),2,-1)))","v":0},{"$f":"IF(AC407=\"\",0,IF(OR(AC407=1,AC407=2,AC407=3),1,IF(AC407=9,2,-1)))","v":0},{"$f":"IF(AD407=\"\",0,IF(ISNUMBER(AD407),1,-1))","v":0},{"$f":"IF(AE407=\"\",0,IF(ISNUMBER(AE407),1,-1))","v":0},{"$f":"IF(AF407=\"\",0,IF(OR(AF407=\"M950\",AF407=\"M900\"),1,IF(OR(AF407=\"M000\",AF407=\"M050\",AF407=\"M100\",AF407=\"FF00\",AF407=\"KA00\",AF407=\"M400\",AF407=\"AF500\",AF407=\"M600\",AF407=\"M700\",AF407=\"M800\",AF407=\"M990\"),2,-1)))","v":0},{"$f":"IF(AG407=\"\",0,IF(OR(AG407=1,AG407=2,AG407=3,AG407=4,AG407=5,AG407=8),1,IF(AG407=9,2,-1)))","v":0},{"$f":"IF(AH407=\"\",0,IF(AND(ISNUMBER(AH407),LEN(AH407)=10),IF(OR(VALUE(MID(AH407,1,4))<2015,VALUE(MID(AH407,1,4))>$BZ$1+5,VALUE(MID(AH407,5,2))<1,VALUE(MID(AH407,5,2))>12,VALUE(MID(AH407,7,2))<1,VALUE(MID(AH407,7,2))>31,VALUE(MID(AH407,9,2))>23),-1,IF(VALUE(MID(AH407,1,4))<>$BZ$1,2,1)),-1))","v":0},{"$f":"IF(AI407=\"\",0,IF(OR(AI407=1,AI407=2,AI407=3,AI407=4,AI407=5,AI407=8),1,IF(AI407=9,2,-1)))","v":0},{"$f":"IF(AJ407=\"\",0,IF(OR(AJ407=1,AJ407=2,AJ407=3,AJ407=4,AJ407=5,AJ407=6,AJ407=7,AJ407=8,AJ407=44,AJ407=55,AJ407=66,AJ407=0),1,IF(AJ407=9,2,-1)))","v":0},{"$f":"IF(AK407=\"\",0,IF(OR(AK407=1,AK407=2,AK407=3,AK407=4,AK407=5,AK407=8,AK407=9,AK407=0),1,-1))","v":0},{"$f":"IF(AL407=\"\",0,IF(AND(LEN(AL407)>2,LEN(AL407)<7,MID(AL407,1,1)>=\"A\",MID(AL407,1,1)<=\"Z\",ISNUMBER(VALUE(MID(AL407,2,1))),ISNUMBER(VALUE(MID(AL407,3,1))),OR(ISNUMBER(VALUE(MID(AL407,4,1))),MID(AL407,4,1)=\"\",MID(AL407,4,1)=\".\"),OR(ISNUMBER(VALUE(MID(AL407,5,1))),MID(AL407,5,1)=\"\"),OR(AND(MID(AL407,4,1)=\".\",ISNUMBER(VALUE(MID(AL407,6,1)))),MID(AL407,6,1)=\"\")),1,-1))","v":0},0,0,0,0,0,0,0,0,0,{"$f":"IF(AV407=\"\",0,IF(AND(LEN(AV407)>1,LEN(AV407)<9,OR(AND(ISNUMBER(VALUE(MID(AV407,1,1))),ISNUMBER(VALUE(MID(AV407,2,1)))),MID(AV407,1,2)=\"AA\",MID(AV407,1,2)=\"BA\",MID(AV407,1,2)=\"BB\")),1,-1))","v":0},{"$f":"IF(AW407=\"\",0,IF(AND(ISNUMBER(AW407),LEN(AW407)=10),IF(OR(VALUE(MID(AW407,1,4))<2019,VALUE(MID(AW407,1,4))>$BZ$1+1,VALUE(MID(AW407,5,2))<1,VALUE(MID(AW407,5,2))>12,VALUE(MID(AW407,7,2))<1,VALUE(MID(AW407,7,2))>31,VALUE(MID(AW407,9,2))>23),-1,1),-1))","v":-1},{"$f":"IF(AX407=\"\",0,IF(AND(LEN(AX407)>1,LEN(AX407)<9,OR(AND(ISNUMBER(VALUE(MID(AX407,1,1))),ISNUMBER(VALUE(MID(AX407,2,1)))),MID(AX407,1,2)=\"AA\",MID(AX407,1,2)=\"BA\",MID(AX407,1,2)=\"BB\")),1,-1))","v":0},0,0,0,0,0,0,0,0,{"$f":"IF(BG407=\"\",0,IF(COUNTIF(BG:BG,BG407)>1,-1,1))","v":0},{"$f":"IF(BH407=\"\",0,1)","v":0},{"$f":"IF(BG407=\"\",0,IF(DI407=-1,2,IF(VLOOKUP(BG407,INDIRECT(\"'InfoW'!$A$3:$U$\"&InfoW!$A$2+2),21,FALSE)=\"Drop-Out\",1,0)))","v":0},{"$f":"EM407","v":"mangelhaft"},{"$f":"IF(BK407<>1,\"Rekordart mangelhaft / \",\"\")","v":"Rekordart mangelhaft / "},{"$f":"IF(BO407=0,\"\",\"anonym. Verbindungskode vorhanden / \")","v":""},{"$f":"IF(BV407=0,\"\",\"Geburtsdatum angegeben / \")","v":""},{"$f":"IF(BL407=0,\"BUR \",\"\")","v":"BUR "},{"$f":"IF(BL407=-1,\"BUR \",\"\")","v":""},{"$f":"IF(OR(BU407=0,BW407=0,BY407=0),\"Demografie \",\"\")","v":"Demografie "},{"$f":"IF(OR(BU407=-1,BW407=-1,BY407=-1,BY407=2),\"Demografie \",\"\")","v":""},{"$f":"IF(OR(BZ407=0,CA407=0,CB407=0,CD407=0,CE407=0,CI407=0),\"Eintritt \",\"\")","v":"Eintritt "},{"$f":"IF(OR(BZ407=-1,CA407=-1,CB407=-1,CD407=-1,CE407=-1,CI407=-1),\"Eintritt \",\"\")","v":""},null,{"$f":"IF(OR(CJ407=0,CK407=0,CL407=0),\"Austritt \",\"\")","v":"Austritt "},{"$f":"IF(OR(CJ407=-1,CK407=-1,CL407=-1),\"Austritt \",\"\")","v":""},null,{"$f":"IF(CN407=0,\"Hauptdiagnose \",\"\")","v":"Hauptdiagnose "},{"$f":"IF(CN407=-1,\"Hauptdiagnose \",\"\")","v":""},{"$f":"IF(OR(DI407=0,DJ407=0),\"FID/PID \",\"\")","v":"FID/PID "},{"$f":"IF(AND(EE407<>\"\",EF407<>\"\",EF407<EE407),\"Austritt vor Eintritt / \",\"\")&IF(CJ407=2,\"ausserhalb Lieferzeitraum / \",\"\")","v":""},{"$f":"IF(OR(CA407=2,CB407=2,CD407=2,CE407=2,CI407=2,CK407=2,CL407=2),\"unbekannte Angaben Reha-Eintritt/Reha-Austritt / \",\"\")","v":""},{"$f":"IF(BZ407>0,DATE(MID(X407,1,4),MID(X407,5,2),MID(X407,7,2)),\"\")","v":""},{"$f":"IF(CJ407>0,DATE(MID(AH407,1,4),MID(AH407,5,2),MID(AH407,7,2)),\"\")","v":""},{"$f":"IF(CN407=1,MID(AL407,1,3)&\".\"&MID(AL407,4,2),\"\")","v":""},{"$f":"EB407&DP407&DR407&DT407&DW407&DZ407","v":"FID/PID BUR Demografie Eintritt Austritt Hauptdiagnose "},{"$f":"IF(EH407=\"\",\"\",\"fehlende auswertungsrelevante Angaben: \"&EH407&\" / \")","v":"fehlende auswertungsrelevante Angaben: FID/PID BUR Demografie Eintritt Austritt Hauptdiagnose  / "},{"$f":"DS407&DU407&DX407&EA407","v":""},{"$f":"IF(EJ407=\"\",\"\",\"ungültige auswertungsrelevante Angaben: \"&EJ407&\" / \")","v":""},{"$f":"DM407&EI407&EK407&ED407&EC407","v":"Rekordart mangelhaft / fehlende auswertungsrelevante Angaben: FID/PID BUR Demografie Eintritt Austritt Hauptdiagnose  / "},{"$f":"IF(COUNTIF(DR407:EC407,\"\")+COUNTIF(ED407,\"\")=13,\"\",\"mangelhaft\")","v":"mangelhaft"}]
[null,null,null,null,null,null,null,null,null,null,null,null,null,null,null,null,null,null,null,null,null,null,null,null,null,null,null,null,null,null,null,null,null,null,null,null,null,null,null,null,null,null,null,null,null,null,null,null,null,null,null,null,null,null,null,null,null,null,null,null,null,null,null,null,null,null,null,null,null,null,null,null,null,null,null,null,null,{"$f":"IF(X407=\"\",0,IF(AND(ISNUMBER(X407),LEN(X407)=10),IF(OR(VALUE(MID(X407,1,4))<2019,VALUE(MID(X407,1,4))>$BZ$1+1,VALUE(MID(X407,5,2))<1,VALUE(MID(X407,5,2))>12,VALUE(MID(X407,7,2))<1,VALUE(MID(X407,7,2))>31,VALUE(MID(X407,9,2))>23),-1,IF(VALUE(MID(X407,1,4))>$BZ$1,2,1)),-1))","v":0},null,null,null,null,null,null,null,null,null,{"$f":"IF(AH407=\"\",0,IF(AND(ISNUMBER(AH407),LEN(AH407)=10),IF(OR(VALUE(MID(AH407,1,4))<2019,VALUE(MID(AH407,1,4))>$BZ$1+1,VALUE(MID(AH407,5,2))<1,VALUE(MID(AH407,5,2))>12,VALUE(MID(AH407,7,2))<1,VALUE(MID(AH407,7,2))>31,VALUE(MID(AH407,9,2))>23),-1,IF(VALUE(MID(AH407,1,4))<>$BZ$1,2,1)),-1))","v":0}]
[null,null,null,null,null,null,null,null,null,null,null,null,null,null,null,null,null,null,null,null,null,null,null,null,null,null,null,null,null,null,null,null,null,null,null,null,null,null,null,null,null,null,null,null,null,null,null,null,null,null,null,null,null,null,null,null,null,null,null,null,null,null,null,null,null,null,null,null,null,null,null,null,null,null,null,null,null,"gültiger Bereich 2 Jahre vor, 1 Jahr danach",null,null,null,null,null,null,null,null,null,"gültiger Bereich 2 Jahre vor, 1 Jahr danach"]
[]
[]
[]
[]
["ZU","ZU","ZU",null,null,null," Rekordart"," Fallidentifikationsnummer"," Betriebsnummer \n (BUR-Satellit Gesundheit)"," CIRS_Datum der Erhebung"," CIRS_01 Herz"," CIRS_02 Hypertonie"," CIRS_03 Gefässe"," CIRS_04 Respiratorisches System"," CIRS_05 Augen, Ohren, Nase, Rachen, …"," CIRS_06 Oberer Gastrointestinaltrakt"," CIRS_07 Unterer Gastrointestinaltrakt"," CIRS_08 Leber und Gallengangsystem"," CIRS_09 Nieren"," CIRS_10 Restlicher Urogenitaltrakt"," CIRS_11 Bewegungsapparat und Haut"," CIRS_12 Neurologisches System"," CIRS_13 Endokrinium und Stoffwechsel"," CIRS_14 Psychische Erkrankungen / …","x",null," Rekordart"," Fallidentifikationsnummer"," Betriebsnummer \n (BUR-Satellit Gesundheit)"," CIRS_Datum der Erhebung"," CIRS_01 Herz"," CIRS_02 Hypertonie"," CIRS_03 Gefässe"," CIRS_04 Respiratorisches System"," CIRS_05 Augen, Ohren, Nase, Rachen, …"," CIRS_06 Oberer Gastrointestinaltrakt"," CIRS_07 Unterer Gastrointestinaltrakt"," CIRS_08 Leber und Gallengangsystem"," CIRS_09 Nieren"," CIRS_10 Restlicher Urogenitaltrakt"," CIRS_11 Bewegungsapparat und Haut"," CIRS_12 Neurologisches System"," CIRS_13 Endokrinium und Stoffwechsel"," CIRS_14 Psychische Erkrankungen / …","Drop-Out / Duplikat","VALID Antworten CIRS","ANZ Antworten CIRS","FID","ZU","BUR","CIRS Datumsangabe","CIRS ungültige Angaben","CIRS weniger als 14 Werte","CONCAT auswertungsrelevant","CONCAT","Mängel insgesamt (evtl. Unterscheidung)"]
[null,null,null,null,null,null,"2.1.","FID","2.1.","2.2.",null,null,null,null,null,null,null,null,null,null,null,null,null,null,"x",null,"2.1.","FID","2.1.","2.2.",null,null,null,null,null,null,null,null,null,null,null,null,null,null,null,null,null,null,"err7101","err7102","err7200","err7201","err7203"]
[null,null,null,null,null,null,"V01",null,"V02","V00","V01","V02","V03","V04","V05","V06","V07","V08","V09","V10","V11","V12","V13","V14","x",null,"V01",null,"V02","V00","V01","V02","V03","V04","V05","V06","V07","V08","V09","V10","V11","V12","V13","V14"]
[null,null,null,null,null,null,null,null,null,null,null,null,null,null,null,null,null,null,null,null,null,null,null,null,"_","_",{"$f":"IF(G417=\"\",0,IF(G417=\"ZU\",1,-1))","v":0},{"$f":"IF(H417=\"\",0,IF(COUNTIF(H:H,H417)>1,-1,1))","v":0},{"$f":"IF(I417=\"\",0,IF(I417=AC$1,1,-1))","v":0},{"$f":"IF(J417=\"\",0,IF(AND(ISNUMBER(J417),LEN(J417)=8),IF(OR(VALUE(MID(J417,1,4))<2019,VALUE(MID(J417,1,4))>$AD$1,VALUE(MID(J417,5,2))<1,VALUE(MID(J417,5,2))>12,VALUE(MID(J417,7,2))<1,VALUE(MID(J417,7,2))>31),-1,1),IF(ISBLANK(J417),1,-1)))","v":0},{"$f":"IF(K417=\"\",0,IF(OR(K417=0,K417=1,K417=2,K417=3,K417=4),1,-1))","v":0},0,0,0,0,0,0,0,0,0,0,0,0,0,{"$f":"IF(H417=\"\",0,IF(AB417=-1,2,IF(VLOOKUP(H417,INDIRECT(\"'InfoW'!$A$3:$U$\"&InfoW!$A$2+2),21,FALSE)=\"Drop-Out\",1,0)))","v":0},{"$f":"COUNTIF(AE417:AR417,1)","v":0},{"$f":"14-COUNTIF(AE417:AR417,0)","v":0},{"$f":"IF(AB417=0,\"FID fehlend / \",\"\")","v":"FID fehlend / "},{"$f":"IF(AA417<>1,\"Rekordart mangelhaft / \",\"\")","v":"Rekordart mangelhaft / "},{"$f":"IF(AC417=0,\"BUR mangelhaft / \",\"\")","v":"BUR mangelhaft / "},{"$f":"IF(AD417=0,\"fehlendes Datum CIRS / \",IF(AD417=-1,\"ungültiges Datum CIRS / \",\"\"))","v":"fehlendes Datum CIRS / "},{"$f":"IF(AT417<AU417,\"ungültige Angaben CIRS / \",\"\")","v":""},{"$f":"IF(AU417<14,\"fehlende Angaben CIRS / \",\"\")","v":"fehlende Angaben CIRS / "},{"$f":"CONCATENATE(AY417,AZ417,BA417)","v":"fehlendes Datum CIRS / fehlende Angaben CIRS / "},{"$f":"CONCATENATE(AV417,AW417,AX417,BB417)","v":"FID fehlend / Rekordart mangelhaft / BUR mangelhaft / fehlendes Datum CIRS / fehlende Angaben CIRS / "},{"$f":"IF(BB417<>\"\",\"mangelhaft\",\"\")","v":"mangelhaft"}]
[]
[]
[]
[]
[]
[]
["FF","FF","FF",null,null,null,"Rekordart"," Fallidentifikationsnummer"," Betriebsnummer \n (BUR-Satellit Gesundheit)"," Rehabereich"," Messzeitpunkt (Ein-/Austritt)"," Grund für Drop-Out (Fallausschluss)"," Datum Drop-Out"," HZ/ZE-Datum der Erhebung"," HZ_01_1 Hauptziel"," HZ_01_2 Unterstützung"," ZE_01 Zielanpassung des ... Hauptziels"," ZE_02_1 Zielerreichung ursprüngliches Ziel"," ZE_02_2 Stattdessen erreichtes Ziel "," ZE_02_3 Unterstützungsbedarf zu ZE_02_2"," ZE_03_1 Angepasstes Ziel"," ZE_03_2 Unterstützungsbedarf zu ZE_03_1"," ZE_04_1 Zielerreichung angepasstes Ziel"," ZE_04_2  Stattdessen erreichtes Ziel"," ZE_04_3 Unterstützungsbedarf zu ZE_04_2"," FIM_Datum der Erhebung"," FIM_01 Essen/Trinken"," FIM_02 Körperpflege"," FIM_03 Baden/Duschen/Waschen"," FIM_04 Ankleiden Oberkörper"," FIM_05 Ankleiden Unterkörper"," FIM_06 Toilettenhygiene"," FIM_07 Blasenkontrolle"," FIM_08 Darmkontrolle"," FIM_09 Transfer Bett/Stuhl/Rollstuhl"," FIM_10 Transfer Toilettensitz"," FIM_11 Transfer Badewanne"," FIM_12_1 Gehen oder Rollstuhlfahren"," FIM_12_2 Spezifikation Fortbewegungsart"," FIM_12_3 Rollstuhlfahren"," FIM_13 Treppensteigen"," FIM_14 Verstehen akustisch/visuell"," FIM_14_1 Spezifikation Kommunikationsform: Verstehen"," FIM_15 Ausdruck verbal/nonverbal"," FIM_15_1: Spezifikation Kommunikationsform: Ausdruck"," FIM_16 Soziales Verhalten"," FIM_17 Problemlösungsfähigkeit"," FIM_18 Gedächtnis"," EBI_Datum der Erhebung"," EBI_01 Essen und Trinken"," EBI_02 Persönliche Pflege"," EBI_03 An- / Ausziehen"," EBI_04 Baden / Duschen / Körper waschen"," EBI_05 Umsteigen aus Rollstuhl in Bett …"," EBI_06 Fortbewegung auf ebenem …"," EBI_07 Treppen auf- / absteigen"," EBI_08 Benutzung der Toilette"," EBI_09 Stuhlkontrolle "," EBI_10 Harnkontrolle"," EBI_11 Verstehen"," EBI_12 Verständlichkeit "," EBI_13 Soziale Interaktion"," EBI_14 Problemlösen"," EBI_15 Gedächtnis / Lernfähigkeit / …"," EBI_16 Sehen / Neglect"," HAQ_01 Ankleiden",null,"Rekordart"," Fallidentifikationsnummer"," Betriebsnummer \n (BUR-Satellit Gesundheit)"," Rehabereich"," Messzeitpunkt (Ein-/Austritt)"," Grund für Drop-Out (Ausschluss aus Gesamt-Messung)"," Datum Drop-Out"," HZ/ZE-Datum der Erhebung"," HZ_01_1 Hauptziel"," HZ_01_2 Unterstützung"," ZE_01 Zielanpassung des zu Reha-Beginn festgelegten Hauptziels"," ZE_02_1 Zielerreichung ursprüngliches Ziel"," ZE_02_2 stattdessen erreichtes Ziel "," ZE_02_3 Unterstützungsbedarf des stattdessen erreichten Ziels "," ZE_03_1 Angepasstes Ziel"," ZE_03_2 Unterstützungsbedarf angepasstes Ziel"," ZE_04_1 Zielerreichung angepasstes Ziel"," ZE_04_2  stattdessen erreichtes Ziel"," ZE_04_3 Unterstützungsbedarf des stattdessen erreichten Ziels"," FIM_Datum der Erhebung"," FIM_01 Essen/Trinken"," FIM_02 Körperpflege"," FIM_03 Baden/Duschen/Waschen"," FIM_04 Ankleiden Oberkörper"," FIM_05 Ankleiden Unterkörper"," FIM_06 Toilettenhygiene"," FIM_07 Blasenkontrolle"," FIM_08 Darmkontrolle"," FIM_09 Transfer Bett/Stuhl/Rollstuhl"," FIM_10 Transfer Toilettensitz"," FIM_11 Transfer Badewanne"," FIM_12_1 Gehen oder Rollstuhlfahren"," FIM_12_2 Spezifikation Fortbewegungsart"," FIM_12_3 Rollstuhlfahren"," FIM_13 Treppensteigen"," FIM_14 Verstehen akustisch/visuell"," FIM_14_1 Spezifikation Kommunikationsform: Verstehen"," FIM_15 Ausdruck verbal/nonverbal"," FIM_15_1: Spezifikation Kommunikationsform: Ausdruck"," FIM_16 Soziales Verhalten"," FIM_17 Problemlösungsfähigkeit"," FIM_18 Gedächtnis"," EBI_Datum der Erhebung"," EBI_01 Essen und Trinken"," EBI_02 Persönliche Pflege"," EBI_03 An- / Ausziehen"," EBI_04 Baden / Duschen / Körper waschen"," EBI_05 Umsteigen aus Rollstuhl in Bett und umgekehrt"," EBI_06 Fortbewegung auf ebenem Untergrund"," EBI_07 Treppen auf- / absteigen"," EBI_08 Benutzung der Toilette"," EBI_09 Stuhlkontrolle "," EBI_10 Harnkontrolle"," EBI_11 Verstehen"," EBI_12 Verständlichkeit "," EBI_13 Soziale Interaktion"," EBI_14 Problemlösen"," EBI_15 Gedächtnis / Lernfähigkeit / Orientierung"," EBI_16 Sehen / Neglect","Drop-Out / Duplikat","Plausib Reha-Art/-Bereich","Plausib HZ/ZE (1 HZ, 2 ZE, 3 HZ/ZE)","Plausib FIM","Plausib EBI","Mangel FF","Mangel Drop-Out","Rekordart","BUR","FID/Messezeitpunkt fehlend","Rehabereich falsch/fehlend","HZ/ZE Datumsangabe","HZ/ZE Kombi","HZ/ZE (nur gültige Kombinationen erlaubt)","ANZ FIM","ANZ EBI","FIM Datumsangabe","FIM ungültige Angaben","FIM weniger als 21/22 Werte [Plausib wird nicht geprüft!]","FIM Fortbewegung unplausibel","EBI Datumsangabe","EBI ungültige Angaben","EBI weniger als 17 Werte (inkl. Datum)","weder FIM noch EBI vorhanden","CONCAT auswertungsrelevant","CONCAT","Mängel insgesamt (evtl. Unterscheidung)"]
[null,null,null,null,null,null,"3.1.","FID","3.1.",null,null,null,null,"3.2.",null,null,null,null,null,null,null,null,null,null,null,"3.3.",null,null,null,null,null,null,null,null,null,null,null,null,null,null,null,null,null,null,null,null,null,null,"3.4.",null,null,null,null,null,null,null,null,null,null,null,null,null,null,null,null,"x",null,"3.1.","FID","3.1.",null,null,null,null,"3.2.",null,null,null,null,null,null,null,null,null,null,null,"3.3.",null,null,null,null,null,null,null,null,null,null,null,null,null,null,null,null,null,null,null,null,null,null,"3.4.",null,null,null,null,null,null,null,null,null,null,null,null,null,null,null,null,null,null,null,null,null,null,null,"err5101","err5102","err5103","err5104","err5200",null,"err5201-err5203",null,null,"err5300","err5301","err5302","err5303","err5401","err5402","err5403","err5500"]
[null,null,null,null,null,null,"V01",null,"V02","V03","V04","V05","V06","V00","V01","V02","V03","V04","V05","V06","V07","V08","V09","V10","V11","V00  ","V01","V02","V03","V04","V05","V06","V07","V08","V09","V10","V11","V12","V13","V14","V15","V16","V17","V18","V19","V20","V21","V22","V00","V01","V02","V03","V04","V05","V06","V07","V08","V09","V10","V11","V12","V13","V14","V15","V16","x",null,"V01",null,"V02","V03","V04","V05","V06","V00","V01","V02","V03","V04","V05","V06","V07","V08","V09","V10","V11","V00  ","V01","V02","V03","V04","V05","V06","V07","V08","V09","V10","V11","V12","V13","V14","V15","V16","V17","V18","V19","V20","V21","V22","V00","V01","V02","V03","V04","V05","V06","V07","V08","V09","V10","V11","V12","V13","V14","V15","V16"]
["Rehabereiche 1, 2, 4, 5, 6",null,null,null,null,null,null,null,null,null,null,null,null,null,null,null,null,null,null,null,null,null,null,null,null,null,null,null,null,null,null,null,null,null,null,null,null,null,null,null,null,null,null,null,null,null,null,null,null,null,null,null,null,null,null,null,null,null,null,null,null,null,null,null,null,"_","_",{"$f":"IF(G427=\"\",0,IF(G427=\"FF\",1,-1))","v":0},{"$f":"IF(H427=\"\",0,IF(COUNTIF(A:A,A427)>1,-1,1))","v":0},{"$f":"IF(I427=\"\",0,IF(I427=BR$1,1,-1))","v":0},{"$f":"IF(J427=\"\",0,IF(OR(J427=1,J427=2,J427=4,J427=5,J427=6,J427=7),1,IF(OR(J427=3,J427=10,J427=8,J427=9),2,-1)))","v":0},{"$f":"IF(K427=\"\",0,IF(OR(K427=1,K427=2),1,-1))","v":0},{"$f":"IF(L427=\"\",0,IF(L427=1,1,-1))","v":0},{"$f":"IF(M427=\"\",0,IF(AND(ISNUMBER(M427),LEN(M427)=8),IF(OR(VALUE(MID(M427,1,4))<2019,VALUE(MID(M427,1,4))>$BV$1,VALUE(MID(M427,5,2))<1,VALUE(MID(M427,5,2))>12,VALUE(MID(M427,7,2))<1,VALUE(MID(M427,7,2))>31),-1,1),IF(ISBLANK(M427),1,-1)))","v":0},{"$f":"IF(N427=\"\",0,IF(AND(ISNUMBER(N427),LEN(N427)=8),IF(OR(VALUE(MID(N427,1,4))<2019,VALUE(MID(N427,1,4))>$BV$1,VALUE(MID(N427,5,2))<1,VALUE(MID(N427,5,2))>12,VALUE(MID(N427,7,2))<1,VALUE(MID(N427,7,2))>31),-1,1),IF(ISBLANK(N427),1,-1)))","v":0},{"$f":"IF(O427=\"\",0,IF(OR(O427=1,O427=2,O427=3,O427=4,O427=5,O427=6,O427=7,O427=8,O427=9,O427=10),1,-1))","v":0},{"$f":"IF(P427=\"\",0,IF(OR(P427=0,P427=1),1,-1))","v":0},{"$f":"IF(Q427=\"\",0,IF(OR(Q427=0,Q427=1),1,-1))","v":0},{"$f":"IF(R427=\"\",0,IF(OR(R427=1,R427=2),1,-1))","v":0},{"$f":"IF(S427=\"\",0,IF(OR(S427=1,S427=2,S427=3,S427=4,S427=5,S427=6,S427=7,S427=8,S427=9,S427=10),1,-1))","v":0},{"$f":"IF(T427=\"\",0,IF(OR(T427=0,T427=1),1,-1))","v":0},{"$f":"IF(U427=\"\",0,IF(OR(U427=1,U427=2,U427=3,U427=4,U427=5,U427=6,U427=7,U427=8,U427=9,U427=10),1,-1))","v":0},{"$f":"IF(V427=\"\",0,IF(OR(V427=0,V427=1),1,-1))","v":0},{"$f":"IF(W427=\"\",0,IF(OR(W427=1,W427=2),1,-1))","v":0},{"$f":"IF(X427=\"\",0,IF(OR(X427=1,X427=2,X427=3,X427=4,X427=5,X427=6,X427=7,X427=8,X427=9,X427=10),1,-1))","v":0},{"$f":"IF(Y427=\"\",0,IF(OR(Y427=0,Y427=1),1,-1))","v":0},{"$f":"IF(Z427=\"\",0,IF(AND(ISNUMBER(Z427),LEN(Z427)=8),IF(OR(VALUE(MID(Z427,1,4))<2019,VALUE(MID(Z427,1,4))>$BV$1,VALUE(MID(Z427,5,2))<1,VALUE(MID(Z427,5,2))>12,VALUE(MID(Z427,7,2))<1,VALUE(MID(Z427,7,2))>31),-1,1),IF(ISBLANK(Z427),1,-1)))","v":0},{"$f":"IF(AA427=\"\",0,IF(OR(AA427=1,AA427=2,AA427=3,AA427=4,AA427=5,AA427=6,AA427=7),1,-1))","v":0},0,0,0,0,0,0,0,0,0,0,0,{"$f":"IF(AM427=\"\",0,IF(OR(AM427=1,AM427=2,AM427=3,AM427=4),1,-1))","v":0},{"$f":"IF(AN427=\"\",0,IF(OR(AN427=1,AN427=2,AN427=3,AN427=4,AN427=5,AN427=6),1,-1))","v":0},{"$f":"IF(AO427=\"\",0,IF(OR(AO427=1,AO427=2,AO427=3,AO427=4,AO427=5,AO427=6,AO427=7),1,-1))","v":0},{"$f":"IF(AP427=\"\",0,IF(OR(AP427=1,AP427=2,AP427=3,AP427=4,AP427=5,AP427=6,AP427=7),1,-1))","v":0},{"$f":"IF(AQ427=\"\",0,IF(OR(AQ427=1,AQ427=2,AQ427=3),1,-1))","v":0},{"$f":"IF(AR427=\"\",0,IF(OR(AR427=1,AR427=2,AR427=3,AR427=4,AR427=5,AR427=6,AR427=7),1,-1))","v":0},{"$f":"IF(AS427=\"\",0,IF(OR(AS427=1,AS427=2,AS427=3),1,-1))","v":0},{"$f":"IF(AT427=\"\",0,IF(OR(AT427=1,AT427=2,AT427=3,AT427=4,AT427=5,AT427=6,AT427=7),1,-1))","v":0},{"$f":"IF(AU427=\"\",0,IF(OR(AU427=1,AU427=2,AU427=3,AU427=4,AU427=5,AU427=6,AU427=7),1,-1))","v":0},{"$f":"IF(AV427=\"\",0,IF(OR(AV427=1,AV427=2,AV427=3,AV427=4,AV427=5,AV427=6,AV427=7),1,-1))","v":0},{"$f":"IF(AW427=\"\",0,IF(AND(ISNUMBER(AW427),LEN(AW427)=8),IF(OR(VALUE(MID(AW427,1,4))<2019,VALUE(MID(AW427,1,4))>$BV$1,VALUE(MID(AW427,5,2))<1,VALUE(MID(AW427,5,2))>12,VALUE(MID(AW427,7,2))<1,VALUE(MID(AW427,7,2))>31),-1,1),IF(ISBLANK(AW427),1,-1)))","v":0},{"$f":"IF(AX427=\"\",0,IF(OR(AX427=0,AX427=2,AX427=3,AX427=4),1,-1))","v":0},{"$f":"IF(AY427=\"\",0,IF(OR(AY427=0,AY427=1,AY427=2,AY427=3,AY427=4),1,-1))","v":0},{"$f":"IF(AZ427=\"\",0,IF(OR(AZ427=0,AZ427=1,AZ427=2,AZ427=4),1,-1))","v":0},{"$f":"IF(BA427=\"\",0,IF(OR(BA427=0,BA427=1,BA427=2,BA427=3,BA427=4),1,-1))","v":0},{"$f":"IF(BB427=\"\",0,IF(OR(BB427=0,BB427=1,BB427=2,BB427=4),1,-1))","v":0},{"$f":"IF(BC427=\"\",0,IF(OR(BC427=0,BC427=1,BC427=2,BC427=3,BC427=4),1,-1))","v":0},{"$f":"IF(BD427=\"\",0,IF(OR(BD427=0,BD427=1,BD427=2,BD427=4),1,-1))","v":0},{"$f":"IF(BE427=\"\",0,IF(OR(BE427=0,BE427=1,BE427=2,BE427=4),1,-1))","v":0},{"$f":"IF(BF427=\"\",0,IF(OR(BF427=0,BF427=2,BF427=3,BF427=4),1,-1))","v":0},{"$f":"IF(BG427=\"\",0,IF(OR(BG427=0,BG427=1,BG427=3,BG427=4),1,-1))","v":0},{"$f":"IF(BH427=\"\",0,IF(OR(BH427=0,BH427=1,BH427=3,BH427=4),1,-1))","v":0},{"$f":"IF(BI427=\"\",0,IF(OR(BI427=0,BI427=1,BI427=3,BI427=4),1,-1))","v":0},{"$f":"IF(BJ427=\"\",0,IF(OR(BJ427=0,BJ427=2,BJ427=4),1,-1))","v":0},{"$f":"IF(BK427=\"\",0,IF(OR(BK427=0,BK427=2,BK427=4),1,-1))","v":0},{"$f":"IF(BL427=\"\",0,IF(OR(BL427=0,BL427=1,BL427=2,BL427=3,BL427=4),1,-1))","v":0},{"$f":"IF(BM427=\"\",0,IF(OR(BM427=0,BM427=1,BM427=3,BM427=4),1,-1))","v":0},{"$f":"IF(BQ427=0,0,IF(BQ427=-1,2,IF(VLOOKUP(H427,INDIRECT(\"'InfoW'!$A$3:$U$\"&InfoW!$A$2+2),21,FALSE)=\"Drop-Out\",1,0)))","v":0},{"$f":"IF(BS427=1,0,1)","v":1},{"$f":"IF(DW427=1,0,IF(EJ427<>\"\",IF(K427=1,1,IF(K427=2,2,3)),0))","v":3},{"$f":"IF(AND(DW427=0,OR(EM427<>\"\",EO427<>\"\",ET427<>\"\")),1,IF(AND(DW427=0,EM427=\"\",EO427=\"\",EP427<>\"\"),2,0))","v":1},{"$f":"IF(AND(DW427=0,OR(EQ427<>\"\",ES427<>\"\",ET427<>\"\")),1,0)","v":1},{"$f":"EW427","v":"mangelhaft"},{"$f":"IF(OR(DW427<>1,AND(BU427=0,BV427=0,BS427>0,BT427=1),AND(BU427=1,BV427=1,BS427>0,BT427=1)),\"\",\"Drop-Out mangelhaft / \")","v":""},{"$f":"IF(BP427<>1,\"Rekordart mangelhaft / \",\"\")","v":"Rekordart mangelhaft / "},{"$f":"IF(BR427=0,\"BUR mangelhaft / \",\"\")","v":"BUR mangelhaft / "},{"$f":"IF(BQ427=0,\"FID fehlend / \",IF(BT427=1,\"\",\"Messzeitpunkt mangelhaft / \"))","v":"FID fehlend / "},{"$f":"IF(BS427=1,\"\",IF(BS427=2,\"Rehabereich nicht FF / \",\"Rehabereich mangelhaft / \"))","v":"Rehabereich mangelhaft / "},{"$f":"IF(BW427=-1,\"ungültiges Datum \"&IF(K427=1,\"HZ / \",IF(K427=2,\"ZE / \",\"HZ/ZE / \")),\"\")","v":""},{"$f":"BW427&\"_\"&O427&\"|\"&P427&\"|\"&Q427&\"|\"&R427&\"|\"&S427&\"|\"&T427&\"|\"&U427&\"|\"&V427&\"|\"&W427&\"|\"&X427&\"|\"&Y427","v":"0_||||||||||"},{"$f":"IF(EI$427=\"0_||||||||||\",IF(K427=1,\"HZ fehlend / \",IF(K427=2,\"ZE fehlend / \",\"HZ/ZE fehlend / \")),IF(AND(K427=1,ISNA(VLOOKUP(EI427,InfoR!$C$204:$D$216,2,FALSE))),\"HZ unvollständig/unplausibel / \",IF(AND(K427=2,ISNA(VLOOKUP(EI427,InfoR!$C$8:$D$203,2,FALSE))),\"ZE unvollständig/unplausibel / \",IF(ISNA(VLOOKUP(EI427,InfoR!$C$8:$D$216,2,FALSE)),\"HZ/ZE unvollständig/unplausibel / \",\"\"))))","v":"HZ/ZE fehlend / "},{"$f":"23-COUNTIF(CI427:DE427,0)","v":0},{"$f":"17-COUNTIF(DF427:DV427,0)","v":0},{"$f":"IF(CI427=-1,\"ungültiges Datum FIM / \",\"\")","v":""},{"$f":"IF(COUNTIF(CJ427:DE427,-1)>0,\"ungültige Angaben FIM / \",\"\")","v":""},{"$f":"IF(EK427=23,\"\",IF(OR(AND(EK427=22,AM427<4,ISBLANK(AN427)),AND(EK427=22,AM427=4,OR(ISBLANK(AL427),ISBLANK(AN427)),K427=2)),\"\",IF(EK427>0,\"fehlende Angaben FIM / \",\"\")))","v":""},{"$f":"IF(OR(IF(ISNA(VLOOKUP(H427&\"1\",INDIRECT(\"A$6:AM$\"&$H$1+5),39,FALSE)),FALSE,IF(AND(K427=2,AM427<>VLOOKUP(H427&\"1\",INDIRECT(\"A$6:AM$\"&$H$1+5),39,FALSE)),TRUE,FALSE)),AND(OR(AM427=1,AM427=2,AM427=3),COUNT(AN427)=1),AND(K427=1,AM427=4,OR(ISBLANK(AL427),ISBLANK(AN427)))),\"FIM Fortbewegung unplausibel / \",\"\")","v":""},{"$f":"IF(DF427=-1,\"ungültiges Datum EBI / \",\"\")","v":""},{"$f":"IF(COUNTIF(DG427:DV427,-1),\"ungültige Angaben EBI / \",\"\")","v":""},{"$f":"IF(AND(EL427>0,EL427<17),\"fehlende Angaben EBI / \",\"\")","v":""},{"$f":"IF(EK427+EL427=0,\"Messung FIM/EBI fehlend / \",\"\")","v":"Messung FIM/EBI fehlend / "},{"$f":"EC427&EF427&EG427&EH427&EJ427&EM427&EN427&EO427&EP427&EQ427&ER427&ES427&ET427","v":"FID fehlend / Rehabereich mangelhaft / HZ/ZE fehlend / Messung FIM/EBI fehlend / "},{"$f":"EU427&ED427&EE427","v":"FID fehlend / Rehabereich mangelhaft / HZ/ZE fehlend / Messung FIM/EBI fehlend / Rekordart mangelhaft / BUR mangelhaft / "},{"$f":"IF(EU427<>\"\",\"mangelhaft\",\"\")","v":"mangelhaft"}]
[null,null,null,null,null,null,null,null,null,null,null,null,null,null,null,null,null,null,null,null,null,null,null,null,null,null,null,null,null,null,null,null,null,null,null,null,null,null,null,null,null,null,null,null,null,null,null,null,null,null,null,null,null,null,null,null,null,null,null,null,null,null,null,null,null,null,null,null,null,null,null,null,null,null,null,null,null,null,null,null,null,null,null,null,null,null,null,null,null,null,null,null,null,null,null,null,null,null,null,null,null,null,null,null,null,null,null,null,null,null,null,null,null,null,null,null,null,null,null,null,null,null,null,null,null,null,null,null,null,null,null,null,null,null,null,null,null,null,null,null,null,null,null,null,null,null,null,null,null,null,null,null,{"$f":"IF(EU428<>\"\",\"mangelhaft\",\"\")","v":""}]
[]
[]
[]
[]
[]
["KA","KA","KA",null,null,null," Rekordart"," Fallidentifikationsnummer"," Betriebsnummer \n (BUR-Satellit Gesundheit)"," Rehabereich"," Messzeitpunkt (Ein-/Austritt)"," Grund für Drop-Out (Fallausschluss)"," Datum Drop-Out"," HZ/ZE-Datum der Erhebung"," HZ_01_1 Hauptziel"," HZ_01_2 Unterstützung"," ZE_01 Zielanpassung des ... Hauptziels"," ZE_02_1 Zielerreichung ursprüngliches Ziel"," ZE_02_2 Stattdessen erreichtes Ziel "," ZE_02_3 Unterstützungsbedarf zu ZE_02_2"," ZE_03_1 Angepasstes Ziel"," ZE_03_2 Unterstützungsbedarf zu ZE_03_1"," ZE_04_1 Zielerreichung angepasstes Ziel"," ZE_04_2  Stattdessen erreichtes Ziel"," ZE_04_3 Unterstützungsbedarf zu ZE_04_2"," 6MWT_Datum der Durchführung"," 6MWT_1 Zurückgelegte Strecke"," 6MWT_2 Gehdauer in Minuten"," 6MWT_3 Verwendung einer Gehhilfe"," 6MWT_4 Abgabe von Sauerstoff"," 6MWT_5 Grund für Test-Abbruch "," 6MWT_6 Grund für Abbruch (Anderer)"," 6MWT_7 Grund für Test-Verzicht "," 6MWT_8 Grund für Test-Verzicht (Anderer)"," Ergo_Datum der Durchführung"," Ergo_1 Maximale Leistung "," Ergo_2 Dauer der Belastungsphase "," Ergo_3 Grund für Test-Abbruch"," Ergo_4 Grund für Abbruch (Anderer)"," Ergo_5 Grund für Test-Verzicht "," Ergo_6 Grund für Test-Verzicht (Anderer)"," MacNew_Datum der Erhebung"," MacNew_01 frustriert gefühlt"," MacNew_02 wertlos gefühlt"," MacNew_03 zuversichtlich gefühlt"," MacNew_04 entmutigt gefühlt"," MacNew_05 entspannt gefühlt "," MacNew_06 erschöpft gefühlt "," MacNew_07 glücklich und zufrieden"," MacNew_08 rastlos gefühlt "," MacNew_09 Stärke Atemnot"," MacNew_10 zum Weinen gefühlt"," MacNew_11 abhängiger gefühlt "," MacNew_12 außerstande … zu Aktivitäten"," MacNew_13 mangelndes Vertrauen anderer "," MacNew_14 Brustschmerzen"," MacNew_15 Mangel an Selbstbewusstsein"," MacNew_16 … schmerzende Beine"," MacNew_17 beim Sport eingeschränkt "," MacNew_18 besorgt oder verängstigt …"," MacNew_19 schwindlig oder benommen …"," MacNew_20 eingeschränkt oder reduziert …"," MacNew_21 unsicher … körperl. Aktivität"," MacNew_22 Familie als zu besorgt …"," MacNew_23 als Last für andere gefühlt "," MacNew_24 Ausschluss von Aktivitäten"," MacNew_25 unfähig zu sozialen Kontakten …"," MacNew_26 … körperl. Belastung eingeschränkt"," MacNew_27 beeinträchtigtes Sexualleben"," MacNew_Grund für Test-Verzicht"," MacNew_Grund für Test-Verzicht (Anderer)",null,null," Rekordart"," Fallidentifikationsnummer"," Betriebsnummer \n (BUR-Satellit Gesundheit)"," Rehabereich"," Messzeitpunkt (Ein-/Austritt)"," Grund für Drop-Out (Fallausschluss)"," Datum Drop-Out"," HZ/ZE-Datum der Erhebung"," HZ_01_1 Hauptziel"," HZ_01_2 Unterstützung"," ZE_01 Zielanpassung des ... Hauptziels"," ZE_02_1 Zielerreichung ursprüngliches Ziel"," ZE_02_2 stattdessen erreichtes Ziel "," ZE_02_3 Unterstützungsbedarf zu ZE_02_2"," ZE_03_1 Angepasstes Ziel"," ZE_03_2 Unterstützungsbedarf zu ZE_03_1"," ZE_04_1 Zielerreichung angepasstes Ziel"," ZE_04_2  stattdessen erreichtes Ziel"," ZE_04_3 Unterstützungsbedarf zu ZE_04_2"," 6MWT_Datum der Durchführung"," 6MWT_1 Zurückgelegte Strecke"," 6MWT_2 Gehdauer in Minuten"," 6MWT_3 Verwendung einer Gehhilfe"," 6MWT_4 Abgabe von Sauerstoff"," 6MWT_5 Grund für Test-Abbruch "," 6MWT_6 Grund für Abbruch (Anderer)"," 6MWT_7 Grund für Test-Verzicht "," 6MWT_8 Grund für Test-Verzicht (Anderer)"," Ergo_Datum der Durchführung"," Ergo_1 Maximale Leistung "," Ergo_2 Dauer der Belastungsphase "," Ergo_3 Grund für Test-Abbruch"," Ergo_4 Grund für Abbruch (Anderer)"," Ergo_5 Grund für Test-Verzicht "," Ergo_6 Grund für Test-Verzicht (Anderer)"," MacNew_Datum der Erhebung"," MacNew_01 frustriert gefühlt"," MacNew_02 wertlos gefühlt"," MacNew_03 zuversichtlich gefühlt"," MacNew_04 entmutigt gefühlt"," MacNew_05 entspannt gefühlt "," MacNew_06 erschöpft gefühlt "," MacNew_07 glücklich und zufrieden"," MacNew_08 rastlos gefühlt "," MacNew_09 Stärke Atemnot"," MacNew_10 zum Weinen gefühlt"," MacNew_11 abhängiger gefühlt "," MacNew_12 außerstande … zu Aktivitäten"," MacNew_13 mangelndes Vertrauen anderer "," MacNew_14 Brustschmerzen"," MacNew_15 Mangel an Selbstbewusstsein"," MacNew_16 … schmerzende Beine"," MacNew_17 beim Sport eingeschränkt "," MacNew_18 besorgt oder verängstigt …"," MacNew_19 schwindlig oder benommen …"," MacNew_20 eingeschränkt oder reduziert …"," MacNew_21 unsicher … körperl. Aktivität"," MacNew_22 Familie als zu besorgt …"," MacNew_23 als Last für andere gefühlt "," MacNew_24 Ausschluss von Aktivitäten"," MacNew_25 unfähig zu sozialen Kontakten …"," MacNew_26 … körperl. Belastung eingeschränkt"," MacNew_27 beeinträchtigtes Sexualleben"," MacNew_Grund für Test-Verzicht"," MacNew_Grund für Test-Verzicht (Anderer)","Drop-Out / Duplikat","Plausib Reha-Art/-Bereich","Plausib HZ/ZE (1 HZ, 2 ZE, 3 HZ/ZE)","Plausib GT6M","Plausib Ergo","Plausib MNH"," 6MWT_2 Gehdauer (Sekunden oder #WERT!)"," Ergo_2 Dauer (Sekunden oder #WERT!)","Mangel KA","Mangel Drop-Out","Rekordart","BUR","FID/Messezeitpunkt fehlend","Rehabereich falsch/fehlend","Leistungstest fehlend","MacNew fehlend","falsche Kombination von Messinstrumenten","HZ/ZE Datumsangabe","HZ/ZE Kombi","HZ/ZE (nur gültige Kombinationen erlaubt)","GT6M fehlende Werte","VALID Datum GT6M","GT6M ungültige Werte Strecke","GT6M ungültige Gehdauer","GT6M ungültige Werte","GT6M unplausible Angaben","Ergo fehlende Werte","VALID Datum Ergo","Ergo ungültige Werte Leistung","Ergo ungültige Ergodauer","Ergo ungültige Werte","Ergo unplausible Angaben","MNH fehlende Werte","VALID Datum MNH","MNH ungültige Werte","MNH unplausible Angaben","MNH zu viele Angaben unbekannt","CONCAT Gehtest","CONCAT Ergo","CONCAT MNH","CONCAT auswertungsrelevant","CONCAT","Mängel insgesamt (evtl. Unterscheidung)"]
[null,null,null,null,null,null,"4.1.","FID",null,null,null,null,null,"4.2.",null,null,null,null,null,null,null,null,null,null,null,"4.3.",null,null,null,null,null,null,null,null,"4.4.",null,null,null,null,null,null,"4.5.",null,null,null,null,null,null,null,null,null,null,null,null,null,null,null,null,null,null,null,null,null,null,null,null,null,null,null,null,null,"x",null,"4.1.","FID",null,null,null,null,null,"4.2.",null,null,null,null,null,null,null,null,null,null,null,"4.3.",null,null,null,null,null,null,null,null,"4.4.",null,null,null,null,null,null,"4.5.",null,null,null,null,null,null,null,null,null,null,null,null,null,null,null,null,null,null,null,null,null,null,null,null,null,null,null,null,null,null,null,null,null,null,null,null,null,null,null,"err6101","err6102","err6103","err6104","err6106-err6107","err6108","err6111","err5200",null,"err5201-err5203","err6200","err6201","err6202","err6203","err6204","err6205","err6300","err6301","err6302","err6303","err6304","err6305","err6400","err6401","err6402","err6403","err6404"]
[null,null,null,null,null,null,"V01",null,"V02","V03","V04","V05","V06","V00","V01","V02","V03","V04","V05","V06","V07","V08","V09","V10","V11","V00","V01","V02","V03","V04","V05","V06","V07","V08","V00","V01","V02","V03","V04","V05","V06","V00","V01","V02","V03","V04","V05","V06","V07","V08","V09","V10","V11","V12","V13","V14","V15","V16","V17","V18","V19","V20","V21","V22","V23","V24","V25","V26","V27","V28","V29","x",null,"V01",null,"V02","V03","V04","V05","V06","V00","V01","V02","V03","V04","V05","V06","V07","V08","V09","V10","V11","V00","V01","V02","V03","V04","V05","V06","V07","V08","V00","V01","V02","V03","V04","V05","V06","V00","V01","V02","V03","V04","V05","V06","V07","V08","V09","V10","V11","V12","V13","V14","V15","V16","V17","V18","V19","V20","V21","V22","V23","V24","V25","V26","V27","V28","V29"]
["Rehabereich 3",null,null,null,null,null,null,null,null,null,null,null,null,null,null,null,null,null,null,null,null,null,null,null,null,null,null,null,null,null,null,null,null,null,null,null,null,null,null,null,null,null,null,null,null,null,null,null,null,null,null,null,null,null,null,null,null,null,null,null,null,null,null,null,null,null,null,null,null,null,null,"_","_",{"$f":"IF(G437=\"\",0,IF(G437=\"KA\",1,-1))","v":0},{"$f":"IF(H437=\"\",0,IF(COUNTIF(A:A,A437)>1,-1,1))","v":0},{"$f":"IF(I437=\"\",0,IF(I437=BX$1,1,-1))","v":0},{"$f":"IF(J437=\"\",0,IF(J437=3,1,IF(OR(J437=1,J437=2,J437=4,J437=5,J437=6,J437=7,J437=8,J437=9,J437=10),2,-1)))","v":0},{"$f":"IF(K437=\"\",0,IF(OR(K437=1,K437=2),1,-1))","v":0},{"$f":"IF(L437=\"\",0,IF(L437=1,1,-1))","v":0},{"$f":"IF(M437=\"\",0,IF(AND(ISNUMBER(M437),LEN(M437)=8),IF(OR(VALUE(MID(M437,1,4))<2019,VALUE(MID(M437,1,4))>$CB$1,VALUE(MID(M437,5,2))<1,VALUE(MID(M437,5,2))>12,VALUE(MID(M437,7,2))<1,VALUE(MID(M437,7,2))>31),-1,1),IF(ISBLANK(M437),1,-1)))","v":0},{"$f":"IF(N437=\"\",0,IF(AND(ISNUMBER(N437),LEN(N437)=8),IF(OR(VALUE(MID(N437,1,4))<2019,VALUE(MID(N437,1,4))>$CB$1,VALUE(MID(N437,5,2))<1,VALUE(MID(N437,5,2))>12,VALUE(MID(N437,7,2))<1,VALUE(MID(N437,7,2))>31),-1,1),IF(ISBLANK(N437),1,-1)))","v":0},{"$f":"IF(O437=\"\",0,IF(OR(O437=1,O437=2,O437=3,O437=4,O437=5,O437=6,O437=7,O437=8,O437=9,O437=10),1,-1))","v":0},{"$f":"IF(P437=\"\",0,IF(OR(P437=0,P437=1),1,-1))","v":0},{"$f":"IF(Q437=\"\",0,IF(OR(Q437=0,Q437=1),1,-1))","v":0},{"$f":"IF(R437=\"\",0,IF(OR(R437=1,R437=2),1,-1))","v":0},{"$f":"IF(S437=\"\",0,IF(OR(S437=1,S437=2,S437=3,S437=4,S437=5,S437=6,S437=7,S437=8,S437=9,S437=10),1,-1))","v":0},{"$f":"IF(T437=\"\",0,IF(OR(T437=0,T437=1),1,-1))","v":0},{"$f":"IF(U437=\"\",0,IF(OR(U437=1,U437=2,U437=3,U437=4,U437=5,U437=6,U437=7,U437=8,U437=9,U437=10),1,-1))","v":0},{"$f":"IF(V437=\"\",0,IF(OR(V437=0,V437=1),1,-1))","v":0},{"$f":"IF(W437=\"\",0,IF(OR(W437=1,W437=2),1,-1))","v":0},{"$f":"IF(X437=\"\",0,IF(OR(X437=1,X437=2,X437=3,X437=4,X437=5,X437=6,X437=7,X437=8,X437=9,X437=10),1,-1))","v":0},{"$f":"IF(Y437=\"\",0,IF(OR(Y437=0,Y437=1),1,-1))","v":0},{"$f":"IF(Z437=\"\",0,IF(AND(ISNUMBER(Z437),LEN(Z437)=8),IF(OR(VALUE(MID(Z437,1,4))<2019,VALUE(MID(Z437,1,4))>$CB$1,VALUE(MID(Z437,5,2))<1,VALUE(MID(Z437,5,2))>12,VALUE(MID(Z437,7,2))<1,VALUE(MID(Z437,7,2))>31),-1,1),IF(ISBLANK(Z437),1,-1)))","v":0},{"$f":"IF(AA437=\"\",0,IF(OR(AND(LEN(AA437)=1,AA437>=0,AA437<10),AND(LEN(AA437)=2,AA437>9,AA437<100),AND(LEN(AA437)=3,AA437>99,AA437<1000)),1,-1))","v":0},{"$f":"IF(AB437=\"\",0,IF(ISERR(EO437),-1,IF(OR(EO437>360,EO437<0),-1,1)))","v":0},{"$f":"IF(AC437=\"\",0,IF(OR(AC437=1,AC437=2),1,-1))","v":0},{"$f":"IF(AD437=\"\",0,IF(OR(AD437=1,AD437=2),1,-1))","v":0},{"$f":"IF(AE437=\"\",0,IF(OR(AE437=1,AE437=2,AE437=3,AE437=4,AE437=5,AE437=6),1,-1))","v":0},{"$f":"IF(AF437=\"\",0,1)","v":0},{"$f":"IF(AG437=\"\",0,IF(OR(AG437=1,AG437=2,AG437=3,AG437=4),1,-1))","v":0},{"$f":"IF(AH437=\"\",0,1)","v":0},{"$f":"IF(AI437=\"\",0,IF(AND(ISNUMBER(AI437),LEN(AI437)=8),IF(OR(VALUE(MID(AI437,1,4))<2019,VALUE(MID(AI437,1,4))>$CB$1,VALUE(MID(AI437,5,2))<1,VALUE(MID(AI437,5,2))>12,VALUE(MID(AI437,7,2))<1,VALUE(MID(AI437,7,2))>31),-1,1),IF(ISBLANK(AI437),1,-1)))","v":0},{"$f":"IF(AJ437=\"\",0,IF(OR(AND(LEN(AJ437)=1,AJ437>=0,AJ437<10),AND(LEN(AJ437)=2,AJ437>9,AJ437<100),AND(LEN(AJ437)=3,AJ437>99,AJ437<301)),1,-1))","v":0},{"$f":"IF(AK437=\"\",0,IF(ISERR(EP437),-1,IF(OR(EP437>1200,EP437<0),-1,1)))","v":0},{"$f":"IF(AL437=\"\",0,IF(OR(AL437=1,AL437=2,AL437=3,AL437=4,AL437=5),1,-1))","v":0},{"$f":"IF(AM437=\"\",0,1)","v":0},{"$f":"IF(AN437=\"\",0,IF(OR(AN437=1,AN437=2,AN437=3,AN437=4),1,-1))","v":0},{"$f":"IF(AO437=\"\",0,1)","v":0},{"$f":"IF(AP437=\"\",0,IF(AND(ISNUMBER(AP437),LEN(AP437)=8),IF(OR(VALUE(MID(AP437,1,4))<2019,VALUE(MID(AP437,1,4))>$CB$1,VALUE(MID(AP437,5,2))<1,VALUE(MID(AP437,5,2))>12,VALUE(MID(AP437,7,2))<1,VALUE(MID(AP437,7,2))>31),-1,1),IF(ISBLANK(AP437),1,-1)))","v":0},{"$f":"IF(AQ437=\"\",0,IF(OR(AQ437=1,AQ437=2,AQ437=3,AQ437=4,AQ437=5,AQ437=6,AQ437=7),1,IF(AQ437=9,2,-1)))","v":0},0,0,0,0,0,0,0,0,0,0,0,0,0,0,0,0,0,0,0,0,0,0,0,0,0,{"$f":"IF(BQ437=\"\",0,IF(OR(BQ437=1,BQ437=2,BQ437=3,BQ437=4,BQ437=5,BQ437=6,BQ437=7),1,IF(OR(BQ437=8,BQ437=9),2,-1)))","v":0},{"$f":"IF(BR437=\"\",0,IF(OR(BR437=1,BR437=2,BR437=3,BR437=4),1,-1))","v":0},{"$f":"IF(BS437=\"\",0,1)","v":0},{"$f":"IF(BW437=0,0,IF(BW437=-1,2,IF(VLOOKUP(H437,INDIRECT(\"'InfoW'!$A$3:$U$\"&InfoW!$A$2+2),21,FALSE)=\"Drop-Out\",1,0)))","v":0},{"$f":"IF(BY437=1,0,1)","v":1},{"$f":"IF(EI437=1,0,IF(FB437<>\"\",IF(K437=1,1,IF(K437=2,2,3)),0))","v":3},{"$f":"IF(AND(EI437=0,OR(EW437<>\"\",EY437<>\"\",FT437<>\"\")),1,0)","v":1},{"$f":"IF(AND(EI437=0,OR(EW437<>\"\",EY437<>\"\",FU437<>\"\")),1,0)","v":1},{"$f":"IF(AND(EI437=0,OR(EX437<>\"\",FV437<>\"\")),1,0)","v":1},{"$f":"IF(ISBLANK(AB437),0,IF(AND(LEN(AB437)=5,MID(AB437,3,1)=\":\",INT(MID(AB437,4,2))<60),60*MID(AB437,1,2)+MID(AB437,4,2),IF(AND(LEN(AB437)=4,MID(AB437,2,1)=\":\",INT(MID(AB437,3,2))<60),60*MID(AB437,1,1)+MID(AB437,3,2),#VALUE!)))","v":0},{"$f":"IF(ISBLANK(AK437),0,IF(AND(LEN(AK437)=5,MID(AK437,3,1)=\":\",INT(MID(AK437,4,2))<60),60*MID(AK437,1,2)+MID(AK437,4,2),IF(AND(LEN(AK437)=4,MID(AK437,2,1)=\":\",INT(MID(AK437,3,2))<60),60*MID(AK437,1,1)+MID(AK437,3,2),#VALUE!)))","v":0},{"$f":"FY437","v":"mangelhaft"},{"$f":"IF(OR(EI437<>1,AND(CA437=0,CB437=0,BY437>0,BZ437=1),AND(CA437=1,CB437=1),BY437>0,BZ437=1),\"\",\"Drop-Out mangelhaft / \")","v":""},{"$f":"IF(BV437<>1,\"Rekordart mangelhaft / \",\"\")","v":"Rekordart mangelhaft / "},{"$f":"IF(BX437=0,\"BUR mangelhaft / \",\"\")","v":"BUR mangelhaft / "},{"$f":"IF(BW437=0,\"FID fehlend / \",IF(BW437=1,\"\",\"Messzeitpunkt mangelhaft / \"))","v":"FID fehlend / "},{"$f":"IF(BY437=1,\"\",IF(BY437=2,\"Rehabereich nicht KA / \",\"Rehabereich mangelhaft / \"))","v":"Rehabereich mangelhaft / "},{"$f":"IF(AND(COUNTIF(CO437:CW437,0)=9,COUNTIF(CX437:DD437,0)=7),\"Messung Leistungstest fehlend / \",\"\")","v":"Messung Leistungstest fehlend / "},{"$f":"IF(COUNTIF(DE437:EH437,0)=30,\"Messung MNH fehlend / \",\"\")","v":"Messung MNH fehlend / "},{"$f":"IF(OR(COUNTIF(CO437:CW437,0)=9,COUNTIF(CX437:DD437,0)=7),\"\",\"Gehtest und Ergo angegeben / \")","v":""},{"$f":"IF(CC437=-1,\"ungültiges Datum \"&IF(K437=1,\"HZ / \",IF(K437=2,\"ZE / \",\"HZ/ZE / \")),\"\")","v":""},{"$f":"CC437&\"_\"&O437&\"|\"&P437&\"|\"&Q437&\"|\"&R437&\"|\"&S437&\"|\"&T437&\"|\"&U437&\"|\"&V437&\"|\"&W437&\"|\"&X437&\"|\"&Y437","v":"0_||||||||||"},{"$f":"IF(FA$437=\"0_||||||||||\",IF(K437=1,\"HZ fehlend / \",IF(K437=2,\"ZE fehlend / \",\"HZ/ZE fehlend / \")),IF(AND(K437=1,ISNA(VLOOKUP(FA437,InfoR!$C$204:$D$216,2,FALSE))),\"HZ unvollständig/unplausibel / \",IF(AND(K437=2,ISNA(VLOOKUP(FA437,InfoR!$C$8:$D$203,2,FALSE))),\"ZE unvollständig/unplausibel / \",IF(ISNA(VLOOKUP(FA437,InfoR!$C$8:$D$216,2,FALSE)),\"HZ/ZE unvollständig/unplausibel / \",\"\"))))","v":"HZ/ZE fehlend / "},{"$f":"IF(AND(COUNTIF(CO437:CW437,0)<9,OR(CO437=0,AND(COUNTIF(CP437:CS437,0)>0,CV437=0),AND(CP437=0,AG437=3),AND(COUNTIF(CP437:CS437,0)=0,CT437=0,IF(ISERR(EO437),FALSE,IF(AND(EO437>0,EO437<360),TRUE,FALSE))))),\"fehlende Angaben Gehtest / \",\"\")","v":""},{"$f":"IF(CO437=-1,\"ungültiges Datum Gehtest / \",\"\")","v":""},{"$f":"IF(CP437=-1,\"ungültige Angabe Gehtest/Strecke / \",\"\")","v":""},{"$f":"IF(CQ437=-1,\"ungültige Angabe Gehtest/Dauer / \",\"\")","v":""},{"$f":"IF(COUNTIF(CR437:CW437,-1)=0,\"\",\"ungültige Angaben Gehtest / \")","v":""},{"$f":"IF(AND(AA437=0,AG437=3,CO437=1,COUNTIF(CQ437:CU437,0)=5),\"\",IF(OR(AND(COUNTIF(CP437:CS437,0)<4,IF(ISERR(EO437),TRUE,IF(AND(EO437>0,EO437<360),FALSE,TRUE)),OR(CT437<>0,CV437<>0)),AND(CT437<>0,CV437<>0),AND(CT437=0,IF(ISERR(EO437),FALSE,IF(AND(CQ437<>0,EO437>0,EO437<360),TRUE,FALSE)))),\"unplausible Angaben Gehtest / \",\"\"))","v":""},{"$f":"IF(AND(COUNTIF(CX437:DD437,0)<7,OR(CX437=0,AND(COUNTIF(CY437:DA437,0)>0,DC437=0))),\"fehlende Angaben Ergo / \",\"\")","v":""},{"$f":"IF(CX437=-1,\"ungültiges Datum Ergo / \",\"\")","v":""},{"$f":"IF(CY437=-1,\"ungültige Angabe Ergo/Leistung / \",\"\")","v":""},{"$f":"IF(CZ437=-1,\"ungültige Angabe Ergo/Dauer / \",\"\")","v":""},{"$f":"IF(COUNTIF(DA437:DD437,-1)=0,\"\",\"ungültige Angaben Ergo / \")","v":""},{"$f":"IF(AND(COUNTIF(CY437:DB437,0)<4,COUNTIF(DC437:DD437,0)<2),\"unplausible Angaben Ergo / \",\"\")","v":""},{"$f":"IF(OR(COUNTIF(DE437:EH437,0)=30,AND(DE437<>0,OR(COUNTIF(DF437:EF437,0)=0,EG437<>0))),\"\",\"fehlende Angaben MNH / \")","v":""},{"$f":"IF(DE437=-1,\"ungültiges Datum MNH / \",\"\")","v":""},{"$f":"IF(COUNTIF(DF437:EH437,-1)=0,\"\",\"ungültige Angaben MNH / \")","v":""},{"$f":"IF(AND(COUNTIF(DF437:EF437,0)<27,COUNTIF(DF437:EF437,2)<27,EG437<>0),\"unplausible Angaben MNH / \",\"\")","v":""},{"$f":"IF(OR(EG437=1,COUNTIF(DF437:EE437,0)=26,AND(COUNTIF(DF437:DM437,1)+COUNTIF(DO437,1)+COUNTIF(DQ437:DR437,1)+COUNTIF(DT437,1)+COUNTIF(DW437,1)+COUNTIF(EB437,1)>6,COUNTIF(DK437,1)+COUNTIF(DN437,1)+COUNTIF(DQ437,1)+COUNTIF(DS437,1)+COUNTIF(DU437:DV437,1)+COUNTIF(DX437:DZ437,1)+COUNTIF(EC437:EE437,1)>5,COUNTIF(DG437,1)+COUNTIF(DP437:DR437,1)+COUNTIF(DT437,1)+COUNTIF(DV437,1)+COUNTIF(DY437:EE437,1)>6)),\"\",\"zu wenig Werte für Berechnung MNH / \")","v":""},{"$f":"FC437&FD437&FE437&FF437&FG437&FH437","v":""},{"$f":"FI437&FJ437&FK437&FL437&FM437&FN437","v":""},{"$f":"FO437&FP437&FQ437&FR437&FS437","v":""},{"$f":"ER437&EU437&EV437&EW437&EX437&EZ437&FB437&FT437&FU437&FV437","v":"FID fehlend / Rehabereich mangelhaft / Messung Leistungstest fehlend / Messung MNH fehlend / HZ/ZE fehlend / "},{"$f":"ES437&ET437&FW437&EY437","v":"Rekordart mangelhaft / BUR mangelhaft / FID fehlend / Rehabereich mangelhaft / Messung Leistungstest fehlend / Messung MNH fehlend / HZ/ZE fehlend / "},{"$f":"IF(FW437<>\"\",\"mangelhaft\",\"\")","v":"mangelhaft"}]
[null,null,null,null,null,null,null,null,null,null,null,null,null,"NEU","NEU","NEU","NEU","NEU","NEU","NEU","NEU","NEU","NEU","NEU","NEU",null,null,null,null,null,null,null,null,null,null,null,null,null,null,null,null,null,null,null,null,null,null,null,null,null,null,null,null,null,null,null,null,null,null,null,null,null,null,null,null,null,null,null,null,null,null,null,null,null,null,null,null,null,null,null,"NEU","NEU","NEU","NEU","NEU","NEU","NEU","NEU","NEU","NEU","NEU","NEU",null,null,"> Übergabe in EP (OK)",null,null,null,null,null,null,null,null,"> Übergabe in EQ (OK)",null,null,null,null,null,null,null,null,null,null,null,null,null,null,null,null,null,null,null,null,null,null,null,null,null,null,null,null,null,null,null,null,null,null,null,null,null,"neu/OK","neu/OK","neu/OK",null,null,null,null,null,null,null,null,null,null,"\"falsche Kombination von Messungen / \" > nur noch \"GTM/Ergo parallel\""]
[null,null,null,null,null,null,null,null,null,null,null,null,null,null,null,null,null,null,null,null,null,null,null,null,null,null,null,null,null,null,null,null,null,null,null,null,null,null,null,null,null,null,null,null,null,null,null,null,null,null,null,null,null,null,null,null,null,null,null,null,null,null,null,null,null,null,null,null,null,null,null,null,null,null,null,null,null,null,null,null,null,null,null,null,null,null,null,null,null,null,null,null,null,null,null,null,null,null,null,null,null,null,null,null,null,null,null,null,null,null,null,null,null,null,null,null,null,null,null,null,null,null,null,null,null,null,null,null,null,null,null,null,null,null,null,null,null,null,null,null,null,null,null,null,null,null,null,null,null,null,null,null,null,null,"> nicht auswertungsrelevant"]
[null,null,null,null,null,null,null,null,null,null,null,null,null,null,null,null,null,null,null,null,null,null,null,null,null,null,null,null,null,null,null,null,null,null,null,null,null,null,null,null,null,null,null,null,null,null,null,null,null,null,null,null,null,null,null,null,null,null,null,null,null,null,null,null,null,null,null,null,null,null,null,null,null,null,null,null,null,null,null,null,null,null,null,null,null,null,null,null,null,null,null,null,null,null,null,null,null,null,null,null,null,null,null,null,null,null,null,null,null,null,null,null,null,null,null,null,null,null,null,null,null,null,null,null,null,null,null,null,null,null,null,null,null,null,null,null,null,null,null,null,null,"> GT6M/Ergo auch rot, wenn beide ausgefüllt?"]
[]
[]
[]
["PU","PU","PU",null,null,null," Rekordart"," Fallidentifikationsnummer"," Betriebsnummer \n (BUR-Satellit Gesundheit)"," Rehabereich"," Messzeitpunkt (Ein-/Austritt)"," Grund für Drop-Out (Fallausschluss)"," Datum Drop-Out"," HZ/ZE-Datum der Erhebung"," HZ_01_1 Hauptziel"," HZ_01_2 Unterstützung"," ZE_01 Zielanpassung des ... Hauptziels"," ZE_02_1 Zielerreichung ursprüngliches Ziel"," ZE_02_2 Stattdessen erreichtes Ziel "," ZE_02_3 Unterstützungsbedarf zu ZE_02_2"," ZE_03_1 Angepasstes Ziel"," ZE_03_2 Unterstützungsbedarf zu ZE_03_1"," ZE_04_1 Zielerreichung angepasstes Ziel"," ZE_04_2  Stattdessen erreichtes Ziel"," ZE_04_3 Unterstützungsbedarf zu ZE_04_2"," 6MWT_Datum der Durchführung"," 6MWT_1 Zurückgelegte Strecke"," 6MWT_2 Gehdauer in Minuten"," 6MWT_3 Verwendung einer Gehhilfe"," 6MWT_4 Abgabe von Sauerstoff"," 6MWT_5 Grund für Test-Abbruch "," 6MWT_6 Grund für Abbruch (Anderer)"," 6MWT_7 Grund für Test-Verzicht "," 6MWT_8 Grund für Test-Verzicht (Anderer)"," CRQ_Datum der Erhebung"," CRQ_01 Kurzatmigkeit bei … Ärger"," CRQ_02 Kurzatmigkeit bei Aktivitäten …"," CRQ_03 Kurzatmigkeit bei zu Fuss gehen"," CRQ_04 Kurzatmigkeit bei Hausarbeiten"," CRQ_05 Kurzatmigkeit bei gesell. Leben"," CRQ_06 frustriert oder ungeduldig"," CRQ_07 Gefühl der Angst und Panik"," CRQ_08 müde gefühlt"," CRQ_09 Husten oder schweres Atmen …"," CRQ_10 zuversichtlich … wg. Krankheit "," CRQ_11 Energie"," CRQ_12 verärgert, besorgt oder deprimiert"," CRQ_13 Atemprobleme unter Kontrolle"," CRQ_14 locker und entspannt "," CRQ_15 wenig Lebensenergie"," CRQ_16 mutlos oder niedergeschlagen"," CRQ_17 erschöpft oder lustlos"," CRQ_18 zufrieden mit Leben "," CRQ_19 verstört oder ängstlich"," CRQ_20 ruhelos, angespannt oder nervös"," CRQ_Grund für Test-Verzicht"," CRQ_Grund für Test-Verzicht (Anderer)",null,null," Rekordart"," Fallidentifikationsnummer"," Betriebsnummer \n (BUR-Satellit Gesundheit)"," Rehabereich"," Messzeitpunkt (Ein-/Austritt)"," Grund für Drop-Out (Fallausschluss)"," Datum Drop-Out"," HZ/ZE-Datum der Erhebung"," HZ_01_1 Hauptziel"," HZ_01_2 Unterstützung"," ZE_01 Zielanpassung des ... Hauptziels"," ZE_02_1 Zielerreichung ursprüngliches Ziel"," ZE_02_2 stattdessen erreichtes Ziel "," ZE_02_3 Unterstützungsbedarf zu ZE_02_2"," ZE_03_1 Angepasstes Ziel"," ZE_03_2 Unterstützungsbedarf zu ZE_03_1"," ZE_04_1 Zielerreichung angepasstes Ziel"," ZE_04_2  stattdessen erreichtes Ziel"," ZE_04_3 Unterstützungsbedarf zu ZE_04_2"," 6MWT_Datum der Durchführung"," 6MWT_1 Zurückgelegte Strecke"," 6MWT_2 Gehdauer in Minuten"," 6MWT_3 Verwendung einer Gehhilfe"," 6MWT_4 Abgabe von Sauerstoff"," 6MWT_5 Grund für Test-Abbruch "," 6MWT_6 Grund für Abbruch (Anderer)"," 6MWT_7 Grund für Test-Verzicht "," 6MWT_8 Grund für Test-Verzicht (Anderer)"," CRQ_Datum der Erhebung"," CRQ_01 Kurzatmigkeit bei … Ärger"," CRQ_02 Kurzatmigkeit bei Aktivitäten …"," CRQ_03 Kurzatmigkeit bei zu Fuss gehen"," CRQ_04 Kurzatmigkeit bei Hausarbeiten"," CRQ_05 Kurzatmigkeit bei gesell. Leben"," CRQ_06 frustriert oder ungeduldig"," CRQ_07 Gefühl der Angst und Panik"," CRQ_08 müde gefühlt"," CRQ_09 Husten oder schweres Atmen …"," CRQ_10 zuversichtlich … wg. Krankheit "," CRQ_11 Energie"," CRQ_12 verärgert, besorgt oder deprimiert"," CRQ_13 Atemprobleme unter Kontrolle"," CRQ_14 locker und entspannt "," CRQ_15 wenig Lebensenergie"," CRQ_16 mutlos oder niedergeschlagen"," CRQ_17 erschöpft oder lustlos"," CRQ_18 zufrieden mit Leben "," CRQ_19 verstört oder ängstlich"," CRQ_20 ruhelos, angespannt oder nervös"," CRQ_Grund für Test-Verzicht"," CRQ_Grund für Test-Verzicht (Anderer)","Drop-Out / Duplikat","Plausib Reha-Art/-Bereich","Plausib HZ/ZE (1 HZ, 2 ZE, 3 HZ/ZE)","Plausib GT6M","Plausib CRQ"," 6MWT_2 Gehdauer (Sekunden oder #WERT!)","Mangel PU","Mangel Drop-Out","Rekordart","BUR","FID/Messezeitpunkt fehlend","Rehabereich falsch/fehlend","GT6M fehlend","CRQ fehlend","HZ/ZE Datumsangabe","HZ/ZE Kombi","HZ/ZE (nur gültige Kombinationen erlaubt)","GT6M fehlende Werte","VALID Datum GT6M","GT6M ungültige Werte Strecke","GT6M ungültige Gehdauer","GT6M ungültige Werte","GT6M unplausible Angaben","CRQ fehlende Werte","VALID Datum CRQ","CRQ ungültige Werte","CRQ unplausible Angaben","CRQ zu viele Angaben unbekannt","CONCAT Gehtest","CONCAT CRQ","CONCAT auswertungsrelevant","CONCAT","Mängel insgesamt (evtl. Unterscheidung)"]
[null,null,null,null,null,null,"8.1.","FID",null,null,null,null,null,"8.2.",null,null,null,null,null,null,null,null,null,null,null,"8.3.",null,null,null,null,null,null,null,null,"8.4.",null,null,null,null,null,null,null,null,null,null,null,null,null,null,null,null,null,null,null,null,null,null,"x",null,"8.1.","FID",null,null,null,null,null,"8.2.",null,null,null,null,null,null,null,null,null,null,null,"8.3.",null,null,null,null,null,null,null,null,"8.4.",null,null,null,null,null,null,null,null,null,null,null,null,null,null,null,null,null,null,null,null,null,null,null,null,null,null,null,null,null,null,"err6101","err6102","err6103","err6104","err6106-err6107","err6110","err5200",null,"err5201-err5203","err6200","err6201","err6202","err6203","err6204","err6205","err6600","err6601","err6602","err6603","err6604"]
[null,null,null,null,null,null,"V01",null,"V02","V03","V04","V05","V06","V00","V01","V02","V03","V04","V05","V06","V07","V08","V09","V10","V11","V00","V01","V02","V03","V04","V05","V06","V07","V08","V00","V01","V02","V03","V04","V05","V06","V07","V08","V09","V10","V11","V12","V13","V14","V15","V16","V17","V18","V19","V20","V21","V22","x",null,"V01",null,"V02","V03","V04","V05","V06","V00","V01","V02","V03","V04","V05","V06","V07","V08","V09","V10","V11","V00","V01","V02","V03","V04","V05","V06","V07","V08","V00","V01","V02","V03","V04","V05","V06","V07","V08","V09","V10","V11","V12","V13","V14","V15","V16","V17","V18","V19","V20","V21","V22"]
["Rehabereich 10",null,null,null,null,null,null,null,null,null,null,null,null,null,null,null,null,null,null,null,null,null,null,null,null,null,null,null,null,null,null,null,null,null,null,null,null,null,null,null,null,null,null,null,null,null,null,null,null,null,null,null,null,null,null,null,null,"_","_",{"$f":"IF(G447=\"\",0,IF(G447=\"PU\",1,-1))","v":0},{"$f":"IF(H447=\"\",0,IF(COUNTIF(A:A,A447)>1,-1,1))","v":0},{"$f":"IF(I447=\"\",0,IF(I447=BI$1,1,-1))","v":0},{"$f":"IF(J447=\"\",0,IF(J447=10,1,IF(OR(J447=1,J447=2,J447=3,J447=4,J447=5,J447=6,J447=7,J447=8,J447=9),2,-1)))","v":0},{"$f":"IF(K447=\"\",0,IF(OR(K447=1,K447=2),1,-1))","v":0},{"$f":"IF(L447=\"\",0,IF(L447=1,1,-1))","v":0},{"$f":"IF(M447=\"\",0,IF(AND(ISNUMBER(M447),LEN(M447)=8),IF(OR(VALUE(MID(M447,1,4))<2019,VALUE(MID(M447,1,4))>$BN$1,VALUE(MID(M447,5,2))<1,VALUE(MID(M447,5,2))>12,VALUE(MID(M447,7,2))<1,VALUE(MID(M447,7,2))>31),-1,1),IF(ISBLANK(M447),1,-1)))","v":0},{"$f":"IF(N447=\"\",0,IF(AND(ISNUMBER(N447),LEN(N447)=8),IF(OR(VALUE(MID(N447,1,4))<2019,VALUE(MID(N447,1,4))>$BN$1,VALUE(MID(N447,5,2))<1,VALUE(MID(N447,5,2))>12,VALUE(MID(N447,7,2))<1,VALUE(MID(N447,7,2))>31),-1,1),IF(ISBLANK(N447),1,-1)))","v":0},{"$f":"IF(O447=\"\",0,IF(OR(O447=1,O447=2,O447=3,O447=4,O447=5,O447=6,O447=7,O447=8,O447=9,O447=10),1,-1))","v":0},{"$f":"IF(P447=\"\",0,IF(OR(P447=0,P447=1),1,-1))","v":0},{"$f":"IF(Q447=\"\",0,IF(OR(Q447=0,Q447=1),1,-1))","v":0},{"$f":"IF(R447=\"\",0,IF(OR(R447=1,R447=2),1,-1))","v":0},{"$f":"IF(S447=\"\",0,IF(OR(S447=1,S447=2,S447=3,S447=4,S447=5,S447=6,S447=7,S447=8,S447=9,S447=10),1,-1))","v":0},{"$f":"IF(T447=\"\",0,IF(OR(T447=0,T447=1),1,-1))","v":0},{"$f":"IF(U447=\"\",0,IF(OR(U447=1,U447=2,U447=3,U447=4,U447=5,U447=6,U447=7,U447=8,U447=9,U447=10),1,-1))","v":0},{"$f":"IF(V447=\"\",0,IF(OR(V447=0,V447=1),1,-1))","v":0},{"$f":"IF(W447=\"\",0,IF(OR(W447=1,W447=2),1,-1))","v":0},{"$f":"IF(X447=\"\",0,IF(OR(X447=1,X447=2,X447=3,X447=4,X447=5,X447=6,X447=7,X447=8,X447=9,X447=10),1,-1))","v":0},{"$f":"IF(Y447=\"\",0,IF(OR(Y447=0,Y447=1),1,-1))","v":0},{"$f":"IF(Z447=\"\",0,IF(AND(ISNUMBER(Z447),LEN(Z447)=8),IF(OR(VALUE(MID(Z447,1,4))<2019,VALUE(MID(Z447,1,4))>$BN$1,VALUE(MID(Z447,5,2))<1,VALUE(MID(Z447,5,2))>12,VALUE(MID(Z447,7,2))<1,VALUE(MID(Z447,7,2))>31),-1,1),IF(ISBLANK(Z447),1,-1)))","v":0},{"$f":"IF(AA447=\"\",0,IF(OR(AND(LEN(AA447)=1,AA447>=0,AA447<10),AND(LEN(AA447)=2,AA447>9,AA447<100),AND(LEN(AA447)=3,AA447>99,AA447<1000)),1,-1))","v":0},{"$f":"IF(AB447=\"\",0,IF(ISERR(DL447),-1,IF(OR(DL447>360,DL447<0),-1,1)))","v":0},{"$f":"IF(AC447=\"\",0,IF(OR(AC447=1,AC447=2),1,-1))","v":0},{"$f":"IF(AD447=\"\",0,IF(OR(AD447=1,AD447=2),1,-1))","v":0},{"$f":"IF(AE447=\"\",0,IF(OR(AE447=1,AE447=2,AE447=3,AE447=4,AE447=5,AE447=6),1,-1))","v":0},{"$f":"IF(AF447=\"\",0,1)","v":0},{"$f":"IF(AG447=\"\",0,IF(OR(AG447=1,AG447=2,AG447=3,AG447=4),1,-1))","v":0},{"$f":"IF(AH447=\"\",0,1)","v":0},{"$f":"IF(AI447=\"\",0,IF(AND(ISNUMBER(AI447),LEN(AI447)=8),IF(OR(VALUE(MID(AI447,1,4))<2019,VALUE(MID(AI447,1,4))>$BN$1,VALUE(MID(AI447,5,2))<1,VALUE(MID(AI447,5,2))>12,VALUE(MID(AI447,7,2))<1,VALUE(MID(AI447,7,2))>31),-1,1),IF(ISBLANK(AI447),1,-1)))","v":0},{"$f":"IF(AJ447=\"\",0,IF(OR(AJ447=1,AJ447=2,AJ447=3,AJ447=4,AJ447=5,AJ447=6,AJ447=7),1,IF(OR(AJ447=8,AJ447=9),2,-1)))","v":0},{"$f":"IF(AK447=\"\",0,IF(OR(AK447=1,AK447=2,AK447=3,AK447=4,AK447=5,AK447=6,AK447=7),1,IF(OR(AK447=8,AK447=9),2,-1)))","v":0},{"$f":"IF(AL447=\"\",0,IF(OR(AL447=1,AL447=2,AL447=3,AL447=4,AL447=5,AL447=6,AL447=7),1,IF(OR(AL447=8,AL447=9),2,-1)))","v":0},{"$f":"IF(AM447=\"\",0,IF(OR(AM447=1,AM447=2,AM447=3,AM447=4,AM447=5,AM447=6,AM447=7),1,IF(OR(AM447=8,AM447=9),2,-1)))","v":0},{"$f":"IF(AN447=\"\",0,IF(OR(AN447=1,AN447=2,AN447=3,AN447=4,AN447=5,AN447=6,AN447=7),1,IF(OR(AN447=8,AN447=9),2,-1)))","v":0},{"$f":"IF(AO447=\"\",0,IF(OR(AO447=1,AO447=2,AO447=3,AO447=4,AO447=5,AO447=6,AO447=7),1,IF(AO447=9,2,-1)))","v":0},{"$f":"IF(AP447=\"\",0,IF(OR(AP447=1,AP447=2,AP447=3,AP447=4,AP447=5,AP447=6,AP447=7),1,IF(AP447=9,2,-1)))","v":0},{"$f":"IF(AQ447=\"\",0,IF(OR(AQ447=1,AQ447=2,AQ447=3,AQ447=4,AQ447=5,AQ447=6,AQ447=7),1,IF(AQ447=9,2,-1)))","v":0},{"$f":"IF(AR447=\"\",0,IF(OR(AR447=1,AR447=2,AR447=3,AR447=4,AR447=5,AR447=6,AR447=7),1,IF(AR447=9,2,-1)))","v":0},{"$f":"IF(AS447=\"\",0,IF(OR(AS447=1,AS447=2,AS447=3,AS447=4,AS447=5,AS447=6,AS447=7),1,IF(AS447=9,2,-1)))","v":0},{"$f":"IF(AT447=\"\",0,IF(OR(AT447=1,AT447=2,AT447=3,AT447=4,AT447=5,AT447=6,AT447=7),1,IF(AT447=9,2,-1)))","v":0},{"$f":"IF(AU447=\"\",0,IF(OR(AU447=1,AU447=2,AU447=3,AU447=4,AU447=5,AU447=6,AU447=7),1,IF(AU447=9,2,-1)))","v":0},{"$f":"IF(AV447=\"\",0,IF(OR(AV447=1,AV447=2,AV447=3,AV447=4,AV447=5,AV447=6,AV447=7),1,IF(AV447=9,2,-1)))","v":0},{"$f":"IF(AW447=\"\",0,IF(OR(AW447=1,AW447=2,AW447=3,AW447=4,AW447=5,AW447=6,AW447=7),1,IF(AW447=9,2,-1)))","v":0},{"$f":"IF(AX447=\"\",0,IF(OR(AX447=1,AX447=2,AX447=3,AX447=4,AX447=5,AX447=6,AX447=7),1,IF(AX447=9,2,-1)))","v":0},{"$f":"IF(AY447=\"\",0,IF(OR(AY447=1,AY447=2,AY447=3,AY447=4,AY447=5,AY447=6,AY447=7),1,IF(AY447=9,2,-1)))","v":0},{"$f":"IF(AZ447=\"\",0,IF(OR(AZ447=1,AZ447=2,AZ447=3,AZ447=4,AZ447=5,AZ447=6,AZ447=7),1,IF(AZ447=9,2,-1)))","v":0},{"$f":"IF(BA447=\"\",0,IF(OR(BA447=1,BA447=2,BA447=3,BA447=4,BA447=5,BA447=6,BA447=7),1,IF(BA447=9,2,-1)))","v":0},{"$f":"IF(BB447=\"\",0,IF(OR(BB447=1,BB447=2,BB447=3,BB447=4,BB447=5,BB447=6,BB447=7),1,IF(BB447=9,2,-1)))","v":0},{"$f":"IF(BC447=\"\",0,IF(OR(BC447=1,BC447=2,BC447=3,BC447=4,BC447=5,BC447=6,BC447=7),1,IF(BC447=9,2,-1)))","v":0},{"$f":"IF(BD447=\"\",0,IF(OR(BD447=1,BD447=2,BD447=3,BD447=4),1,-1))","v":0},{"$f":"IF(BE447=\"\",0,1)","v":0},{"$f":"IF(BI447=0,0,IF(BI447=-1,2,IF(VLOOKUP(H447,INDIRECT(\"'InfoW'!$A$3:$U$\"&InfoW!$A$2+2),21,FALSE)=\"Drop-Out\",1,0)))","v":0},{"$f":"IF(BK447=1,0,1)","v":1},{"$f":"IF(DG447=1,0,IF(DW447<>\"\",IF(K447=1,1,IF(K447=2,2,3)),0))","v":3},{"$f":"IF(AND(DG447=0,0,OR(DS447<>\"\",EI447<>\"\")),1,0)","v":0},{"$f":"IF(AND(DG447=0,0,OR(DT447<>\"\",EJ447<>\"\")),1,0)","v":0},{"$f":"IF(ISBLANK(AB447),0,IF(AND(LEN(AB447)=5,MID(AB447,3,1)=\":\",INT(MID(AB447,4,2))<60),60*MID(AB447,1,2)+MID(AB447,4,2),IF(AND(LEN(AB447)=4,MID(AB447,2,1)=\":\",INT(MID(AB447,3,2))<60),60*MID(AB447,1,1)+MID(AB447,3,2),#VALUE!)))","v":0},{"$f":"EM447","v":"mangelhaft"},{"$f":"IF(OR(DG447<>1,AND(BM447=0,BN447=0,BK447>0,BL447=1),AND(BM447=1,BN447=1),BK447>0,BL447=1),\"\",\"Drop-Out mangelhaft / \")","v":""},{"$f":"IF(BH447<>1,\"Rekordart mangelhaft / \",\"\")","v":"Rekordart mangelhaft / "},{"$f":"IF(BJ447=0,\"BUR mangelhaft / \",\"\")","v":"BUR mangelhaft / "},{"$f":"IF(BL447=0,\"FID fehlend / \",IF(BL447=1,\"\",\"Messzeitpunkt mangelhaft / \"))","v":"FID fehlend / "},{"$f":"IF(BK447=1,\"\",IF(BK447=2,\"Rehabereich nicht PU / \",\"Rehabereich mangelhaft / \"))","v":"Rehabereich mangelhaft / "},{"$f":"IF(COUNTIF(CA447:CI447,0)=9,\"Messung Gehtest fehlend / \",\"\")","v":"Messung Gehtest fehlend / "},{"$f":"IF(COUNTIF(CJ447:DF447,0)=23,\"Messung CRQ fehlend / \",\"\")","v":"Messung CRQ fehlend / "},{"$f":"IF(BO447=-1,\"ungültiges Datum \"&IF(K447=1,\"HZ / \",IF(K447=2,\"ZE / \",\"HZ/ZE / \")),\"\")","v":""},{"$f":"BO447&\"_\"&O447&\"|\"&P447&\"|\"&Q447&\"|\"&R447&\"|\"&S447&\"|\"&T447&\"|\"&U447&\"|\"&V447&\"|\"&W447&\"|\"&X447&\"|\"&Y447","v":"0_||||||||||"},{"$f":"IF(DV$447=\"0_||||||||||\",IF(K447=1,\"HZ fehlend / \",IF(K447=2,\"ZE fehlend / \",\"HZ/ZE fehlend / \")),IF(AND(K447=1,ISNA(VLOOKUP(DV447,InfoR!$C$204:$D$216,2,FALSE))),\"HZ unvollständig/unplausibel / \",IF(AND(K447=2,ISNA(VLOOKUP(DV447,InfoR!$C$8:$D$203,2,FALSE))),\"ZE unvollständig/unplausibel / \",IF(ISNA(VLOOKUP(DV447,InfoR!$C$8:$D$216,2,FALSE)),\"HZ/ZE unvollständig/unplausibel / \",\"\"))))","v":"HZ/ZE fehlend / "},{"$f":"IF(AND(COUNTIF(CA447:CI447,0)<9,OR(CA447=0,AND(COUNTIF(CB447:CE447,0)>0,CH447=0),AND(CB447=0,AG447=3),AND(COUNTIF(CB447:CE447,0)=0,CF447=0,IF(ISERR(DL447),FALSE,IF(AND(DL447>0,DL447<360),TRUE,FALSE))))),\"fehlende Angaben Gehtest / \",\"\")","v":""},{"$f":"IF(CA447=-1,\"ungültiges Datum GT6M / \",\"\")","v":""},{"$f":"IF(CB447=-1,\"ungültige Angabe Gehtest/Strecke / \",\"\")","v":""},{"$f":"IF(CC447=-1,\"ungültige Angabe Gehtest/Dauer / \",\"\")","v":""},{"$f":"IF(COUNTIF(CD447:CI447,-1)=0,\"\",\"ungültige Angaben Gehtest / \")","v":""},{"$f":"IF(AND(AA447=0,AG447=3,CA447=1,COUNTIF(CC447:CG447,0)=5),\"\",IF(OR(AND(COUNTIF(CB447:CE447,0)<4,IF(ISERR(DL447),TRUE,IF(AND(DL447>0,DL447<360),FALSE,TRUE)),OR(CF447<>0,CH447<>0)),AND(CF447<>0,CH447<>0),AND(CF447=0,IF(ISERR(DL447),FALSE,IF(AND(CC447<>0,DL447>0,DL447<360),TRUE,FALSE)))),\"unplausible Angaben Gehtest / \",\"\"))","v":""},{"$f":"IF(AND(CJ447<>0,OR(COUNTIF(CK447:DD447,0)=0,DE447<>0)),\"\",IF(COUNTIF(CJ447:DF447,0)=23,\"\",\"fehlende Angaben CRQ / \"))","v":""},{"$f":"IF(CJ447=-1,\"ungültiges Datum CRQ / \",\"\")","v":""},{"$f":"IF(COUNTIF(CK447:DF447,-1)=0,\"\",\"ungültige Angaben CRQ / \")","v":""},{"$f":"IF(AND(COUNTIF(CK447:DD447,0)<20,COUNTIF(CK447:DD447,2)<20,DE447<>0),\"unplausible Angaben CRQ / \",\"\")","v":""},{"$f":"IF(OR(AND(COUNTIF(CK447:CO447,1)>2,COUNTIF(CR447,1)+COUNTIF(CU447,1)+COUNTIF(CY447,1)+COUNTIF(DA447,1)>2,COUNTIF(CP447,1)+COUNTIF(CS447,1)+COUNTIF(CV447,1)+COUNTIF(CX447,1)+COUNTIF(CZ447,1)+COUNTIF(DB447,1)+COUNTIF(DD447,1)>3,COUNTIF(CQ447,1)+COUNTIF(CT447,1)+COUNTIF(CW447,1)+COUNTIF(DC447,1)>2),COUNTIF(CJ447:DF447,0)=23,DE447=1),\"\",\"zu wenig Werte für Subscore-Berechnung CRQ / \")","v":""},{"$f":"DX447&DY447&DZ447&EA447&EB447&EC447","v":""},{"$f":"ED447&EE447&EF447&EG447&EH447","v":""},{"$f":"DN447&DQ447&DR447&DS447&DT447&DU447&DW447&EI447&EJ447","v":"FID fehlend / Rehabereich mangelhaft / Messung Gehtest fehlend / Messung CRQ fehlend / HZ/ZE fehlend / "},{"$f":"DO447&DP447&EK447","v":"Rekordart mangelhaft / BUR mangelhaft / FID fehlend / Rehabereich mangelhaft / Messung Gehtest fehlend / Messung CRQ fehlend / HZ/ZE fehlend / "},{"$f":"IF(EK447<>\"\",\"mangelhaft\",\"\")","v":"mangelhaft"}]
[null,null,null,null,null,null,null,null,null,null,null,null,null,"NEU","NEU","NEU","NEU","NEU","NEU","NEU","NEU","NEU","NEU","NEU","NEU",null,null,null,null,null,null,null,null,null,null,null,null,null,null,null,null,null,null,null,null,null,null,null,null,null,null,null,null,null,null,null,null,null,null,null,null,null,null,null,null,null,"NEU","NEU","NEU","NEU","NEU","NEU","NEU","NEU","NEU","NEU","NEU","NEU",null,null,"> Übergabe in DN (OK)",null,null,null,null,null,null,null,null,null,null,null,null,null,null,null,null,null,null,null,null,null,null,null,null,null,null,null,null,null,null,null,null,null,null,null,null,null,null,null,null,null,"Prüfungen auf komplett fehlend erforderlich? (zumindest für Plausbilität/bedingte Formatierung bei Fehlen)",null,null,null,null,null,null,null,null,null,null,null,null,null,null,null,null,null,null,{"$f":"DO448&DP448&EK448","v":""},{"$f":"IF(EL448<>\"\",\"mangelhaft\",\"\")","v":""}]
[]
[]
[]
[]
[null,null,null,null,null,null,null,null,null,null,null,null,null,null,null,null,null,null,null,null,null,null,null,null,null,null,null,null,null,null,null,null,null,null,null,null,null,null,null,null,null,null,null,null,null,null,null,null,null,null,null,null,null,null,null,null,null,null,null,null,null,null,null,null,null,null,null,null,null,null,null,null,null,null,null,null,null,null,null,null,null,null,null,null,null,null,null,null,null,null,null,null,null,null,null,null,null,null,null,null,null,null,"SCIM fehlend nicht einzeln wie bei den anderen Messinstrumenten…"]
["PP","PP","PP",null,null,null," Rekordart"," Fallidentifikationsnummer"," Betriebsnummer \n (BUR-Satellit Gesundheit)"," Rehabereich"," Messzeitpunkt (Ein-/Austritt)"," Grund für Drop-Out (Fallausschluss)"," Datum Drop-Out"," HZ/ZE-Datum der Erhebung"," HZ_01_1 Hauptziel"," HZ_01_2 Unterstützung"," ZE_01 Zielanpassung des ... Hauptziels"," ZE_02_1 Zielerreichung ursprüngliches Ziel"," ZE_02_2 Stattdessen erreichtes Ziel "," ZE_02_3 Unterstützungsbedarf zu ZE_02_2"," ZE_03_1 Angepasstes Ziel"," ZE_03_2 Unterstützungsbedarf zu ZE_03_1"," ZE_04_1 Zielerreichung angepasstes Ziel"," ZE_04_2  Stattdessen erreichtes Ziel"," ZE_04_3 Unterstützungsbedarf zu ZE_04_2"," SCIM_Datum der Erhebung"," SCIM_01 Nahrungsaufnahme"," SCIM_02_1 Waschen: Oberkörper"," SCIM_02_2 Waschen: Unterkörper"," SCIM_03_1 An-/ Ausziehen: Oberkörper"," SCIM_03_2 An-/ Ausziehen: Unterkörper"," SCIM_04 Gesichtspflege"," SCIM_05 Atmung"," SCIM_06 Blasenmanagement"," SCIM_07 Darmmanagement"," SCIM_08 Toilettenhygiene"," SCIM_09 Bettmobilität und Dekubitusprophylaxe"," SCIM_10 Transfer Bett - Rollstuhl"," SCIM_11 Transfer Rollstuhl - WC"," SCIM_12 Mobilität im Haus"," SCIM_13 Mobilität bei mittleren Distanzen …"," SCIM_14 Mobilität ausser Haus, …"," SCIM_15 Treppensteigen"," SCIM_16 Transfer Rollstuhl - Auto"," SCIM_17 Transfer Boden - Rollstuhl",null,null," Rekordart"," Fallidentifikationsnummer"," Betriebsnummer \n (BUR-Satellit Gesundheit)"," Rehabereich"," Messzeitpunkt (Ein-/Austritt)"," Grund für Drop-Out (Fallausschluss)"," Datum Drop-Out"," HZ/ZE-Datum der Erhebung"," HZ_01_1 Hauptziel"," HZ_01_2 Unterstützung"," ZE_01 Zielanpassung des ... Hauptziels"," ZE_02_1 Zielerreichung ursprüngliches Ziel"," ZE_02_2 stattdessen erreichtes Ziel "," ZE_02_3 Unterstützungsbedarf zu ZE_02_2"," ZE_03_1 Angepasstes Ziel"," ZE_03_2 Unterstützungsbedarf zu ZE_03_1"," ZE_04_1 Zielerreichung angepasstes Ziel"," ZE_04_2  stattdessen erreichtes Ziel"," ZE_04_3 Unterstützungsbedarf zu ZE_04_2"," SCIM_Datum der Erhebung"," SCIM_01 Nahrungsaufnahme"," SCIM_02_1 Waschen: Oberkörper"," SCIM_02_2 Waschen: Unterkörper"," SCIM_03_1 An-/ Ausziehen: Oberkörper"," SCIM_03_2 An-/ Ausziehen: Unterkörper"," SCIM_04 Gesichtspflege"," SCIM_05 Atmung"," SCIM_06 Blasenmanagement"," SCIM_07 Darmmanagement"," SCIM_08 Toilettenhygiene"," SCIM_09 Bettmobilität und Dekubitusprophylaxe"," SCIM_10 Transfer Bett - Rollstuhl"," SCIM_11 Transfer Rollstuhl - WC"," SCIM_12 Mobilität im Haus"," SCIM_13 Mobilität bei mittleren Distanzen …"," SCIM_14 Mobilität ausser Haus, …"," SCIM_15 Treppensteigen"," SCIM_16 Transfer Rollstuhl - Auto"," SCIM_17 Transfer Boden - Rollstuhl","Drop-Out / Duplikat","Plausib Reha-Art/-Bereich","Plausib HZ/ZE (1 HZ, 2 ZE, 3 HZ/ZE)","Plausib SCIM","Mangel PS","Mangel Drop-Out","Rekordart","BUR","FID/Messezeitpunkt fehlend","Reha-Art/Rehabereich fehlend","HZ/ZE Datumsangabe","HZ/ZE Kombi","HZ/ZE (nur gültige Kombinationen erlaubt)","ANZ Antworten SCIM","SCIM Datumsangabe","SCIM ungültige Angaben","SCIM weniger als 20 Werte (inkl. Datum)\n- oder FEHLEND -","CONCAT auswertungsrelevant","CONCAT","Mängel insgesamt (evtl. Unterscheidung)"]
[null,null,null,null,null,null,"6.1.","FID","6.1.",null,null,null,null,"6.2.",null,null,null,null,null,null,null,null,null,null,null,"6.3.",null,null,null,null,null,null,null,null,null,null,null,null,null,null,null,null,null,null,null,"x",null,"6.1.","FID","6.1.",null,null,null,null,"6.2.",null,null,null,null,null,null,null,null,null,null,null,"6.3.",null,null,null,null,null,null,null,null,null,null,null,null,null,null,null,null,null,null,null,null,null,null,null,null,null,"err5101","err5102","err5103","err5104","err5200",null,"err5201-err5203",null,"err5401","err5402","err5403"]
[null,null,null,null,null,null,"V01",null,"V02","V03","V04","V05","V06","V00","V01","V02","V03","V04","V05","V06","V07","V08","V09","V10","V11","V00  ","V01","V02","V03","V04","V05","V06","V07","V08","V09","V10","V11","V12","V13","V14","V15","V16","V17","V18","V19","x",null,"V01",null,"V02","V03","V04","V05","V06","V00","V01","V02","V03","V04","V05","V06","V07","V08","V09","V10","V11","V00  ","V01","V02","V03","V04","V05","V06","V07","V08","V09","V10","V11","V12","V13","V14","V15","V16","V17","V18","V19"]
["Rehabereich 8",null,null,null,null,null,null,null,null,null,null,null,null,null,null,null,null,null,null,null,null,null,null,null,null,null,null,null,null,null,null,null,null,null,null,null,null,null,null,null,null,null,null,null,null,"_","_",{"$f":"IF(G457=\"\",0,IF(G457=\"PP\",1,-1))","v":0},{"$f":"IF(H457=\"\",0,IF(COUNTIF(A:A,A457)>1,-1,1))","v":0},{"$f":"IF(I457=\"\",0,IF(I457=AX$1,1,-1))","v":0},{"$f":"IF(J457=\"\",0,IF(J457=8,1,IF(OR(J457=1,J457=2,J457=3,J457=4,J457=5,J457=6,J457=7,J457=9,J457=10),2,-1)))","v":0},{"$f":"IF(K457=\"\",0,IF(OR(K457=1,K457=2),1,-1))","v":0},{"$f":"IF(L457=\"\",0,IF(L457=1,1,-1))","v":0},{"$f":"IF(M457=\"\",0,IF(AND(ISNUMBER(M457),LEN(M457)=8),IF(OR(VALUE(MID(M457,1,4))<2019,VALUE(MID(M457,1,4))>$BB$1,VALUE(MID(M457,5,2))<1,VALUE(MID(M457,5,2))>12,VALUE(MID(M457,7,2))<1,VALUE(MID(M457,7,2))>31),-1,1),IF(ISBLANK(M457),1,-1)))","v":0},{"$f":"IF(N457=\"\",0,IF(AND(ISNUMBER(N457),LEN(N457)=8),IF(OR(VALUE(MID(N457,1,4))<2019,VALUE(MID(N457,1,4))>$BB$1,VALUE(MID(N457,5,2))<1,VALUE(MID(N457,5,2))>12,VALUE(MID(N457,7,2))<1,VALUE(MID(N457,7,2))>31),-1,1),IF(ISBLANK(N457),1,-1)))","v":0},{"$f":"IF(O457=\"\",0,IF(OR(O457=1,O457=2,O457=3,O457=4,O457=5,O457=6,O457=7,O457=8,O457=9,O457=10),1,-1))","v":0},{"$f":"IF(P457=\"\",0,IF(OR(P457=0,P457=1),1,-1))","v":0},{"$f":"IF(Q457=\"\",0,IF(OR(Q457=0,Q457=1),1,-1))","v":0},{"$f":"IF(R457=\"\",0,IF(OR(R457=1,R457=2),1,-1))","v":0},{"$f":"IF(S457=\"\",0,IF(OR(S457=1,S457=2,S457=3,S457=4,S457=5,S457=6,S457=7,S457=8,S457=9,S457=10),1,-1))","v":0},{"$f":"IF(T457=\"\",0,IF(OR(T457=0,T457=1),1,-1))","v":0},{"$f":"IF(U457=\"\",0,IF(OR(U457=1,U457=2,U457=3,U457=4,U457=5,U457=6,U457=7,U457=8,U457=9,U457=10),1,-1))","v":0},{"$f":"IF(V457=\"\",0,IF(OR(V457=0,V457=1),1,-1))","v":0},{"$f":"IF(W457=\"\",0,IF(OR(W457=1,W457=2),1,-1))","v":0},{"$f":"IF(X457=\"\",0,IF(OR(X457=1,X457=2,X457=3,X457=4,X457=5,X457=6,X457=7,X457=8,X457=9,X457=10),1,-1))","v":0},{"$f":"IF(Y457=\"\",0,IF(OR(Y457=0,Y457=1),1,-1))","v":0},{"$f":"IF(Z457=\"\",0,IF(AND(ISNUMBER(Z457),LEN(Z457)=8),IF(OR(VALUE(MID(Z457,1,4))<2019,VALUE(MID(Z457,1,4))>$BB$1,VALUE(MID(Z457,5,2))<1,VALUE(MID(Z457,5,2))>12,VALUE(MID(Z457,7,2))<1,VALUE(MID(Z457,7,2))>31),-1,1),IF(ISBLANK(Z457),1,-1)))","v":0},{"$f":"IF(AA457=\"\",0,IF(OR(AA457=0,AA457=1,AA457=2,AA457=3),1,-1))","v":0},{"$f":"IF(AB457=\"\",0,IF(OR(AB457=0,AB457=1,AB457=2,AB457=3),1,-1))","v":0},{"$f":"IF(AC457=\"\",0,IF(OR(AC457=0,AC457=1,AC457=2,AC457=3),1,-1))","v":0},{"$f":"IF(AD457=\"\",0,IF(OR(AD457=0,AD457=1,AD457=2,AD457=3,AD457=4),1,-1))","v":0},{"$f":"IF(AE457=\"\",0,IF(OR(AE457=0,AE457=1,AE457=2,AE457=3,AE457=4),1,-1))","v":0},{"$f":"IF(AF457=\"\",0,IF(OR(AF457=0,AF457=1,AF457=2,AF457=3),1,-1))","v":0},{"$f":"IF(AG457=\"\",0,IF(OR(AG457=0,AG457=2,AG457=4,AG457=6,AG457=8,AG457=10),1,-1))","v":0},{"$f":"IF(AH457=\"\",0,IF(OR(AH457=0,AH457=3,AH457=6,AH457=9,AH457=11,AH457=13,AH457=15),1,-1))","v":0},{"$f":"IF(AI457=\"\",0,IF(OR(AI457=0,AI457=5,AI457=8,AI457=10),1,-1))","v":0},{"$f":"IF(AJ457=\"\",0,IF(OR(AJ457=0,AJ457=1,AJ457=2,AJ457=4,AJ457=5),1,-1))","v":0},{"$f":"IF(AK457=\"\",0,IF(OR(AK457=0,AK457=2,AK457=4,AK457=6),1,-1))","v":0},{"$f":"IF(AL457=\"\",0,IF(OR(AL457=0,AL457=1,AL457=2),1,-1))","v":0},{"$f":"IF(AM457=\"\",0,IF(OR(AM457=0,AM457=1,AM457=2),1,-1))","v":0},{"$f":"IF(AN457=\"\",0,IF(OR(AN457=0,AN457=1,AN457=2,AN457=3,AN457=4,AN457=5,AN457=6,AN457=7,AN457=8),1,-1))","v":0},{"$f":"IF(AO457=\"\",0,IF(OR(AO457=0,AO457=1,AO457=2,AO457=3,AO457=4,AO457=5,AO457=6,AO457=7,AO457=8),1,-1))","v":0},{"$f":"IF(AP457=\"\",0,IF(OR(AP457=0,AP457=1,AP457=2,AP457=3,AP457=4,AP457=5,AP457=6,AP457=7,AP457=8),1,-1))","v":0},{"$f":"IF(AQ457=\"\",0,IF(OR(AQ457=0,AQ457=1,AQ457=2,AQ457=3),1,-1))","v":0},{"$f":"IF(AR457=\"\",0,IF(OR(AR457=0,AR457=1,AR457=2),1,-1))","v":0},{"$f":"IF(AS457=\"\",0,IF(OR(AS457=0,AS457=1),1,-1))","v":0},{"$f":"IF(AW457=0,0,IF(AW457=-1,2,IF(VLOOKUP(H457,INDIRECT(\"'InfoW'!$A$3:$U$\"&InfoW!$A$2+2),21,FALSE)=\"Drop-Out\",1,0)))","v":0},{"$f":"IF(AY457=1,0,1)","v":1},{"$f":"IF(CI457=1,0,IF(CU457<>\"\",IF(K457=1,1,IF(K457=2,2,3)),0))","v":3},{"$f":"IF(AND(CI457=0,OR(CW457<>\"\",CY457<>\"\")),1,0)","v":1},{"$f":"DB457","v":"mangelhaft"},{"$f":"IF(OR(CI457<>1,AND(BA457=0,BB457=0,AY457>0,AZ457=1),AND(BA457=1,BB457=1,AY457>0,AZ457=1)),\"\",\"Drop-Out mangelhaft / \")","v":""},{"$f":"IF(AV457<>1,\"Rekordart mangelhaft / \",\"\")","v":"Rekordart mangelhaft / "},{"$f":"IF(AX457=0,\"BUR mangelhaft / \",\"\")","v":"BUR mangelhaft / "},{"$f":"IF(AW457=0,\"FID fehlend / \",IF(AZ457=1,\"\",\"Messzeitpunkt mangelhaft / \"))","v":"FID fehlend / "},{"$f":"IF(AY457=1,\"\",IF(AY457=2,\"Rehabereich nicht PP / \",\"Rehabereich mangelhaft / \"))","v":"Rehabereich mangelhaft / "},{"$f":"IF(BC457=-1,\"ungültiges Datum \"&IF(K457=1,\"HZ / \",IF(K457=2,\"ZE / \",\"HZ/ZE / \")),\"\")","v":""},{"$f":"BC457&\"_\"&O457&\"|\"&P457&\"|\"&Q457&\"|\"&R457&\"|\"&S457&\"|\"&T457&\"|\"&U457&\"|\"&V457&\"|\"&W457&\"|\"&X457&\"|\"&Y457","v":"0_||||||||||"},{"$f":"IF(CT$457=\"0_||||||||||\",IF(K457=1,\"HZ fehlend / \",IF(K457=2,\"ZE fehlend / \",\"HZ/ZE fehlend / \")),IF(AND(K457=1,ISNA(VLOOKUP(CT457,InfoR!$C$204:$D$216,2,FALSE))),\"HZ unvollständig/unplausibel / \",IF(AND(K457=2,ISNA(VLOOKUP(CT457,InfoR!$C$8:$D$203,2,FALSE))),\"ZE unvollständig/unplausibel / \",IF(ISNA(VLOOKUP(CT457,InfoR!$C$8:$D$216,2,FALSE)),\"HZ/ZE unvollständig/unplausibel / \",\"\"))))","v":"HZ/ZE fehlend / "},{"$f":"20-COUNTIF(BO457:CH457,0)","v":0},{"$f":"IF(BO457=-1,\"ungültiges Datum SCIM / \",\"\")","v":""},{"$f":"IF(COUNTIF(BP457:CH457,-1),\"ungültige Angaben SCIM / \",\"\")","v":""},{"$f":"IF(AND(CV457>0,CV457<20),\"fehlende Angaben SCIM / \",IF(AND(BO457=0,CV457=0),\"Messung SCIM fehlend\",\"\"))","v":"Messung SCIM fehlend"},{"$f":"CN457&CQ457&CR457&CS457&CU457&CW457&CX457&CY457","v":"FID fehlend / Rehabereich mangelhaft / HZ/ZE fehlend / Messung SCIM fehlend"},{"$f":"CZ457&CO457&CP457","v":"FID fehlend / Rehabereich mangelhaft / HZ/ZE fehlend / Messung SCIM fehlendRekordart mangelhaft / BUR mangelhaft / "},{"$f":"IF(CZ457<>\"\",\"mangelhaft\",\"\")","v":"mangelhaft"}]
[null,null,null,null,null,null,null,null,null,null,null,null,null,null,null,null,null,null,null,null,null,null,null,null,null,"NEU","NEU","NEU","NEU","NEU","NEU","NEU","NEU","NEU","NEU","NEU","NEU","NEU","NEU","NEU","NEU","NEU","NEU","NEU","NEU",null,null,null,null,null,null,null,null,null,null,null,null,null,null,null,null,null,null,null,null,null,"NEU","NEU","NEU","NEU","NEU","NEU","NEU","NEU","NEU","NEU","NEU","NEU","NEU","NEU","NEU","NEU","NEU","NEU","NEU","NEU"]
[]
[]
[]
[]
[]
["PS","PS","PS",null,null,null," Rekordart"," Fallidentifikationsnummer"," Betriebsnummer \n (BUR-Satellit Gesundheit)"," Rehabereich"," Messzeitpunkt (Ein-/Austritt)"," Grund für Drop-Out (Fallausschluss)"," Datum Drop-Out"," HZ/ZE-Datum der Erhebung"," HZ_01_1 Hauptziel"," HZ_01_2 Unterstützung"," ZE_01 Zielanpassung des ... Hauptziels"," ZE_02_1 Zielerreichung ursprüngliches Ziel"," ZE_02_2 Stattdessen erreichtes Ziel "," ZE_02_3 Unterstützungsbedarf zu ZE_02_2"," ZE_03_1 Angepasstes Ziel"," ZE_03_2 Unterstützungsbedarf zu ZE_03_1"," ZE_04_1 Zielerreichung angepasstes Ziel"," ZE_04_2  Stattdessen erreichtes Ziel"," ZE_04_3 Unterstützungsbedarf zu ZE_04_2"," PHQ_Datum der Erhebung"," PHQ_01 Bauchschmerzen"," PHQ_02 Rückenschmerzen"," PHQ_03 Schmerzen in Extremitäten"," PHQ_04 Menstruationsbeschwerden"," PHQ_05 Kopfschmerzen"," PHQ_06 Schmerzen im Brustbereich"," PHQ_07 Schwindel"," PHQ_08 Ohnmachtsanfälle"," PHQ_09 Herzklopfen oder Herzrasen"," PHQ_10 Kurzatmigkeit"," PHQ_11 Probleme beim Geschlechtsverkehr"," PHQ_12 Verstopfung, Durchfall"," PHQ_13 Übelkeit, Verdauungsbeschwerden"," PHQ_14 Müdigkeit"," PHQ_15 Schlafstörungen"," PHQ_Grund für Test-Verzicht / …"," PHQ_Grund für Test-Verzicht / …(andere)"," HADS_Datum der Erhebung"," HADS_01 Angespannt fühlen"," HADS_02 Freuen wie früher"," HADS_03 Ängstliche Vorahnung"," HADS_04 Lachen und lustige Seite sehen"," HADS_05 Beunruhigende Gedanken"," HADS_06 Glücklich fühlen"," HADS_07 Kann mich entspannen"," HADS_08 Fühle mich in Aktivitäten gebremst"," HADS_09 Ängstliches Gefühl"," HADS_10 Interesse an äusserer Erscheinung verloren"," HADS_11 Fühle mich rastlos"," HADS_12 Blicke mit Freude in die Zukunft"," HADS_13 Panikartiger Zustand"," HADS_14 An gutem Buch etc. freuen"," HADS_Grund für Test-Verzicht / …"," HADS_Grund für Test-Verzicht / ... (andere)",null,null," Rekordart"," Fallidentifikationsnummer"," Betriebsnummer \n (BUR-Satellit Gesundheit)"," Rehabereich"," Messzeitpunkt (Ein-/Austritt)"," Grund für Drop-Out (Fallausschluss)"," Datum Drop-Out"," HZ/ZE-Datum der Erhebung"," HZ_01_1 Hauptziel"," HZ_01_2 Unterstützung"," ZE_01 Zielanpassung des ... Hauptziels"," ZE_02_1 Zielerreichung ursprüngliches Ziel"," ZE_02_2 stattdessen erreichtes Ziel "," ZE_02_3 Unterstützungsbedarf zu ZE_02_2"," ZE_03_1 Angepasstes Ziel"," ZE_03_2 Unterstützungsbedarf zu ZE_03_1"," ZE_04_1 Zielerreichung angepasstes Ziel"," ZE_04_2  stattdessen erreichtes Ziel"," ZE_04_3 Unterstützungsbedarf zu ZE_04_2"," PHQ_Datum der Erhebung"," PHQ_01 Bauchschmerzen"," PHQ_02 Rückenschmerzen"," PHQ_03 Schmerzen in Extremitäten"," PHQ_04 Menstruationsbeschwerden"," PHQ_05 Kopfschmerzen"," PHQ_06 Schmerzen im Brustbereich"," PHQ_07 Schwindel"," PHQ_08 Ohnmachtsanfälle"," PHQ_09 Herzklopfen oder Herzrasen"," PHQ_10 Kurzatmigkeit"," PHQ_11 Probleme beim Geschlechtsverkehr"," PHQ_12 Verstopfung, Durchfall"," PHQ_13 Übelkeit, Verdauungsbeschwerden"," PHQ_14 Müdigkeit"," PHQ_15 Schlafstörungen"," PHQ_Grund für Test-Verzicht / …"," PHQ_Grund für Test-Verzicht / …(andere)"," HADS_Datum der Erhebung"," HADS_01 Angespannt fühlen"," HADS_02 Freuen wie früher"," HADS_03 Ängstliche Vorahnung"," HADS_04 Lachen und lustige Seite sehen"," HADS_05 Beunruhigende Gedanken"," HADS_06 Glücklich fühlen"," HADS_07 Kann mich entspannen"," HADS_08 Fühle mich in Aktivitäten gebremst"," HADS_09 Ängstliches Gefühl"," HADS_10 Interesse an äusserer Erscheinung verloren"," HADS_11 Fühle mich rastlos"," HADS_12 Blicke mit Freude in die Zukunft"," HADS_13 Panikartiger Zustand"," HADS_14 An gutem Buch etc. freuen"," HADS_Grund für Test-Verzicht / …"," HADS_Grund für Test-Verzicht / ... (andere)","Drop-Out / Duplikat","Plausib Reha-Art/-Bereich","Plausib HZ/ZE (1 HZ, 2 ZE, 3 HZ/ZE)","Plausib PHQ","Plausib HADS","Mangel PS","Mangel Drop-Out","Rekordart","BUR","FID/Messezeitpunkt fehlend","Rehabereich falsch/fehlend","PHQ fehlend","HADS fehlend","HZ/ZE Datumsangabe","HZ/ZE Kombi","HZ/ZE (nur gültige Kombinationen erlaubt)","PHQ fehlende Werte","VALID Datum PHQ","PHQ ungültige Werte","PHQ unplausible Angaben","PHQ zu viele Angaben unbekannt","HADS fehlende Werte","VALID Datum HADS","HADS ungültige Werte","HADS unplausible Angaben","HADS zu viele Angaben unbekannt","CONCAT PHQ","CONCAT HADS","CONCAT auswertungsrelevant","CONCAT","Mängel insgesamt (evtl. Unterscheidung)"]
[null,null,null,null,null,null,"7.1.","FID","7.1.",null,null,null,null,"7.2.",null,null,null,null,null,null,null,null,null,null,null,"7.3.",null,null,null,null,null,null,null,null,null,null,null,null,null,null,null,null,null,"7.4.",null,null,null,null,null,null,null,null,null,null,null,null,null,null,null,null,"x",null,"7.1.","FID","7.1.",null,null,null,null,"7.2.",null,null,null,null,null,null,null,null,null,null,null,"7.3.",null,null,null,null,null,null,null,null,null,null,null,null,null,null,null,null,null,"7.4.",null,null,null,null,null,null,null,null,null,null,null,null,null,null,null,null,null,null,null,null,null,null,null,"err5101","err5102","err5103","err5104","err6106-err6107","err6108","err5200",null,"err5201-err5203","err6400","err6401","err6402","err6403","err6404","err6400","err6401","err6402","err6403","err6404"]
[null,null,null,null,null,null,"V01",null,"V02","V03","V04","V05","V06","V00","V01","V02","V03","V04","V05","V06","V07","V08","V09","V10","V11","V00  ","V01","V02","V03","V04","V05","V06","V07","V08","V09","V10","V11","V12","V13","V14","V15","V16","V17","V00","V01","V02","V03","V04","V05","V06","V07","V08","V09","V10","V11","V12","V13","V14","V15","V16","x",null,"V01",null,"V02","V03","V04","V05","V06","V00","V01","V02","V03","V04","V05","V06","V07","V08","V09","V10","V11","V00  ","V01","V02","V03","V04","V05","V06","V07","V08","V09","V10","V11","V12","V13","V14","V15","V16","V17","V00","V01","V02","V03","V04","V05","V06","V07","V08","V09","V10","V11","V12","V13","V14","V15","V16"]
["Rehabereich 9",null,null,null,null,null,null,null,null,null,null,null,null,null,null,null,null,null,null,null,null,null,null,null,null,null,null,null,null,null,null,null,null,null,null,null,null,null,null,null,null,null,null,null,null,null,null,null,null,null,null,null,null,null,null,null,null,null,null,null,"_","_",{"$f":"IF(G467=\"\",0,IF(G467=\"PS\",1,-1))","v":0},{"$f":"IF(H467=\"\",0,IF(COUNTIF(A:A,A467)>1,-1,1))","v":0},{"$f":"IF(I467=\"\",0,IF(I467=BM$1,1,-1))","v":0},{"$f":"IF(J467=\"\",0,IF(J467=9,1,IF(OR(J467=1,J467=2,J467=3,J467=4,J467=5,J467=6,J467=7,J467=8,J467=10),2,-1)))","v":0},{"$f":"IF(K467=\"\",0,IF(OR(K467=1,K467=2),1,-1))","v":0},{"$f":"IF(L467=\"\",0,IF(L467=1,1,-1))","v":0},{"$f":"IF(M467=\"\",0,IF(AND(ISNUMBER(M467),LEN(M467)=8),IF(OR(VALUE(MID(M467,1,4))<2019,VALUE(MID(M467,1,4))>$BQ$1,VALUE(MID(M467,5,2))<1,VALUE(MID(M467,5,2))>12,VALUE(MID(M467,7,2))<1,VALUE(MID(M467,7,2))>31),-1,1),IF(ISBLANK(M467),1,-1)))","v":0},{"$f":"IF(N467=\"\",0,IF(AND(ISNUMBER(N467),LEN(N467)=8),IF(OR(VALUE(MID(N467,1,4))<2019,VALUE(MID(N467,1,4))>$BQ$1,VALUE(MID(N467,5,2))<1,VALUE(MID(N467,5,2))>12,VALUE(MID(N467,7,2))<1,VALUE(MID(N467,7,2))>31),-1,1),IF(ISBLANK(N467),1,-1)))","v":0},{"$f":"IF(O467=\"\",0,IF(OR(O467=1,O467=2,O467=3,O467=4,O467=5,O467=6,O467=7,O467=8,O467=9,O467=10),1,-1))","v":0},{"$f":"IF(P467=\"\",0,IF(OR(P467=0,P467=1),1,-1))","v":0},{"$f":"IF(Q467=\"\",0,IF(OR(Q467=0,Q467=1),1,-1))","v":0},{"$f":"IF(R467=\"\",0,IF(OR(R467=1,R467=2),1,-1))","v":0},{"$f":"IF(S467=\"\",0,IF(OR(S467=1,S467=2,S467=3,S467=4,S467=5,S467=6,S467=7,S467=8,S467=9,S467=10),1,-1))","v":0},{"$f":"IF(T467=\"\",0,IF(OR(T467=0,T467=1),1,-1))","v":0},{"$f":"IF(U467=\"\",0,IF(OR(U467=1,U467=2,U467=3,U467=4,U467=5,U467=6,U467=7,U467=8,U467=9,U467=10),1,-1))","v":0},{"$f":"IF(V467=\"\",0,IF(OR(V467=0,V467=1),1,-1))","v":0},{"$f":"IF(W467=\"\",0,IF(OR(W467=1,W467=2),1,-1))","v":0},{"$f":"IF(X467=\"\",0,IF(OR(X467=1,X467=2,X467=3,X467=4,X467=5,X467=6,X467=7,X467=8,X467=9,X467=10),1,-1))","v":0},{"$f":"IF(Y467=\"\",0,IF(OR(Y467=0,Y467=1),1,-1))","v":0},{"$f":"IF(Z467=\"\",0,IF(AND(ISNUMBER(Z467),LEN(Z467)=8),IF(OR(VALUE(MID(Z467,1,4))<2019,VALUE(MID(Z467,1,4))>$BQ$1,VALUE(MID(Z467,5,2))<1,VALUE(MID(Z467,5,2))>12,VALUE(MID(Z467,7,2))<1,VALUE(MID(Z467,7,2))>31),-1,1),IF(ISBLANK(Z467),1,-1)))","v":0},{"$f":"IF(AA467=\"\",0,IF(OR(AA467=0,AA467=1,AA467=2),1,IF(AA467=9,2,-1)))","v":0},0,0,0,0,0,0,0,0,0,0,0,0,0,0,{"$f":"IF(AP467=\"\",0,IF(OR(AP467=1,AP467=2,AP467=3,AP467=4),1,-1))","v":0},{"$f":"IF(AQ467=\"\",0,1)","v":0},{"$f":"IF(AR467=\"\",0,IF(AND(ISNUMBER(AR467),LEN(AR467)=8),IF(OR(VALUE(MID(AR467,1,4))<2019,VALUE(MID(AR467,1,4))>$BQ$1,VALUE(MID(AR467,5,2))<1,VALUE(MID(AR467,5,2))>12,VALUE(MID(AR467,7,2))<1,VALUE(MID(AR467,7,2))>31),-1,1),IF(ISBLANK(AR467),1,-1)))","v":0},{"$f":"IF(AS467=\"\",0,IF(OR(AS467=0,AS467=1,AS467=2,AS467=3),1,IF(AS467=9,2,-1)))","v":0},0,0,0,0,0,0,0,0,0,0,0,0,0,{"$f":"IF(BG467=\"\",0,IF(OR(BG467=1,BG467=2,BG467=3,BG467=4),1,-1))","v":0},{"$f":"IF(BH467=\"\",0,1)","v":0},{"$f":"IF(BL467=0,0,IF(BL467=-1,2,IF(VLOOKUP(H467,INDIRECT(\"'InfoW'!$A$3:$U$\"&InfoW!$A$2+2),21,FALSE)=\"Drop-Out\",1,0)))","v":0},{"$f":"IF(BN467=1,0,1)","v":1},{"$f":"IF(DM467=1,0,IF(EB467<>\"\",IF(K467=1,1,IF(K467=2,2,3)),0))","v":3},{"$f":"IF(AND(DM467=0,OR(DX467<>\"\",EM467<>\"\")),1,0)","v":1},{"$f":"IF(AND(DM467=0,OR(DY467<>\"\",EN467<>\"\")),1,0)","v":1},{"$f":"EQ467","v":"mangelhaft"},{"$f":"IF(OR(DM467<>1,AND(BP467=0,BQ467=0,BN467>0,BO467=1),AND(BP467=1,BQ467=1,BN467>0,BO467=1)),\"\",\"Drop-Out mangelhaft / \")","v":""},{"$f":"IF(BK467<>1,\"Rekordart mangelhaft / \",\"\")","v":"Rekordart mangelhaft / "},{"$f":"IF(BM467=0,\"BUR mangelhaft / \",\"\")","v":"BUR mangelhaft / "},{"$f":"IF(BL467=0,\"FID fehlend / \",IF(BO467=1,\"\",\"Messzeitpunkt mangelhaft / \"))","v":"FID fehlend / "},{"$f":"IF(BN467=1,\"\",IF(BN467=2,\"Rehabereich nicht PU / \",\"Rehabereich mangelhaft / \"))","v":"Rehabereich mangelhaft / "},{"$f":"IF(COUNTIF(CD467:CU467,0)=18,\"Messung PHQ fehlend / \",\"\")","v":"Messung PHQ fehlend / "},{"$f":"IF(COUNTIF(CV467:DL467,0)=17,\"Messung HADS fehlend / \",\"\")","v":"Messung HADS fehlend / "},{"$f":"IF(BR467=-1,\"ungültiges Datum \"&IF(K467=1,\"HZ / \",IF(K467=2,\"ZE / \",\"HZ/ZE / \")),\"\")","v":""},{"$f":"BR467&\"_\"&O467&\"|\"&P467&\"|\"&Q467&\"|\"&R467&\"|\"&S467&\"|\"&T467&\"|\"&U467&\"|\"&V467&\"|\"&W467&\"|\"&X467&\"|\"&Y467","v":"0_||||||||||"},{"$f":"IF(EA$467=\"0_||||||||||\",IF(K467=1,\"HZ fehlend / \",IF(K467=2,\"ZE fehlend / \",\"HZ/ZE fehlend / \")),IF(AND(K467=1,ISNA(VLOOKUP(EA467,InfoR!$C$204:$D$216,2,FALSE))),\"HZ unvollständig/unplausibel / \",IF(AND(K467=2,ISNA(VLOOKUP(EA467,InfoR!$C$8:$D$203,2,FALSE))),\"ZE unvollständig/unplausibel / \",IF(ISNA(VLOOKUP(EA467,InfoR!$C$8:$D$216,2,FALSE)),\"HZ/ZE unvollständig/unplausibel / \",\"\"))))","v":"HZ/ZE fehlend / "},{"$f":"IF(OR(COUNTIF(CD467:CU467,0)=18,AND(CD467<>0,OR(COUNTIF(CE467:CS467,0)=0,CT467<>0))),\"\",\"fehlende Angaben PHQ / \")","v":""},{"$f":"IF(CD467=-1,\"ungültiges Datum PHQ / \",\"\")","v":""},{"$f":"IF(COUNTIF(CE467:CU467,-1)=0,\"\",\"ungültige Angaben PHQ / \")","v":""},{"$f":"IF(AND(COUNTIF(CE467:CS467,0)<15,COUNTIF(CE467:CS467,2)<15,CT467<>0),\"unplausible Angaben PHQ / \",\"\")","v":""},{"$f":"IF(OR(CT467=1,COUNTIF(CE467:CS467,0)=15,COUNTIF(CE467:CS467,1)>11),\"\",\"zu wenig Werte für Berechnung PHQ / \")","v":""},{"$f":"IF(OR(COUNTIF(CV467:DL467,0)=17,AND(CV467<>0,OR(COUNTIF(CW467:DJ467,0)=0,DK467<>0))),\"\",\"fehlende Angaben HADS / \")","v":""},{"$f":"IF(CV467=-1,\"ungültiges Datum HADS / \",\"\")","v":""},{"$f":"IF(COUNTIF(CW467:DL467,-1)=0,\"\",\"ungültige Angaben HADS / \")","v":""},{"$f":"IF(AND(COUNTIF(CW467:DJ467,0)<14,COUNTIF(CW467:DJ467,2)<14,DK467<>0),\"unplausible Angaben HADS / \",\"\")","v":""},{"$f":"IF(OR(DK467=1,COUNTIF(CW467:DJ467,0)=14,AND(COUNTIF(CW467,1)+COUNTIF(CY467,1)+COUNTIF(DA467,1)+COUNTIF(DC467,1)+COUNTIF(DE467,1)+COUNTIF(DG467,1)+COUNTIF(DI467,1)>5,COUNTIF(CX467,1)+COUNTIF(CZ467,1)+COUNTIF(DB467,1)+COUNTIF(DD467,1)+COUNTIF(DF467,1)+COUNTIF(DH467,1)+COUNTIF(DJ467,1)>5)),\"\",\"zu wenig Werte für Subscore-Berechnung HADS / \")","v":""},{"$f":"EC467&ED467&EE467&EF467&EG467","v":""},{"$f":"EH467&EI467&EJ467&EK467&EL467","v":""},{"$f":"DS467&DV467&DW467&DZ467&EB467&DX467&EM467&DY467&EN467","v":"FID fehlend / Rehabereich mangelhaft / HZ/ZE fehlend / Messung PHQ fehlend / Messung HADS fehlend / "},{"$f":"EO467&DT467&DU467","v":"FID fehlend / Rehabereich mangelhaft / HZ/ZE fehlend / Messung PHQ fehlend / Messung HADS fehlend / Rekordart mangelhaft / BUR mangelhaft / "},{"$f":"IF(EO467<>\"\",\"mangelhaft\",\"\")","v":"mangelhaft"}]
[null,null,null,null,null,null,null,null,null,null,null,null,null,null,null,null,null,null,null,null,null,null,null,null,null,"NEU","NEU","NEU","NEU","NEU","NEU","NEU","NEU","NEU","NEU","NEU","NEU","NEU","NEU","NEU","NEU","NEU","NEU","NEU","NEU","NEU","NEU","NEU","NEU","NEU","NEU","NEU","NEU","NEU","NEU","NEU","NEU","NEU","NEU","NEU",null,null,null,null,null,null,null,null,null,null,null,null,null,null,null,null,null,null,null,null,null,null,null,null,null,null,null,null,null,null,null,null,null,null,null,null,null,null,null,null,null,null,null,null,null,null,null,null,null,null,null,null,null,null,null,null,null,null,null,null,null,null,null,null,null,null,null,null,null,null,null,null,null,null,null,"unplausibel: Verzicht und Messwerte",null,null,null,null,null,null,null,null,null,null,{"$f":"IF(EO468<>\"\",\"mangelhaft\",\"\")","v":""}]
[null,null,null,null,null,null,null,null,null,null,null,null,null,null,null,null,null,null,null,null,null,null,null,null,null,null,null,null,null,null,null,null,null,null,null,null,null,null,null,null,null,null,null,null,null,null,null,null,null,null,null,null,null,null,null,null,null,null,null,null,null,null,null,null,null,null,null,null,null,null,null,null,null,null,null,null,null,null,null,null,null,null,null,null,null,null,null,null,null,null,null,null,null,null,null,null,null,null,null,null,null,null,null,null,null,null,null,null,null,null,null,null,null,null,null,null,null,null,null,null,null,null,null,null,null,null,null,null,null,null,null,null,"max 3 fehlende Werte",null,null,null,null,"1 fehlender Wert pro Skala:"]
[null,null,null,null,null,null,null,null,null,null,null,null,null,null,null,null,null,null,null,null,null,null,null,null,null,null,null,null,null,null,null,null,null,null,null,null,null,null,null,null,null,null,null,null,null,null,null,null,null,null,null,null,null,null,null,null,null,null,null,null,null,null,null,null,null,null,null,null,null,null,null,null,null,null,null,null,null,null,null,null,null,null,null,null,null,null,null,null,null,null,null,null,null,null,null,null,null,null,null,null,null,null,null,null,null,null,null,null,null,null,null,null,null,null,null,null,null,null,null,null,null,null,null,null,null,null,null,null,null,null,null,null,null,null,null,null,null,"Angst: 1, 3, 5, 7, 9, 11, 13"]
[null,null,null,null,null,null,null,null,null,null,null,null,null,null,null,null,null,null,null,null,null,null,null,null,null,null,null,null,null,null,null,null,null,null,null,null,null,null,null,null,null,null,null,null,null,null,null,null,null,null,null,null,null,null,null,null,null,null,null,null,null,null,null,null,null,null,null,null,null,null,null,null,null,null,null,null,null,null,null,null,null,null,null,null,null,null,null,null,null,null,null,null,null,null,null,null,null,null,null,null,null,null,null,null,null,null,null,null,null,null,null,null,null,null,null,null,null,null,null,null,null,null,null,null,null,null,null,null,null,null,null,null,null,null,null,null,null,"Dep: 2, 4, 6, 8, 10, 12, 14"]

{"sheet":"MB temp","index":6,"n_rows":6,"n_cols":143,"rows_kept":6,"cut":false,"hidden":true,"merged":[[4,60,4,61],[4,62,4,116],[4,117,4,133],[4,6,4,59],[4,2,4,3]]}
[null,"MB","ANQ-Reha-Test-2021_v8.1",null,null,null,null,0,null,null,null,null,null,null,null,null,null,null,"► Demografie",null,null,null,null,"► Reha-Eintritt",null,null,null,null,null,null,null,null,null,"► Reha-Austritt",null,null,null,null,null,null,null,null,null,null,null,null,null,null,null,null,null,null,null,null,null,null,null,null,null,null,null,null,{"$f":"MODE(INDIRECT(\"J6:J\"&$H$1+5))","v":{"$error":"#N/A"}},{"$f":"IF(ISNA(BK1),-1,IF(AND(BK1>10000000,BK1<90000000),BK1,-1))","v":-1},null,null,null,null,"2/GRAU","2/GRAU","2/GRAU","2/GRAU",null,null,"Komma nicht geprüft","nur Länge geprüft",null,2021,"Y","Z","AA","AB","AC","AD","AE","AF","AG","AH","AI","AJ","AK","AL","AM","AN","AO","AP","AQ","AR","AS","AT","AU","AV","AW","AX","AY","AZ","BA","BB","BC","BD","BE","BF","BG","BH",null,null,null,null,null,null,null,null,null,null,null,null,null,null,null,null,null,null,null,null,null,null,null,null,null,"ohne BUR (DQ6)"]
[null,null,"Status MB (Mängel)",null,null,null,null," FID  (Importdaten Position 51)"," Rekordart"," Betriebsnummer \n (BUR-Satellit Gesundheit)"," Standort"," Kanton"," Anonymer Verbindungskode (nicht übermitteln!)"," Kennzeichnung des Statistikfalls"," Neugeborenen-Datensatz"," Psychiatrie-Datensatz"," Patientengruppendatensatz"," Kantonaler Datensatz"," Geschlecht"," Geburtsdatum (nicht übermitteln!)"," Alter bei Eintritt"," Wohnort (Region)"," Nationalität"," Eintrittsdatum und -Stunde"," Aufenthaltsort vor Eintritt"," Eintrittsart"," Einweisende Instanz"," Behandlungsart"," Klasse"," Aufenthalt in einer Intensivstation (Stunden)"," Administrativer Urlaub und Ferien (Stunden)"," Hauptkostenstelle"," Hauptkostenträger für Grundversicherungsleistungen"," Austrittsdatum und -Stunde"," Entscheid für Austritt"," Aufenthalt nach Austritt"," Behandlung nach Austritt"," Hauptdiagnose (ICD-10)"," Zusatz zu Hauptdiagnose (ICD-10)"," 1. Nebendiagnose (ICD-10)"," 2. Nebendiagnose (ICD-10)"," 3. Nebendiagnose (ICD-10)"," 4. Nebendiagnose (ICD-10)"," 5. Nebendiagnose (ICD-10)"," 6. Nebendiagnose (ICD-10)"," 7. Nebendiagnose (ICD-10)"," 8. Nebendiagnose (ICD-10)"," Hauptbehandlung (CHOP)"," Beginn Hauptbehandlung (Datum und Stunde)"," 1. weitere Behandlung (CHOP)"," 2. weitere Behandlung (CHOP)"," 3. weitere Behandlung (CHOP)"," 4. weitere Behandlung (CHOP)"," 5. weitere Behandlung (CHOP)"," 6. weitere Behandlung (CHOP)"," 7. weitere Behandlung (CHOP)"," 8. weitere Behandlung (CHOP)"," 9. weitere Behandlung (CHOP)"," Fallidentifikationsnummer FID"," Patientenidentifikationsnummer PID",null,null," Rekordart"," Betriebsnummer \n (BUR-Satellit Gesundheit)"," Standort"," Kanton"," Anonymer Verbindungskode (nicht übermitteln!)"," Kennzeichnung des Statistikfalls"," Neugeborenen-Datensatz"," Psychiatrie-Datensatz"," Patientengruppendatensatz"," Kantonaler Datensatz"," Geschlecht"," Geburtsdatum (nicht übermitteln!)"," Alter bei Eintritt"," Wohnort (Region)"," Nationalität"," Eintrittsdatum und -Stunde"," Aufenthaltsort vor Eintritt"," Eintrittsart"," Einweisende Instanz"," Behandlungsart"," Klasse"," Aufenthalt in einer Intensivstation (Stunden)"," Administrativer Urlaub und Ferien (Stunden)"," Hauptkostenstelle"," Hauptkostenträger für Grundversicherungsleistungen"," Austrittsdatum und -Stunde"," Entscheid für Austritt"," Aufenthalt nach Austritt"," Behandlung nach Austritt"," Hauptdiagnose (ICD-10)"," Zusatz zu Hauptdiagnose (ICD-10)"," 1. Nebendiagnose (ICD-10)"," 2. Nebendiagnose (ICD-10)"," 3. Nebendiagnose (ICD-10)"," 4. Nebendiagnose (ICD-10)"," 5. Nebendiagnose (ICD-10)"," 6. Nebendiagnose (ICD-10)"," 7. Nebendiagnose (ICD-10)"," 8. Nebendiagnose (ICD-10)"," Hauptbehandlund (CHOP"," Beginn Hauptbehandlung (Datum und Stunde)"," 1. weitere Behandlund (CHOP)"," 2. weitere Behandlung (CHOP)"," 3. weitere Behandlung (CHOP)"," 4. weitere Behandlung (CHOP)"," 5. weitere Behandlung (CHOP)"," 6. weitere Behandlung (CHOP)"," 7. weitere Behandlung (CHOP)"," 8. weitere Behandlung (CHOP)"," 9. weitere Behandlung (CHOP)"," Fallidentifikationsnummer FID"," Patientenidentifikations-nummer PID","Drop-Out / Duplikat","Mangel MB","Rekordart","anonymer Verbindungskode","Geburtsdatum übermittelt","MIS BUR","INVALID BUR","MIS Demo","INVALID Demo","MIS Eintritt","INVALID Eintritt","UNBEKANNT Eintritt","MIS Austritt","INVALID Austritt","UNBEKANNT Austritt","MIS Diagnose","VALID Diagnose","MIS FID/PID (2)","IVALID FID/PID (2)","Kodierung \"unbekannt\"","zus. VALID_DAT einbeziehen","zus. VALID_DAT einbeziehen","Hauptdiagnose","fehlende Angaben",null,"ungültige Angaben",null,"CONCAT","Mängel insgesamt (evtl. Unterscheidung)"]
[null,null,null,null,null,null,null,null,"0.1.",null,null,null,"0.2.",null,"0.3.",null,null,null,"1.1.",null,null,null,null,"1.2.",null,null,null,"1.3.",null,null,null,"1.4.",null,"1.5.",null,null,null,"1.6.",null,null,null,null,null,null,null,null,null,"1.7.",null,null,null,null,null,null,null,null,null,null,"FID","PID",null,null,"0.1.",null,null,null,"0.2.",null,"0.3.",null,null,null,"1.1.",null,null,null,null,"1.2.",null,null,null,"1.3.",null,null,null,"1.4.",null,"1.5.",null,null,null,"1.6.",null,null,null,null,null,null,null,null,null,"1.7.",null,null,null,null,null,null,null,null,null,null,"FID","PID",null,null,"err0001","err0200","err1100",null,null,null,null,null,null,null,null,null,null,null,null,null,null,"er0005",null,null,null,null,"er0003",null,"er0004"]
[null,null,null,null,null,null,null,null,"V01","V02","V03","V04","V01","V02","V01","V02","V03","V04","V01","V02","V03","V04","V05","V01","V02","V03","V04","V01","V02","V03","V04","V01","V02","V01","V02","V03","V04","V01","V02","V03","V04","V05","V06","V07","V08","V09","V10","V01","V02","V03","V04","V05","V06","V07","V08","V09","V10","V11",null,null,null,null,"V01","V02","V03","V04","V01","V02","V01","V02","V03","V04","V01","V02","V03","V04","V05","V01","V02","V03","V04","V01","V02","V03","V04","V01","V02","V01","V02","V03","V04","V01","V02","V03","V04","V05","V06","V07","V08","V09","V10","V01","V02","V03","V04","V05","V06","V07","V08","V09","V10","V11"]
[null,{"$f":"IF(AND(J5<>\"\",COUNTIF(J$5:J$5,J5)>1),\"DUP\",\"\")","v":""},"Filter   ►",null,null,null,null,null,null,null,null,null,null,null,null,null,null,null,null,null,null,null,null,null,null,null,null,null,null,null,null,null,null,null,null,null,null,null,null,null,null,null,null,null,null,null,null,null,null,null,null,null,null,null,null,null,null,null,null,null,null,null,null,null,null,null,null,null,null,null,null,null,null,null,null,null,null,null,null,null,null,null,null,null,null,null,null,null,null,null,null,null,null,null,null,null,null,null,null,null,null,null,null,null,null,null,null,null,null,null,null,null,null,null,null,null,null,"OK"]
[null,{"$f":"IF(AND(J6<>\"\",COUNTIF(J$5:J$5,J6)>1),\"DUP\",\"\")","v":""},{"$f":"IF(DK6=2,\"Duplikat / \"&EL6,IF(COUNTIF(BH6:DJ6,0)=52,\"\",EL6))","v":0},null,null,null,null,{"$f":"IF(ISBLANK(BG6),\"\",BG6)","v":""}]

{"sheet":"ZU temp","index":7,"n_rows":6,"n_cols":56,"rows_kept":6,"cut":false,"hidden":true,"merged":[[4,2,4,3],[4,5,4,23],[4,24,4,25],[4,26,4,55]]}
[null,"ZU","ANQ-Reha-Test-2021_v8.1",null,null,null,null,0,null,null,null,null,null,null,null,null,null,null,null,null,null,null,null,null,null,null,null,{"$f":"MODE(INDIRECT(\"I6:I\"&$H$1+5))","v":{"$error":"#N/A"}},{"$f":"IF(ISNA(AB1),-1,IF(AND(AB1>10000000,AB1<90000000),AB1,-1))","v":-1},2021,null,null,null,null,null,null,null,null,null,null,null,null,null,null,null,null,null,null,null,{"$f":"IF(AC6<>1,\"BUR mangelhaft / \",\"\")","v":"BUR mangelhaft / "}]
[null,null,"Status ZU (Mängel)",null,null,null," Rekordart"," Fallidentifikationsnummer"," Betriebsnummer \n (BUR-Satellit Gesundheit)"," CIRS_Datum der Erhebung"," CIRS_01 Herz"," CIRS_02 Hypertonie"," CIRS_03 Gefässe"," CIRS_04 Respiratorisches System"," CIRS_05 Augen, Ohren, Nase, Rachen, …"," CIRS_06 Oberer Gastrointestinaltrakt"," CIRS_07 Unterer Gastrointestinaltrakt"," CIRS_08 Leber und Gallengangsystem"," CIRS_09 Nieren"," CIRS_10 Restlicher Urogenitaltrakt"," CIRS_11 Bewegungsapparat und Haut"," CIRS_12 Neurologisches System"," CIRS_13 Endokrinium und Stoffwechsel"," CIRS_14 Psychische Erkrankungen / …","x",null," Rekordart"," Fallidentifikationsnummer"," Betriebsnummer \n (BUR-Satellit Gesundheit)"," CIRS_Datum der Erhebung"," CIRS_01 Herz"," CIRS_02 Hypertonie"," CIRS_03 Gefässe"," CIRS_04 Respiratorisches System"," CIRS_05 Augen, Ohren, Nase, Rachen, …"," CIRS_06 Oberer Gastrointestinaltrakt"," CIRS_07 Unterer Gastrointestinaltrakt"," CIRS_08 Leber und Gallengangsystem"," CIRS_09 Nieren"," CIRS_10 Restlicher Urogenitaltrakt"," CIRS_11 Bewegungsapparat und Haut"," CIRS_12 Neurologisches System"," CIRS_13 Endokrinium und Stoffwechsel"," CIRS_14 Psychische Erkrankungen / …","Drop-Out / Duplikat","VALID Antworten CIRS","ANZ Antworten CIRS","FID","ZU","BUR","CIRS Datumsangabe","CIRS ungültige Angaben","CIRS weniger als 14 Werte","CONCAT auswertungsrelevant","CONCAT","Mängel insgesamt (evtl. Unterscheidung)"]
[null,null,null,null,null,null,"2.1.","FID","2.1.","2.2.",null,null,null,null,null,null,null,null,null,null,null,null,null,null,"x",null,"2.1.","FID","2.1.","2.2.",null,null,null,null,null,null,null,null,null,null,null,null,null,null,null,null,null,null,"err7101","err7102","err7200","err7201","err7203"]
[null,null,null,null,null,null,"V01",null,"V02","V00","V01","V02","V03","V04","V05","V06","V07","V08","V09","V10","V11","V12","V13","V14","x",null,"V01",null,"V02","V00","V01","V02","V03","V04","V05","V06","V07","V08","V09","V10","V11","V12","V13","V14"]
[null,null,"Filter   ►"]
[null,null,{"$f":"IF(COUNTIF(AA6:AR6,0)=18,\"\",IF(AS6=2,\"Duplikat / \"&BC6,IF(AS6=1,\"Drop-Out\",IF(BC6<>\"\",BC6,\"\"))))","v":""},null,null,null,null,null,null,null,null,null,null,null,null,null,null,null,null,null,null,null,null,null,"x"]

{"sheet":"FF temp","index":8,"n_rows":6,"n_cols":153,"rows_kept":6,"cut":false,"hidden":true,"merged":[[4,2,4,3],[4,5,4,64],[4,65,4,66],[4,67,4,131]]}
[null,"FF","ANQ-Reha-Test-2021_v8.1",null,null,null,null,0,null,null,null,null,null,null,null,null,null,null,null,null,null,null,null,null,null,null,null,null,null,null,null,null,null,null,null,null,null,null,null,null,null,null,null,null,null,null,null,null,null,null,null,null,null,null,null,null,null,null,null,null,null,null,null,null,null,null,null,null,{"$f":"MODE(INDIRECT(\"I6:I\"&$H$1+5))","v":{"$error":"#N/A"}},{"$f":"IF(ISNA(BQ1),-1,IF(AND(BQ1>10000000,BQ1<90000000),BQ1,-1))","v":-1},null,null,null,2021]
["ID*Messzeitpunkt > AUSBLENDEN",null,"Status FF (Mängel)",null,null,null," Rekordart"," Fallidentifikationsnummer"," Betriebsnummer \n (BUR-Satellit Gesundheit)"," Rehabereich"," Messzeitpunkt (Ein-/Austritt)"," Grund für Drop-Out (Fallausschluss)"," Datum Drop-Out"," HZ/ZE-Datum der Erhebung"," HZ_01_1 Hauptziel"," HZ_01_2 Unterstützung"," ZE_01 Zielanpassung des ... Hauptziels"," ZE_02_1 Zielerreichung ursprüngliches Ziel"," ZE_02_2 stattdessen erreichtes Ziel "," ZE_02_3 Unterstützungsbedarf zu ZE_02_2"," ZE_03_1 Angepasstes Ziel"," ZE_03_2 Unterstützungsbedarf zu ZE_03_1"," ZE_04_1 Zielerreichung angepasstes Ziel"," ZE_04_2  stattdessen erreichtes Ziel"," ZE_04_3 Unterstützungsbedarf zu ZE_04_2"," FIM_Datum der Erhebung"," FIM_01 Essen/Trinken"," FIM_02 Körperpflege"," FIM_03 Baden/Duschen/Waschen"," FIM_04 Ankleiden Oberkörper"," FIM_05 Ankleiden Unterkörper"," FIM_06 Toilettenhygiene"," FIM_07 Blasenkontrolle"," FIM_08 Darmkontrolle"," FIM_09 Transfer Bett/Stuhl/Rollstuhl"," FIM_10 Transfer Toilettensitz"," FIM_11 Transfer Badewanne"," FIM_12_1 Gehen oder Rollstuhlfahren"," FIM_12_2 Spezifikation Fortbewegungsart"," FIM_12_3 Rollstuhlfahren"," FIM_13 Treppensteigen"," FIM_14 Verstehen akustisch/visuell"," FIM_14_1 Spezifikation Kommunikationsform: Verstehen"," FIM_15 Ausdruck verbal/nonverbal"," FIM_15_1: Spezifikation Kommunikationsform: Ausdruck"," FIM_16 Soziales Verhalten"," FIM_17 Problemlösungsfähigkeit"," FIM_18 Gedächtnis"," EBI_Datum der Erhebung"," EBI_01 Essen und Trinken"," EBI_02 Persönliche Pflege"," EBI_03 An- / Ausziehen"," EBI_04 Baden / Duschen / Körper waschen"," EBI_05 Umsteigen aus Rollstuhl in Bett …"," EBI_06 Fortbewegung auf ebenem …"," EBI_07 Treppen auf- / absteigen"," EBI_08 Benutzung der Toilette"," EBI_09 Stuhlkontrolle "," EBI_10 Harnkontrolle"," EBI_11 Verstehen"," EBI_12 Verständlichkeit "," EBI_13 Soziale Interaktion"," EBI_14 Problemlösen"," EBI_15 Gedächtnis / Lernfähigkeit / …"," EBI_16 Sehen / Neglect"," HAQ_01 Ankleiden",null,"Rekordart"," Fallidentifikationsnummer"," Betriebsnummer \n (BUR-Satellit Gesundheit)"," Rehabereich"," Messzeitpunkt (Ein-/Austritt)"," Grund für Drop-Out (Ausschluss aus Gesamt-Messung)"," Datum Drop-Out"," HZ/ZE-Datum der Erhebung"," HZ_01_1 Hauptziel"," HZ_01_2 Unterstützung"," ZE_01 Zielanpassung des zu Reha-Beginn festgelegten Hauptziels"," ZE_02_1 Zielerreichung ursprüngliches Ziel"," ZE_02_2 stattdessen erreichtes Ziel "," ZE_02_3 Unterstützungsbedarf des stattdessen erreichten Ziels "," ZE_03_1 Angepasstes Ziel"," ZE_03_2 Unterstützungsbedarf angepasstes Ziel"," ZE_04_1 Zielerreichung angepasstes Ziel"," ZE_04_2  stattdessen erreichtes Ziel"," ZE_04_3 Unterstützungsbedarf des stattdessen erreichten Ziels"," FIM_Datum der Erhebung"," FIM_01 Essen/Trinken"," FIM_02 Körperpflege"," FIM_03 Baden/Duschen/Waschen"," FIM_04 Ankleiden Oberkörper"," FIM_05 Ankleiden Unterkörper"," FIM_06 Toilettenhygiene"," FIM_07 Blasenkontrolle"," FIM_08 Darmkontrolle"," FIM_09 Transfer Bett/Stuhl/Rollstuhl"," FIM_10 Transfer Toilettensitz"," FIM_11 Transfer Badewanne"," FIM_12_1 Gehen oder Rollstuhlfahren"," FIM_12_2 Spezifikation Fortbewegungsart"," FIM_12_3 Rollstuhlfahren"," FIM_13 Treppensteigen"," FIM_14 Verstehen akustisch/visuell"," FIM_14_1 Spezifikation Kommunikationsform: Verstehen"," FIM_15 Ausdruck verbal/nonverbal"," FIM_15_1: Spezifikation Kommunikationsform: Ausdruck"," FIM_16 Soziales Verhalten"," FIM_17 Problemlösungsfähigkeit"," FIM_18 Gedächtnis"," EBI_Datum der Erhebung"," EBI_01 Essen und Trinken"," EBI_02 Persönliche Pflege"," EBI_03 An- / Ausziehen"," EBI_04 Baden / Duschen / Körper waschen"," EBI_05 Umsteigen aus Rollstuhl in Bett und umgekehrt"," EBI_06 Fortbewegung auf ebenem Untergrund"," EBI_07 Treppen auf- / absteigen"," EBI_08 Benutzung der Toilette"," EBI_09 Stuhlkontrolle "," EBI_10 Harnkontrolle"," EBI_11 Verstehen"," EBI_12 Verständlichkeit "," EBI_13 Soziale Interaktion"," EBI_14 Problemlösen"," EBI_15 Gedächtnis / Lernfähigkeit / Orientierung"," EBI_16 Sehen / Neglect","Drop-Out / Duplikat","Plausib Reha-Art/-Bereich","Plausib HZ/ZE","Plausib FIM","Plausib EBI","Mangel FF","Drop-Out","Rekordart","BUR","FID/Messezeitpunkt fehlend","Reha-Art/Rehabereich fehlend","HZ/ZE Datumsangabe","HZ/ZE Kombi","HZ/ZE (nur gültige Kombinationen erlaubt)","ANZ FIM","ANZ EBI","FIM Datumsangabe","FIM ungültige Angaben","FIM weniger als 21/22 Werte [Plausib wird nicht geprüft!]","FIM Fortbewegung unplausibel","EBI Datumsangabe","EBI ungültige Angaben","EBI weniger als 17 Werte (inkl. Datum)","weder FIM noch EBI vorhanden","CONCAT auswertungsrelevant","CONCAT","Mängel insgesamt (evtl. Unterscheidung)"]
[null,null,null,null,null,null,"3.1.","FID","3.1.",null,null,null,null,"3.2.",null,null,null,null,null,null,null,null,null,null,null,"3.3.",null,null,null,null,null,null,null,null,null,null,null,null,null,null,null,null,null,null,null,null,null,null,"3.4.",null,null,null,null,null,null,null,null,null,null,null,null,null,null,null,null,"x",null,"3.1.","FID","3.1.",null,null,null,null,"3.2.",null,null,null,null,null,null,null,null,null,null,null,"3.3.",null,null,null,null,null,null,null,null,null,null,null,null,null,null,null,null,null,null,null,null,null,null,"3.4.",null,null,null,null,null,null,null,null,null,null,null,null,null,null,null,null,null,null,null,null,null,null,null,"err5101","err5102","err5103","err5104","err5200",null,"err5201-err5203",null,null,"err5300","err5301","err5302","err5303","err5401","err5402","err5403","err5500"]
[null,null,null,null,null,null,"V01",null,"V02","V03","V04","V05","V06","V00","V01","V02","V03","V04","V05","V06","V07","V08","V09","V10","V11","V00  ","V01","V02","V03","V04","V05","V06","V07","V08","V09","V10","V11","V12","V13","V14","V15","V16","V17","V18","V19","V20","V21","V22","V00","V01","V02","V03","V04","V05","V06","V07","V08","V09","V10","V11","V12","V13","V14","V15","V16","x",null,"V01",null,"V02","V03","V04","V05","V06","V00","V01","V02","V03","V04","V05","V06","V07","V08","V09","V10","V11","V00  ","V01","V02","V03","V04","V05","V06","V07","V08","V09","V10","V11","V12","V13","V14","V15","V16","V17","V18","V19","V20","V21","V22","V00","V01","V02","V03","V04","V05","V06","V07","V08","V09","V10","V11","V12","V13","V14","V15","V16"]
[null,null,"Filter   ►"]
[{"$f":"CONCATENATE(H6,K6)","v":""},null,{"$f":"IF(COUNTIF(BP6:DV6,0)=59,\"\",IF(DW6=2,\"Duplikat / \"&EV6,IF(DW6=1,\"Drop-Out\"&IF(EC6=\"\",\"\",\" (mangelhaft)\"),IF(EV6<>\"\",EV6,\"\"))))","v":""},null,null,null,null,null,null,null,null,null,null,null,null,null,null,null,null,null,null,null,null,null,null,null,null,null,null,null,null,null,null,null,null,null,null,null,null,null,null,null,null,null,null,null,null,null,null,null,null,null,null,null,null,null,null,null,null,null,null,null,null,null,null,"x"]

{"sheet":"KA temp","index":9,"n_rows":6,"n_cols":181,"rows_kept":6,"cut":false,"hidden":true,"merged":[[4,2,4,3],[4,5,4,70],[4,71,4,72],[4,73,4,148]]}
[null,"KA","ANQ-Reha-Test-2021_v8.1",null,null,null,null,0,null,null,null,null,null,null,null,null,null,null,null,null,null,null,null,null,null,null,null,null,null,null,null,null,null,null,null,null,null,null,null,null,null,null,null,null,null,null,null,null,null,null,null,null,null,null,null,null,null,null,null,null,null,null,null,null,null,null,null,null,null,null,null,null,null,null,{"$f":"MODE(INDIRECT(\"I6:I\"&$H$1+5))","v":{"$error":"#N/A"}},{"$f":"IF(ISNA(BW1),-1,IF(AND(BW1>10000000,BW1<90000000),BW1,-1))","v":-1},null,null,null,2021]
[null,null,"Status KA (Mängel)",null,null,null," Rekordart"," Fallidentifikationsnummer"," Betriebsnummer \n (BUR-Satellit Gesundheit)"," Rehabereich"," Messzeitpunkt (Ein-/Austritt)"," Grund für Drop-Out (Fallausschluss)"," Datum Drop-Out"," HZ/ZE-Datum der Erhebung"," HZ_01_1 Hauptziel"," HZ_01_2 Unterstützung"," ZE_01 Zielanpassung des ... Hauptziels"," ZE_02_1 Zielerreichung ursprüngliches Ziel"," ZE_02_2 stattdessen erreichtes Ziel "," ZE_02_3 Unterstützungsbedarf zu ZE_02_2"," ZE_03_1 Angepasstes Ziel"," ZE_03_2 Unterstützungsbedarf zu ZE_03_1"," ZE_04_1 Zielerreichung angepasstes Ziel"," ZE_04_2  stattdessen erreichtes Ziel"," ZE_04_3 Unterstützungsbedarf zu ZE_04_2"," 6MWT_Datum der Durchführung"," 6MWT_1 Zurückgelegte Strecke"," 6MWT_2 Gehdauer in Minuten"," 6MWT_3 Verwendung einer Gehhilfe"," 6MWT_4 Abgabe von Sauerstoff"," 6MWT_5 Grund für Test-Abbruch "," 6MWT_6 Grund für Abbruch (Anderer)"," 6MWT_7 Grund für Test-Verzicht / .."," 6MWT_8 Grund für Test-Verzicht / .. (Anderer)"," Ergo_Datum der Durchführung"," Ergo_1 Maximale Leistung "," Ergo_2 Dauer der Belastungsphase "," Ergo_3 Grund für Test-Abbruch"," Ergo_4 Grund für Abbruch (Anderer)"," Ergo_5 Grund für Test-Verzicht / .."," Ergo_6 Grund für Test-Verzicht/ .. (Anderer)"," MacNew_Datum der Erhebung"," MacNew_01 frustriert gefühlt"," MacNew_02 wertlos gefühlt"," MacNew_03 zuversichtlich gefühlt"," MacNew_04 entmutigt gefühlt"," MacNew_05 entspannt gefühlt "," MacNew_06 erschöpft gefühlt "," MacNew_07 glücklich und zufrieden"," MacNew_08 rastlos gefühlt "," MacNew_09 Stärke Atemnot"," MacNew_10 zum Weinen gefühlt"," MacNew_11 abhängiger gefühlt "," MacNew_12 außerstande … zu Aktivitäten"," MacNew_13 mangelndes Vertrauen anderer "," MacNew_14 Brustschmerzen"," MacNew_15 Mangel an Selbstbewusstsein"," MacNew_16 … schmerzende Beine"," MacNew_17 beim Sport eingeschränkt "," MacNew_18 besorgt oder verängstigt …"," MacNew_19 schwindlig oder benommen …"," MacNew_20 eingeschränkt oder reduziert …"," MacNew_21 unsicher … körperl. Aktivität"," MacNew_22 Familie als zu besorgt …"," MacNew_23 als Last für andere gefühlt "," MacNew_24 Ausschluss von Aktivitäten"," MacNew_25 unfähig zu sozialen Kontakten …"," MacNew_26 … körperl. Belastung eingeschränkt"," MacNew_27 beeinträchtigtes Sexualleben"," MacNew_Grund für Test-Verzicht / .."," MacNew_Grund für Test-Verzicht/ .. (Anderer)",null,null," Rekordart"," Fallidentifikationsnummer"," Betriebsnummer \n (BUR-Satellit Gesundheit)"," Rehabereich"," Messzeitpunkt (Ein-/Austritt)"," Grund für Drop-Out (Fallausschluss)"," Datum Drop-Out"," HZ/ZE-Datum der Erhebung"," HZ_01_1 Hauptziel"," HZ_01_2 Unterstützung"," ZE_01 Zielanpassung des ... Hauptziels"," ZE_02_1 Zielerreichung ursprüngliches Ziel"," ZE_02_2 stattdessen erreichtes Ziel "," ZE_02_3 Unterstützungsbedarf zu ZE_02_2"," ZE_03_1 Angepasstes Ziel"," ZE_03_2 Unterstützungsbedarf zu ZE_03_1"," ZE_04_1 Zielerreichung angepasstes Ziel"," ZE_04_2  stattdessen erreichtes Ziel"," ZE_04_3 Unterstützungsbedarf zu ZE_04_2"," 6MWT_Datum der Durchführung"," 6MWT_1 Zurückgelegte Strecke"," 6MWT_2 Gehdauer in Minuten"," 6MWT_3 Verwendung einer Gehhilfe"," 6MWT_4 Abgabe von Sauerstoff"," 6MWT_5 Grund für Test-Abbruch "," 6MWT_6 Grund für Abbruch (Anderer)"," 6MWT_7 Grund für Test-Verzicht "," 6MWT_8 Grund für Test-Verzicht (Anderer)"," Ergo_Datum der Durchführung"," Ergo_1 Maximale Leistung "," Ergo_2 Dauer der Belastungsphase "," Ergo_3 Grund für Test-Abbruch"," Ergo_4 Grund für Abbruch (Anderer)"," Ergo_5 Grund für Test-Verzicht "," Ergo_6 Grund für Test-Verzicht (Anderer)"," MacNew_Datum der Erhebung"," MacNew_01 frustriert gefühlt"," MacNew_02 wertlos gefühlt"," MacNew_03 zuversichtlich gefühlt"," MacNew_04 entmutigt gefühlt"," MacNew_05 entspannt gefühlt "," MacNew_06 erschöpft gefühlt "," MacNew_07 glücklich und zufrieden"," MacNew_08 rastlos gefühlt "," MacNew_09 Stärke Atemnot"," MacNew_10 zum Weinen gefühlt"," MacNew_11 abhängiger gefühlt "," MacNew_12 außerstande … zu Aktivitäten"," MacNew_13 mangelndes Vertrauen anderer "," MacNew_14 Brustschmerzen"," MacNew_15 Mangel an Selbstbewusstsein"," MacNew_16 … schmerzende Beine"," MacNew_17 beim Sport eingeschränkt "," MacNew_18 besorgt oder verängstigt …"," MacNew_19 schwindlig oder benommen …"," MacNew_20 eingeschränkt oder reduziert …"," MacNew_21 unsicher … körperl. Aktivität"," MacNew_22 Familie als zu besorgt …"," MacNew_23 als Last für andere gefühlt "," MacNew_24 Ausschluss von Aktivitäten"," MacNew_25 unfähig zu sozialen Kontakten …"," MacNew_26 … körperl. Belastung eingeschränkt"," MacNew_27 beeinträchtigtes Sexualleben"," MacNew_Grund für Test-Verzicht"," MacNew_Grund für Test-Verzicht (Anderer)","Drop-Out / Duplikat","Plausib Reha-Art/-Bereich","Plausib HZ/ZE (1 HZ, 2 ZE, 3 HZ/ZE)","Plausib GT6M","Plausib Ergo","Plausib MNH"," 6MWT_2 Gehdauer (Sekunden oder #WERT!)"," Ergo_2 Dauer (Sekunden oder #WERT!)","Mangel KA","Mangel Drop-Out","Rekordart","BUR","FID/Messezeitpunkt fehlend","Rehabereich falsch/fehlend","Leistungstest fehlend","MacNew fehlend","falsche Kombination von Messinstrumenten","HZ/ZE Datumsangabe","HZ/ZE Kombi","HZ/ZE (nur gültige Kombinationen erlaubt)","GT6M fehlende Werte","VALID Datum GT6M","GT6M ungültige Werte Strecke","GT6M ungültige Gehdauer","GT6M ungültige Werte","GT6M unplausible Angaben","Ergo fehlende Werte","VALID Datum Ergo","Ergo ungültige Werte Leistung","Ergo ungültige Ergodauer","Ergo ungültige Werte","Ergo unplausible Angaben","MNH fehlende Werte","VALID Datum MNH","MNH ungültige Werte","MNH unplausible Angaben","MNH zu viele Angaben unbekannt","CONCAT Gehtest","CONCAT Ergo","CONCAT MNH","CONCAT auswertungsrelevant","CONCAT","Mängel insgesamt (evtl. Unterscheidung)"]
[null,null,null,null,null,null,"4.1.","FID",null,null,null,null,null,"4.2.",null,null,null,null,null,null,null,null,null,null,null,"4.3.",null,null,null,null,null,null,null,null,"4.4.",null,null,null,null,null,null,"4.5.",null,null,null,null,null,null,null,null,null,null,null,null,null,null,null,null,null,null,null,null,null,null,null,null,null,null,null,null,null,"x",null,"4.1.","FID",null,null,null,null,null,"4.2.",null,null,null,null,null,null,null,null,null,null,null,"4.3.",null,null,null,null,null,null,null,null,"4.4.",null,null,null,null,null,null,"4.5.",null,null,null,null,null,null,null,null,null,null,null,null,null,null,null,null,null,null,null,null,null,null,null,null,null,null,null,null,null,null,null,null,null,null,null,null,null,null,null,"err6101","err6102","err6103","err6104","err6106-err6107","err6108","err6111","err5200",null,"err5201-err5203","err6200","err6201","err6202","err6203","err6204","err6205","err6300","err6301","err6302","err6303","err6304","err6305","err6400","err6401","err6402","err6403","err6404"]
[null,null,null,null,null,null,"V01",null,"V02","V03","V04","V05","V06","V00","V01","V02","V03","V04","V05","V06","V07","V08","V09","V10","V11","V00","V01","V02","V03","V04","V05","V06","V07","V08","V00","V01","V02","V03","V04","V05","V06","V00","V01","V02","V03","V04","V05","V06","V07","V08","V09","V10","V11","V12","V13","V14","V15","V16","V17","V18","V19","V20","V21","V22","V23","V24","V25","V26","V27","V28","V29","x",null,"V01",null,"V02","V03","V04","V05","V06","V00","V01","V02","V03","V04","V05","V06","V07","V08","V09","V10","V11","V00","V01","V02","V03","V04","V05","V06","V07","V08","V00","V01","V02","V03","V04","V05","V06","V00","V01","V02","V03","V04","V05","V06","V07","V08","V09","V10","V11","V12","V13","V14","V15","V16","V17","V18","V19","V20","V21","V22","V23","V24","V25","V26","V27","V28","V29"]
[null,null,"Filter   ►"]
[{"$f":"CONCATENATE(H6,K6)","v":""},null,{"$f":"IF(COUNTIF(BV6:EH6,0)=65,\"\",IF(EI6=2,\"Duplikat / \"&FX6,IF(EI6=1,\"Drop-Out\"&IF(ER6=\"\",\"\",\" (mangelhaft)\"),IF(FX6<>\"\",FX6,\"\"))))","v":""},null,null,null,null,null,null,null,null,null,null,null,null,null,null,null,null,null,null,null,null,null,null,null,null,null,null,null,null,null,null,null,null,null,null,null,null,null,null,null,null,null,null,null,null,null,null,null,null,null,null,null,null,null,null,null,null,null,null,null,null,null,null,null,null,null,null,null,null,"x"]

{"sheet":"PP temp","index":10,"n_rows":6,"n_cols":106,"rows_kept":6,"cut":false,"hidden":true,"merged":[[4,2,4,3],[4,5,4,44],[4,45,4,46],[4,47,4,91]]}
[null,"PP","ANQ-Reha-Test-2021_v8.1",null,null,null,null,0,null,null,null,null,null,null,null,null,null,null,null,null,null,null,null,null,null,null,null,null,null,null,null,null,null,null,null,null,null,null,null,null,null,null,null,null,null,null,null,null,{"$f":"MODE(INDIRECT(\"I6:I\"&$H$1+5))","v":{"$error":"#N/A"}},{"$f":"IF(ISNA(AW1),-1,IF(AND(AW1>10000000,AW1<90000000),AW1,-1))","v":-1},null,null,null,2021]
["ID*Messzeitpunkt > AUSBLENDEN",null,"Status PP (Mängel)",null,null,null," Rekordart"," Fallidentifikationsnummer"," Betriebsnummer \n (BUR-Satellit Gesundheit)"," Rehabereich"," Messzeitpunkt (Ein-/Austritt)"," Grund für Drop-Out (Fallausschluss)"," Datum Drop-Out"," HZ/ZE-Datum der Erhebung"," HZ_01_1 Hauptziel"," HZ_01_2 Unterstützung"," ZE_01 Zielanpassung des ... Hauptziels"," ZE_02_1 Zielerreichung ursprüngliches Ziel"," ZE_02_2 stattdessen erreichtes Ziel "," ZE_02_3 Unterstützungsbedarf zu ZE_02_2"," ZE_03_1 Angepasstes Ziel"," ZE_03_2 Unterstützungsbedarf zu ZE_03_1"," ZE_04_1 Zielerreichung angepasstes Ziel"," ZE_04_2  stattdessen erreichtes Ziel"," ZE_04_3 Unterstützungsbedarf zu ZE_04_2"," SCIM_Datum der Erhebung"," SCIM_01 Nahrungsaufnahme"," SCIM_02_1 Waschen: Oberkörper"," SCIM_02_2 Waschen: Unterkörper"," SCIM_03_1 An-/ Ausziehen: Oberkörper"," SCIM_03_2 An-/ Ausziehen: Unterkörper"," SCIM_04 Gesichtspflege"," SCIM_05 Atmung"," SCIM_06 Blasenmanagement"," SCIM_07 Darmmanagement"," SCIM_08 Toilettenhygiene"," SCIM_09 Bettmobilität und Dekubitusprophylaxe"," SCIM_10 Transfer Bett - Rollstuhl"," SCIM_11 Transfer Rollstuhl - WC"," SCIM_12 Mobilität im Haus"," SCIM_13 Mobilität bei mittleren Distanzen …"," SCIM_14 Mobilität ausser Haus, …"," SCIM_15 Treppensteigen"," SCIM_16 Transfer Rollstuhl - Auto"," SCIM_17 Transfer Boden - Rollstuhl"," HAQ_01 Ankleiden",null," Rekordart"," Fallidentifikationsnummer"," Betriebsnummer \n (BUR-Satellit Gesundheit)"," Rehabereich"," Messzeitpunkt (Ein-/Austritt)"," Grund für Drop-Out (Fallausschluss)"," Datum Drop-Out"," HZ/ZE-Datum der Erhebung"," HZ_01_1 Hauptziel"," HZ_01_2 Unterstützung"," ZE_01 Zielanpassung des ... Hauptziels"," ZE_02_1 Zielerreichung ursprüngliches Ziel"," ZE_02_2 stattdessen erreichtes Ziel "," ZE_02_3 Unterstützungsbedarf zu ZE_02_2"," ZE_03_1 Angepasstes Ziel"," ZE_03_2 Unterstützungsbedarf zu ZE_03_1"," ZE_04_1 Zielerreichung angepasstes Ziel"," ZE_04_2  stattdessen erreichtes Ziel"," ZE_04_3 Unterstützungsbedarf zu ZE_04_2"," SCIM_Datum der Erhebung"," SCIM_01 Nahrungsaufnahme"," SCIM_02_1 Waschen: Oberkörper"," SCIM_02_2 Waschen: Unterkörper"," SCIM_03_1 An-/ Ausziehen: Oberkörper"," SCIM_03_2 An-/ Ausziehen: Unterkörper"," SCIM_04 Gesichtspflege"," SCIM_05 Atmung"," SCIM_06 Blasenmanagement"," SCIM_07 Darmmanagement"," SCIM_08 Toilettenhygiene"," SCIM_09 Bettmobilität und Dekubitusprophylaxe"," SCIM_10 Transfer Bett - Rollstuhl"," SCIM_11 Transfer Rollstuhl - WC"," SCIM_12 Mobilität im Haus"," SCIM_13 Mobilität bei mittleren Distanzen …"," SCIM_14 Mobilität ausser Haus, …"," SCIM_15 Treppensteigen"," SCIM_16 Transfer Rollstuhl - Auto"," SCIM_17 Transfer Boden - Rollstuhl","Drop-Out / Duplikat","Plausib Reha-Art/-Bereich","Plausib HZ/ZE (1 HZ, 2 ZE, 3 HZ/ZE)","Plausib SCIM","Mangel PS","Mangel Drop-Out","Rekordart","BUR","FID/Messezeitpunkt fehlend","Reha-Art/Rehabereich fehlend","HZ/ZE Datumsangabe","HZ/ZE Kombi","HZ/ZE (nur gültige Kombinationen erlaubt)","ANZ Antworten SCIM","SCIM Datumsangabe","SCIM ungültige Angaben","SCIM weniger als 20 Werte (inkl. Datum)","CONCAT auswertungsrelevant","CONCAT","Mängel insgesamt (evtl. Unterscheidung)"]
[null,null,null,null,null,null,"6.1.","FID","6.1.",null,null,null,null,"6.2.",null,null,null,null,null,null,null,null,null,null,null,"6.3.",null,null,null,null,null,null,null,null,null,null,null,null,null,null,null,null,null,null,null,"x",null,"6.1.","FID","6.1.",null,null,null,null,"6.2.",null,null,null,null,null,null,null,null,null,null,null,"6.3.",null,null,null,null,null,null,null,null,null,null,null,null,null,null,null,null,null,null,null,null,null,null,null,null,null,"err5101","err5102","err5103","err5104","err5200",null,"err5201-err5203",null,"err5401","err5402","err5403"]
[null,null,null,null,null,null,"V01",null,"V02","V03","V04","V05","V06","V00","V01","V02","V03","V04","V05","V06","V07","V08","V09","V10","V11","V00  ","V01","V02","V03","V04","V05","V06","V07","V08","V09","V10","V11","V12","V13","V14","V15","V16","V17","V18","V19","x",null,"V01",null,"V02","V03","V04","V05","V06","V00","V01","V02","V03","V04","V05","V06","V07","V08","V09","V10","V11","V00  ","V01","V02","V03","V04","V05","V06","V07","V08","V09","V10","V11","V12","V13","V14","V15","V16","V17","V18","V19"]
[null,null,"Filter   ►"]
[{"$f":"CONCATENATE(H6,K6)","v":""},null,{"$f":"IF(COUNTIF(AV6:CH6,0)=39,\"\",IF(CI6=2,\"Duplikat / \"&DA6,IF(CI6=1,\"Drop-Out\"&IF(CN6=\"\",\"\",\" (mangelhaft)\"),IF(DA6<>\"\",DA6,\"\"))))","v":""},null,null,null,null,null,null,null,null,null,null,null,null,null,null,null,null,null,null,null,null,null,null,null,null,null,null,null,null,null,null,null,null,null,null,null,null,null,null,null,null,null,null,"x"]

{"sheet":"PS temp","index":11,"n_rows":6,"n_cols":147,"rows_kept":6,"cut":false,"hidden":true,"merged":[[4,2,4,3],[4,5,4,59],[4,60,4,61],[4,62,4,121]]}
[null,"PS","ANQ-Reha-Test-2021_v8.1",null,null,null,null,0,null,null,null,null,null,null,null,null,null,null,null,null,null,null,null,null,null,null,null,null,null,null,null,null,null,null,null,null,null,null,null,null,null,null,null,null,null,null,null,null,null,null,null,null,null,null,null,null,null,null,null,null,null,null,null,{"$f":"MODE(INDIRECT(\"I6:I\"&$H$1+5))","v":{"$error":"#N/A"}},{"$f":"IF(ISNA(BL1),-1,IF(AND(BL1>10000000,BL1<90000000),BL1,-1))","v":-1},null,null,null,2021]
["ID*Messzeitpunkt > AUSBLENDEN",null,"Status PS (Mängel)",null,null,null," Rekordart"," Fallidentifikationsnummer"," Betriebsnummer \n (BUR-Satellit Gesundheit)"," Rehabereich"," Messzeitpunkt (Ein-/Austritt)"," Grund für Drop-Out (Fallausschluss)"," Datum Drop-Out"," HZ/ZE-Datum der Erhebung"," HZ_01_1 Hauptziel"," HZ_01_2 Unterstützung"," ZE_01 Zielanpassung des ... Hauptziels"," ZE_02_1 Zielerreichung ursprüngliches Ziel"," ZE_02_2 stattdessen erreichtes Ziel "," ZE_02_3 Unterstützungsbedarf zu ZE_02_2"," ZE_03_1 Angepasstes Ziel"," ZE_03_2 Unterstützungsbedarf zu ZE_03_1"," ZE_04_1 Zielerreichung angepasstes Ziel"," ZE_04_2  stattdessen erreichtes Ziel"," ZE_04_3 Unterstützungsbedarf zu ZE_04_2"," PHQ_Datum der Erhebung"," PHQ_01 Bauchschmerzen"," PHQ_02 Rückenschmerzen"," PHQ_03 Schmerzen in Extremitäten"," PHQ_04 Menstruationsbeschwerden"," PHQ_05 Kopfschmerzen"," PHQ_06 Schmerzen im Brustbereich"," PHQ_07 Schwindel"," PHQ_08 Ohnmachtsanfälle"," PHQ_09 Herzklopfen oder Herzrasen"," PHQ_10 Kurzatmigkeit"," PHQ_11 Probleme beim Geschlechtsverkehr"," PHQ_12 Verstopfung, Durchfall"," PHQ_13 Übelkeit, Verdauungsbeschwerden"," PHQ_14 Müdigkeit"," PHQ_15 Schlafstörungen"," PHQ_Grund für Test-Verzicht / …"," PHQ_Grund für Test-Verzicht / …(Anderer)"," HADS_Datum der Erhebung"," HADS_01 Angespannt fühlen"," HADS_02 Freuen wie früher"," HADS_03 Ängstliche Vorahnung"," HADS_04 Lachen und lustige Seite sehen"," HADS_05 Beunruhigende Gedanken"," HADS_06 Glücklich fühlen"," HADS_07 Kann mich entspannen"," HADS_08 Fühle mich in Aktivitäten gebremst"," HADS_09 Ängstliches Gefühl"," HADS_10 Interesse an äusserer Erscheinung verloren"," HADS_11 Fühle mich rastlos"," HADS_12 Blicke mit Freude in die Zukunft"," HADS_13 Panikartiger Zustand"," HADS_14 An gutem Buch etc. freuen"," HADS_Grund für Test-Verzicht / …"," HADS_Grund für Test-Verzicht / ... (Anderer)"," HAQ_01 Ankleiden",null," Rekordart"," Fallidentifikationsnummer"," Betriebsnummer \n (BUR-Satellit Gesundheit)"," Rehabereich"," Messzeitpunkt (Ein-/Austritt)"," Grund für Drop-Out (Fallausschluss)"," Datum Drop-Out"," HZ/ZE-Datum der Erhebung"," HZ_01_1 Hauptziel"," HZ_01_2 Unterstützung"," ZE_01 Zielanpassung des ... Hauptziels"," ZE_02_1 Zielerreichung ursprüngliches Ziel"," ZE_02_2 stattdessen erreichtes Ziel "," ZE_02_3 Unterstützungsbedarf zu ZE_02_2"," ZE_03_1 Angepasstes Ziel"," ZE_03_2 Unterstützungsbedarf zu ZE_03_1"," ZE_04_1 Zielerreichung angepasstes Ziel"," ZE_04_2  stattdessen erreichtes Ziel"," ZE_04_3 Unterstützungsbedarf zu ZE_04_2"," PHQ_Datum der Erhebung"," PHQ_01 Bauchschmerzen"," PHQ_02 Rückenschmerzen"," PHQ_03 Schmerzen in Extremitäten"," PHQ_04 Menstruationsbeschwerden"," PHQ_05 Kopfschmerzen"," PHQ_06 Schmerzen im Brustbereich"," PHQ_07 Schwindel"," PHQ_08 Ohnmachtsanfälle"," PHQ_09 Herzklopfen oder Herzrasen"," PHQ_10 Kurzatmigkeit"," PHQ_11 Probleme beim Geschlechtsverkehr"," PHQ_12 Verstopfung, Durchfall"," PHQ_13 Übelkeit, Verdauungsbeschwerden"," PHQ_14 Müdigkeit"," PHQ_15 Schlafstörungen"," PHQ_Grund für Test-Verzicht / …"," PHQ_Grund für Test-Verzicht / …(andere)"," HADS_Datum der Erhebung"," HADS_01 Angespannt fühlen"," HADS_02 Freuen wie früher"," HADS_03 Ängstliche Vorahnung"," HADS_04 Lachen und lustige Seite sehen"," HADS_05 Beunruhigende Gedanken"," HADS_06 Glücklich fühlen"," HADS_07 Kann mich entspannen"," HADS_08 Fühle mich in Aktivitäten gebremst"," HADS_09 Ängstliches Gefühl"," HADS_10 Interesse an äusserer Erscheinung verloren"," HADS_11 Fühle mich rastlos"," HADS_12 Blicke mit Freude in die Zukunft"," HADS_13 Panikartiger Zustand"," HADS_14 An gutem Buch etc. freuen"," HADS_Grund für Test-Verzicht / …"," HADS_Grund für Test-Verzicht / ... (andere)","Drop-Out / Duplikat","Plausib Reha-Art/-Bereich","Plausib HZ/ZE (1 HZ, 2 ZE, 3 HZ/ZE)","Plausib PHQ","Plausib HADS","Mangel PS","Mangel Drop-Out","Rekordart","BUR","FID/Messezeitpunkt fehlend","Rehabereich falsch/fehlend","PHQ fehlend","HADS fehlend","HZ/ZE Datumsangabe","HZ/ZE Kombi","HZ/ZE (nur gültige Kombinationen erlaubt)","PHQ fehlende Werte","VALID Datum PHQ","PHQ ungültige Werte","PHQ unplausible Angaben","PHQ zu viele Angaben unbekannt","HADS fehlende Werte","VALID Datum HADS","HADS ungültige Werte","HADS unplausible Angaben","HADS zu viele Angaben unbekannt","CONCAT PHQ","CONCAT HADS","CONCAT auswertungsrelevant","CONCAT","Mängel insgesamt (evtl. Unterscheidung)"]
[null,null,null,null,null,null,"7.1.","FID","7.1.",null,null,null,null,"7.2.",null,null,null,null,null,null,null,null,null,null,null,"7.3.",null,null,null,null,null,null,null,null,null,null,null,null,null,null,null,null,null,"7.4.",null,null,null,null,null,null,null,null,null,null,null,null,null,null,null,null,"x",null,"7.1.","FID","7.1.",null,null,null,null,"7.2.",null,null,null,null,null,null,null,null,null,null,null,"7.3.",null,null,null,null,null,null,null,null,null,null,null,null,null,null,null,null,null,"7.4.",null,null,null,null,null,null,null,null,null,null,null,null,null,null,null,null,null,null,null,null,null,null,null,"err5101","err5102","err5103","err5104","err6106-err6107","err6108","err5200",null,"err5201-err5203","err6400","err6401","err6402","err6403","err6404","err6400","err6401","err6402","err6403","err6404"]
[null,null,null,null,null,null,"V01",null,"V02","V03","V04","V05","V06","V00","V01","V02","V03","V04","V05","V06","V07","V08","V09","V10","V11","V00  ","V01","V02","V03","V04","V05","V06","V07","V08","V09","V10","V11","V12","V13","V14","V15","V16","V17","V00","V01","V02","V03","V04","V05","V06","V07","V08","V09","V10","V11","V12","V13","V14","V15","V16","x",null,"V01",null,"V02","V03","V04","V05","V06","V00","V01","V02","V03","V04","V05","V06","V07","V08","V09","V10","V11","V00  ","V01","V02","V03","V04","V05","V06","V07","V08","V09","V10","V11","V12","V13","V14","V15","V16","V17","V00","V01","V02","V03","V04","V05","V06","V07","V08","V09","V10","V11","V12","V13","V14","V15","V16"]
[null,null,"Filter   ►"]
[{"$f":"CONCATENATE(H6,K6)","v":""},null,{"$f":"IF(COUNTIF(BK6:DL6,0)=54,\"\",IF(DM6=2,\"Duplikat / \"&EP6,IF(DM6=1,\"Drop-Out\"&IF(DS6=\"\",\"\",\" (mangelhaft)\"),IF(EP6<>\"\",EP6,\"\"))))","v":""},null,null,null,null,null,null,null,null,null,null,null,null,null,null,null,null,null,null,null,null,null,null,null,null,null,null,null,null,null,null,null,null,null,null,null,null,null,null,null,null,null,null,null,null,null,null,null,null,null,null,null,null,null,null,null,null,null,"x"]

{"sheet":"PU temp","index":12,"n_rows":6,"n_cols":143,"rows_kept":6,"cut":false,"hidden":true,"merged":[[4,2,4,3],[4,5,4,56],[4,57,4,58],[4,59,4,120]]}
[null,"PU","ANQ-Reha-Test-2021_v8.1",null,null,null,null,0,null,null,null,null,null,null,null,null,null,null,null,null,null,null,null,null,null,null,null,null,null,null,null,null,null,null,null,null,null,null,null,null,null,null,null,null,null,null,null,null,null,null,null,null,null,null,null,null,null,null,null,null,{"$f":"MODE(INDIRECT(\"I6:I\"&$H$1+5))","v":{"$error":"#N/A"}},{"$f":"IF(ISNA(BI1),-1,IF(AND(BI1>10000000,BI1<90000000),BI1,-1))","v":-1},null,null,null,2021]
[null,null,"Status PU (Mängel)",null,null,null," Rekordart"," Fallidentifikationsnummer"," Betriebsnummer \n (BUR-Satellit Gesundheit)"," Rehabereich"," Messzeitpunkt (Ein-/Austritt)"," Grund für Drop-Out (Fallausschluss)"," Datum Drop-Out"," HZ/ZE-Datum der Erhebung"," HZ_01_1 Hauptziel"," HZ_01_2 Unterstützung"," ZE_01 Zielanpassung des ... Hauptziels"," ZE_02_1 Zielerreichung ursprüngliches Ziel"," ZE_02_2 stattdessen erreichtes Ziel "," ZE_02_3 Unterstützungsbedarf zu ZE_02_2"," ZE_03_1 Angepasstes Ziel"," ZE_03_2 Unterstützungsbedarf zu ZE_03_1"," ZE_04_1 Zielerreichung angepasstes Ziel"," ZE_04_2  stattdessen erreichtes Ziel"," ZE_04_3 Unterstützungsbedarf zu ZE_04_2"," 6MWT_Datum der Durchführung"," 6MWT_1 Zurückgelegte Strecke"," 6MWT_2 Gehdauer in Minuten"," 6MWT_3 Verwendung einer Gehhilfe"," 6MWT_4 Abgabe von Sauerstoff"," 6MWT_5 Grund für Test-Abbruch "," 6MWT_6 Grund für Abbruch (Anderer)"," 6MWT_7 Grund für Test-Verzicht / .."," 6MWT_8 Grund für Test-Verzicht / .. (Anderer)"," CRQ_Datum der Erhebung"," CRQ_01 Kurzatmigkeit bei … Ärger"," CRQ_02 Kurzatmigkeit bei Aktivitäten …"," CRQ_03 Kurzatmigkeit bei zu Fuss gehen"," CRQ_04 Kurzatmigkeit bei Hausarbeiten"," CRQ_05 Kurzatmigkeit bei gesell. Leben"," CRQ_06 frustriert oder ungeduldig"," CRQ_07 Gefühl der Angst und Panik"," CRQ_08 müde gefühlt"," CRQ_09 Husten oder schweres Atmen …"," CRQ_10 zuversichtlich … wg. Krankheit "," CRQ_11 Energie"," CRQ_12 verärgert, besorgt oder deprimiert"," CRQ_13 Atemprobleme unter Kontrolle"," CRQ_14 locker und entspannt "," CRQ_15 wenig Lebensenergie"," CRQ_16 mutlos oder niedergeschlagen"," CRQ_17 erschöpft oder lustlos"," CRQ_18 zufrieden mit Leben "," CRQ_19 verstört oder ängstlich"," CRQ_20 ruhelos, angespannt oder nervös"," CRQ_Grund für Test-Verzicht / .."," CRQ_Grund für Test-Verzicht / . (Anderer)",null,null," Rekordart"," Fallidentifikationsnummer"," Betriebsnummer \n (BUR-Satellit Gesundheit)"," Rehabereich"," Messzeitpunkt (Ein-/Austritt)"," Grund für Drop-Out (Fallausschluss)"," Datum Drop-Out"," HZ/ZE-Datum der Erhebung"," HZ_01_1 Hauptziel"," HZ_01_2 Unterstützung"," ZE_01 Zielanpassung des ... Hauptziels"," ZE_02_1 Zielerreichung ursprüngliches Ziel"," ZE_02_2 stattdessen erreichtes Ziel "," ZE_02_3 Unterstützungsbedarf zu ZE_02_2"," ZE_03_1 Angepasstes Ziel"," ZE_03_2 Unterstützungsbedarf zu ZE_03_1"," ZE_04_1 Zielerreichung angepasstes Ziel"," ZE_04_2  stattdessen erreichtes Ziel"," ZE_04_3 Unterstützungsbedarf zu ZE_04_2"," 6MWT_Datum der Durchführung"," 6MWT_1 Zurückgelegte Strecke"," 6MWT_2 Gehdauer in Minuten"," 6MWT_3 Verwendung einer Gehhilfe"," 6MWT_4 Abgabe von Sauerstoff"," 6MWT_5 Grund für Test-Abbruch "," 6MWT_6 Grund für Abbruch (Anderer)"," 6MWT_7 Grund für Test-Verzicht "," 6MWT_8 Grund für Test-Verzicht (Anderer)"," CRQ_Datum der Erhebung"," CRQ_01 Kurzatmigkeit bei … Ärger"," CRQ_02 Kurzatmigkeit bei Aktivitäten …"," CRQ_03 Kurzatmigkeit bei zu Fuss gehen"," CRQ_04 Kurzatmigkeit bei Hausarbeiten"," CRQ_05 Kurzatmigkeit bei gesell. Leben"," CRQ_06 frustriert oder ungeduldig"," CRQ_07 Gefühl der Angst und Panik"," CRQ_08 müde gefühlt"," CRQ_09 Husten oder schweres Atmen …"," CRQ_10 zuversichtlich … wg. Krankheit "," CRQ_11 Energie in den letzten 2 Wochen "," CRQ_12 verärgert, besorgt oder deprimiert"," CRQ_13 Atemprobleme unter Kontrolle"," CRQ_14 locker und entspannt "," CRQ_15 wenig Lebensenergie"," CRQ_16 mutlos oder niedergeschlagen"," CRQ_17 erschöpft oder lustlos"," CRQ_18 zufrieden mit Leben "," CRQ_19 verstört oder ängstlich"," CRQ_20 ruhelos, angespannt oder nervös"," CRQ_Grund für Test-Verzicht"," CRQ_Grund für Test-Verzicht (Anderer)","Drop-Out / Duplikat","Plausib Reha-Art/-Bereich","Plausib HZ/ZE (1 HZ, 2 ZE, 3 HZ/ZE)","Plausib GT6M","Plausib CRQ"," 6MWT_2 Gehdauer (Sekunden oder #WERT!)","Mangel PU","Mangel Drop-Out","Rekordart","BUR","FID/Messezeitpunkt fehlend","Rehabereich falsch/fehlend","GT6M fehlend","CRQ fehlend","HZ/ZE Datumsangabe","HZ/ZE Kombi","HZ/ZE (nur gültige Kombinationen erlaubt)","GT6M fehlende Werte","VALID Datum GT6M","GT6M ungültige Werte Strecke","GT6M ungültige Gehdauer","GT6M ungültige Werte","GT6M unplausible Angaben","CRQ fehlende Werte","VALID Datum CRQ","CRQ ungültige Werte","CRQ unplausible Angaben","CRQ zu viele Angaben unbekannt","CONCAT Gehtest","CONCAT CRQ","CONCAT auswertungsrelevant","CONCAT","Mängel insgesamt (evtl. Unterscheidung)"]
[null,null,null,null,null,null,"8.1.","FID",null,null,null,null,null,"8.2.",null,null,null,null,null,null,null,null,null,null,null,"8.3.",null,null,null,null,null,null,null,null,"8.4.",null,null,null,null,null,null,null,null,null,null,null,null,null,null,null,null,null,null,null,null,null,null,"x",null,"8.1.","FID",null,null,null,null,null,"8.2.",null,null,null,null,null,null,null,null,null,null,null,"8.3.",null,null,null,null,null,null,null,null,"8.4.",null,null,null,null,null,null,null,null,null,null,null,null,null,null,null,null,null,null,null,null,null,null,null,null,null,null,null,null,null,null,"err6101","err6102","err6103","err6104","err6106-err6107","err6110","err5200",null,"err5201-err5203","err6200","err6201","err6202","err6203","err6204","err6205","err6600","err6601","err6602","err6603","err6604"]
[null,null,null,null,null,null,"V01",null,"V02","V03","V04","V05","V06","V00","V01","V02","V03","V04","V05","V06","V07","V08","V09","V10","V11","V00","V01","V02","V03","V04","V05","V06","V07","V08","V00","V01","V02","V03","V04","V05","V06","V07","V08","V09","V10","V11","V12","V13","V14","V15","V16","V17","V18","V19","V20","V21","V22","x",null,"V01",null,"V02","V03","V04","V05","V06","V00","V01","V02","V03","V04","V05","V06","V07","V08","V09","V10","V11","V00","V01","V02","V03","V04","V05","V06","V07","V08","V00","V01","V02","V03","V04","V05","V06","V07","V08","V09","V10","V11","V12","V13","V14","V15","V16","V17","V18","V19","V20","V21","V22"]
[null,null,"Filter   ►"]
[{"$f":"CONCATENATE(H6,K6)","v":""},null,{"$f":"IF(COUNTIF(BH6:DF6,0)=51,\"\",IF(DG6=2,\"Duplikat / \"&EL6,IF(DG6=1,\"Drop-Out\"&IF(DN6=\"\",\"\",\" (mangelhaft)\"),IF(EL6<>\"\",EL6,\"\"))))","v":""},null,null,null,null,null,null,null,null,null,null,null,null,null,null,null,null,null,null,null,null,null,null,null,null,null,null,null,null,null,null,null,null,null,null,null,null,null,null,null,null,null,null,null,null,null,null,null,null,null,null,null,null,null,null,"x"]

{"sheet":"MB","index":13,"n_rows":0,"n_cols":0,"rows_kept":0,"cut":false,"hidden":true,"merged":[]}

{"sheet":"ZU","index":14,"n_rows":0,"n_cols":0,"rows_kept":0,"cut":false,"hidden":true,"merged":[]}

{"sheet":"FF","index":15,"n_rows":0,"n_cols":0,"rows_kept":0,"cut":false,"hidden":true,"merged":[]}

{"sheet":"KA","index":16,"n_rows":0,"n_cols":0,"rows_kept":0,"cut":false,"hidden":true,"merged":[]}

{"sheet":"PP","index":17,"n_rows":0,"n_cols":0,"rows_kept":0,"cut":false,"hidden":true,"merged":[]}

{"sheet":"PS","index":18,"n_rows":0,"n_cols":0,"rows_kept":0,"cut":false,"hidden":true,"merged":[]}

{"sheet":"PU","index":19,"n_rows":0,"n_cols":0,"rows_kept":0,"cut":false,"hidden":true,"merged":[]}